Organisation Name,Organisation Code,Effective Date,Directorate,Service Category,Service Category URI,Supplier Name,Payment Date,Transaction Number,Net Amount,Irrecoverable VAT,Purpose_of_the_expenditure,Merchant Category,
Wyre Council,http://opendatacommunities.org/doc/district-council/wyre,28/02/2024,People and Places,Cultural and Related Services,132A,Duxburys Commercial,23/02/2024,PE157053,1250.00,0.00,"letting of Mount Cottages, Mount Rd, Fleetwood, FY7 6QZ",Advertising - General,
Wyre Council,http://opendatacommunities.org/doc/district-council/wyre,28/02/2024,Resources,Planning and Development Servs,132C,Daisy Communications LTD,22/02/2024,RS156486,50.71,0.00,Service Charges 01/01/24 to 31/01/24,Advertising - General,
Wyre Council,http://opendatacommunities.org/doc/district-council/wyre,28/02/2024,People and Places,Cultural and Related Services,132A,Amazon Business,22/02/2024,PE156996,19.16,0.00,Tripod for IPAD and IPHONE - Lusweimi at 26.99Laptop Stand - Babacom at 16.99TOTAL: 43.98,Advertising - General,
Wyre Council,http://opendatacommunities.org/doc/district-council/wyre,28/02/2024,People and Places,Cultural and Related Services,132A,Amazon Business,22/02/2024,PE156995,21.66,0.00,Tripod for IPAD and IPHONE - Lusweimi at 26.99Laptop Stand - Babacom at 16.99TOTAL: 43.98,Advertising - General,
Wyre Council,http://opendatacommunities.org/doc/district-council/wyre,28/02/2024,People and Places,Planning and Development Servs,132C,Amazon Business,22/02/2024,PE156990,10.12,0.00,x4 white tablecloths for FM event,Advertising - General,
Wyre Council,http://opendatacommunities.org/doc/district-council/wyre,28/02/2024,People and Places,Cultural and Related Services,132A,Richard Ryan Lighting,22/02/2024,PE157011,1500.00,0.00,Marine Hall Christmas Tree,Advertising - General,
Wyre Council,http://opendatacommunities.org/doc/district-council/wyre,28/02/2024,People and Places,Cultural and Related Services,132A,Link Mag Ltd,27/02/2024,PE157117,1500.00,0.00," FY5, FY6, FY7 DISTRIBUTION",Advertising - General,
Wyre Council,http://opendatacommunities.org/doc/district-council/wyre,28/02/2024,People and Places,Cultural and Related Services,132A,Link Mag Ltd,27/02/2024,PE157117,550.00,0.00,"40,000 A5 D/S Leaflet PRINT40,000 Leaflets,",Advertising - General,
Wyre Council,http://opendatacommunities.org/doc/district-council/wyre,28/02/2024,People and Places,Planning and Development Servs,132C,National World Publishing Ltd,23/02/2024,PE157055,554.76,0.00,Fleetwood Weekly News 21.02.24,Advertising - Statutory Notices,
Wyre Council,http://opendatacommunities.org/doc/district-council/wyre,28/02/2024,People and Places,Planning and Development Servs,132C,National World Publishing Ltd,23/02/2024,PE157054,190.08,0.00,Fleetwood Weekly News 21.02.24,Advertising - Statutory Notices,
Wyre Council,http://opendatacommunities.org/doc/district-council/wyre,28/02/2024,People and Places,Planning and Development Servs,132C,National World Publishing Ltd,28/02/2024,PE157143,323.61,0.00,Blackpool Gazette and Garstang Courier 10.01.24,Advertising - Statutory Notices,
Wyre Council,http://opendatacommunities.org/doc/district-council/wyre,28/02/2024,People and Places,Planning and Development Servs,132C,National World Publishing Ltd,28/02/2024,PE157144,1017.06,0.00,Blackpool Gazette and Garstang Courier 24.01.24,Advertising - Statutory Notices,
Wyre Council,http://opendatacommunities.org/doc/district-council/wyre,28/02/2024,People and Places,Planning and Development Servs,132C,National World Publishing Ltd,29/02/2024,PE157191,924.60,0.00,Blackpool Gazette and Garstang Courier 07.02.24,Advertising - Statutory Notices,
Wyre Council,http://opendatacommunities.org/doc/district-council/wyre,28/02/2024,People and Places,Planning and Development Servs,132C,National World Publishing Ltd,29/02/2024,PE157190,166.32,0.00,Fleetwood Weekly News 07.02.24,Advertising - Statutory Notices,
Wyre Council,http://opendatacommunities.org/doc/district-council/wyre,28/02/2024,Resources,Support Services,135B,National World Publishing Ltd,20/02/2024,RS156950,231.15,0.00,Footpath (Preesall) Advert as per your quote NMC6291915,Advertising - Statutory Notices,
Wyre Council,http://opendatacommunities.org/doc/district-council/wyre,28/02/2024,People and Places,Support Services,135B,National World Publishing Ltd,29/02/2024,PE157142,115.56,0.00,Blackpool Gazette and Garstang Courier 27.12.23,Advertising - Statutory Notices,
Wyre Council,http://opendatacommunities.org/doc/district-council/wyre,28/02/2024,Resources,Housing General Fund,134A,Vivid Resourcing Ltd,27/02/2024,RS156465,5310.12,0.00,1094930 07/01/24 Housing Options Officer,Agency Staff,
Wyre Council,http://opendatacommunities.org/doc/district-council/wyre,28/02/2024,Resources,Housing General Fund,134A,Vivid Resourcing Ltd,29/02/2024,RS157173,5546.30,0.00,"Housing Options Officer - Feb 2024
1113642 04/02/24 Housing Options Officer Ismail Khan 37:40 hrs Standard Rate 37.00 1,393.67
1119407 11/02/24 Housing Options Officer Ismail Khan 37:11 hrs Standard Rate 37.00 1,375.78
1123142 18/02/24 Housing Options Officer Isma",Agency Staff,
Wyre Council,http://opendatacommunities.org/doc/district-council/wyre,28/02/2024,Resources,Planning and Development Servs,132C,Vivid Resourcing Ltd,19/02/2024,RS156408,5500.00,0.00,Fleetwood market,Agency Staff,
Wyre Council,http://opendatacommunities.org/doc/district-council/wyre,28/02/2024,Resources,Support Services,135B,Robertson Bell,22/02/2024,RS156867,3125.00,0.00,Interim finance consultant 05/02/24 to 09/02/24,Agency Staff,
Wyre Council,http://opendatacommunities.org/doc/district-council/wyre,28/02/2024,Resources,Support Services,135B,Robertson Bell,22/02/2024,RS156866,3125.00,0.00,Interim finance consultant 29/01/24 to 02/02/24,Agency Staff,
Wyre Council,http://opendatacommunities.org/doc/district-council/wyre,28/02/2024,Resources,Support Services,135B,Robertson Bell,22/02/2024,RS156966,3125.00,0.00,Interim Finance Consultatn 12/02/24 to 16/02/24,Agency Staff,
Wyre Council,http://opendatacommunities.org/doc/district-council/wyre,28/02/2024,Resources,Support Services,135B,Robertson Bell,28/02/2024,RS157114,3125.00,0.00,Interim finance consultant 19 to 23/02/24,Agency Staff,
Wyre Council,http://opendatacommunities.org/doc/district-council/wyre,28/02/2024,People and Places,Cultural and Related Services,132A,Lancashire County Council,01/02/2024,PE156406,179.52,0.00,Fleetwood Marine Hall - Fire Alarm,Alarm Systems and Security - Annual,
Wyre Council,http://opendatacommunities.org/doc/district-council/wyre,28/02/2024,People and Places,Planning and Development Servs,132C,Lancashire County Council,01/02/2024,PE156406,127.25,0.00,Fleetwood Market Hall -  Emergency Lighting,Alarm Systems and Security - Annual,
Wyre Council,http://opendatacommunities.org/doc/district-council/wyre,28/02/2024,People and Places,Planning and Development Servs,132C,Lancashire County Council,01/02/2024,PE156406,178.64,0.00,Fleetwood Marine Hall - Emergency Lighting,Alarm Systems and Security - Annual,
Wyre Council,http://opendatacommunities.org/doc/district-council/wyre,28/02/2024,Resources,Support Services,135B,Daisy Communications LTD,22/02/2024,RS156486,13.87,0.00,Service Charges 01/01/24 to 31/01/24,Alarm Systems and Security - Annual,
Wyre Council,http://opendatacommunities.org/doc/district-council/wyre,28/02/2024,People and Places,Planning and Development Servs,132C,M D Security,15/02/2024,PE156849,85.00,0.00,Fleetwood Market: Call out to  faulty smoke head.  Replaced XP95 smok,Alarm Systems and Security - Annual,
Wyre Council,http://opendatacommunities.org/doc/district-council/wyre,28/02/2024,People and Places,Planning and Development Servs,132C,M D Security,15/02/2024,PE156847,80.00,0.00,Fleetwood Market: Call out to fire panel as went off.  Found device to be in market studios - was advised there was an event on at time of activation. Isolated just in case due to no access,Alarm Systems and Security - Annual,
Wyre Council,http://opendatacommunities.org/doc/district-council/wyre,28/02/2024,People and Places,Cultural and Related Services,132A,M D Security,15/02/2024,PE156848,185.00,0.00,Mount Pavilion: replaced battery in  zone 16.  Replaced contact zone 27 due to multiple faults,Alarm Systems and Security - Annual,
Wyre Council,http://opendatacommunities.org/doc/district-council/wyre,28/02/2024,People and Places,Cultural and Related Services,132A,M D Security,29/02/2024,PE156978,50.00,0.00,Rossall Point: Carried out emergency light test for 02/24,Alarm Systems and Security - Annual,
Wyre Council,http://opendatacommunities.org/doc/district-council/wyre,28/02/2024,People and Places,Cultural and Related Services,132A,M D Security,01/02/2024,PE156383,210.00,0.00,Rossal Point: Corrosion on mag locks and components - re-terminated and cleaned.  Next time new components required including adaptation to frame,Alarm Systems and Security - Annual,
Wyre Council,http://opendatacommunities.org/doc/district-council/wyre,28/02/2024,People and Places,Environmental Services,132B,M D Security,29/02/2024,PE157016,50.00,0.00,Chatsworth Depot: carried out emergency light test on whole sire for Feb 24,Alarm Systems and Security - Annual,
Wyre Council,http://opendatacommunities.org/doc/district-council/wyre,28/02/2024,People and Places,Planning and Development Servs,132C,M D Security,29/02/2024,PE157015,60.00,0.00,Copse Rd Depot inc Transport Depot: Carried out emergency light test on whole site for Feb 24,Alarm Systems and Security - Annual,
Wyre Council,http://opendatacommunities.org/doc/district-council/wyre,28/02/2024,People and Places,Cultural and Related Services,132A,M D Security,29/02/2024,PE157012,50.00,0.00,Riverside Rangers Room Stanah: service to fire alarm sensors tested,Alarm Systems and Security - Annual,
Wyre Council,http://opendatacommunities.org/doc/district-council/wyre,28/02/2024,People and Places,Cultural and Related Services,132A,M D Security,29/02/2024,PE157013,50.00,0.00,Riverside Rangers Room Stannah - Carried out emergency light test to whole site for Feb 24,Alarm Systems and Security - Annual,
Wyre Council,http://opendatacommunities.org/doc/district-council/wyre,28/02/2024,People and Places,Support Services,135B,M D Security,29/02/2024,PE157014,60.00,0.00,Civic Centre: carried out emergency light test for 02/24,Alarm Systems and Security - Annual,
Wyre Council,http://opendatacommunities.org/doc/district-council/wyre,28/02/2024,Finance,Corporate and Democratic Core,131A,NATWEST BANK,02/02/2024,WPST00132338,786.14,0.00,31/01/24 29DEC GRP 99795000,Bank Charges,
Wyre Council,http://opendatacommunities.org/doc/district-council/wyre,28/02/2024,Finance,Corporate and Democratic Core,131A,NATWEST BANK,22/02/2024,WPST00134085,1436.59,0.00,20/02/24 Worldpay WP4W37 291566135,Bank Charges,
Wyre Council,http://opendatacommunities.org/doc/district-council/wyre,28/02/2024,Finance,Corporate and Democratic Core,131A,NATWEST BANK,22/02/2024,WPST00134075,1076.11,0.00,20/02/24 Worldpay WP4W37 291814298,Bank Charges,
Wyre Council,http://opendatacommunities.org/doc/district-council/wyre,28/02/2024,People and Places,Cultural and Related Services,132A,Lancashire County Council,05/02/2024,PE156229,3763.00,0.00,Subscription for LERN agreement 2023/24,Biodiversity Duty,
Wyre Council,http://opendatacommunities.org/doc/district-council/wyre,28/02/2024,Resources,Support Services,135B,Arthur J Gallagher Insurance Brokers Ltd,14/02/2024,RS156820,960.60,0.00,"Additional premium re increase sums insured on YMCA GARSTANG Windsor Road Garstang Lancashire PR3 1ED Garstang Swimming Centre Oak Rd, Garstang, Preston PR3 1HT",Building Insurance Premiums General,
Wyre Council,http://opendatacommunities.org/doc/district-council/wyre,28/02/2024,Resources,Support Services,135B,Arthur J Gallagher Insurance Brokers Ltd,15/02/2024,RS156821,470.29,0.00,Increase sums insured 19/09/23  Kiosk 7 Fleetwood FY7 6QE,Building Insurance Premiums General,
Wyre Council,http://opendatacommunities.org/doc/district-council/wyre,28/02/2024,People and Places,Cultural and Related Services,132A,Nisbetts Next Day Catering Equipment,20/02/2024,PE156942,92.38,0.00,2 x Fiesta Compostable Hot Cup Double wall Box 500,Catering Disposables,
Wyre Council,http://opendatacommunities.org/doc/district-council/wyre,28/02/2024,People and Places,Environmental Services,132B,N Power LTD,22/02/2024,PE156467,106.74,0.00,Unmetered Electricity Supply for Town Centre CCTV - 1-31 JAN 204,CCTV Running Costs,
Wyre Council,http://opendatacommunities.org/doc/district-council/wyre,28/02/2024,People and Places,Environmental Services,132B,N Power LTD,22/02/2024,PE156467,160.10,0.00,Unmetered Electricity Supply for Town Centre CCTV - 1-31 JAN 204,CCTV Running Costs,
Wyre Council,http://opendatacommunities.org/doc/district-council/wyre,28/02/2024,People and Places,Environmental Services,132B,N Power LTD,22/02/2024,PE156467,17.78,0.00,Unmetered Electricity Supply for Town Centre CCTV - 1-31 JAN 204,CCTV Running Costs,
Wyre Council,http://opendatacommunities.org/doc/district-council/wyre,28/02/2024,Resources,Street Lighting,133C,Garstang Town Council,22/02/2024,RS157000,3900.00,0.00,Grant Garstang Festive Lights 2023-24,Christmas Lights,
Wyre Council,http://opendatacommunities.org/doc/district-council/wyre,28/02/2024,People and Places,Cultural and Related Services,132A,Key Engineering & Hygiene Supplies LTD,06/02/2024,PE155747,1.80,0.00,Red Colour coded dishcloths,Cleaning Materials,
Wyre Council,http://opendatacommunities.org/doc/district-council/wyre,28/02/2024,People and Places,Cultural and Related Services,132A,Key Engineering & Hygiene Supplies LTD,06/02/2024,PE155747,7.13,0.00,3 pink pearl hand wash @7.13,Cleaning Materials,
Wyre Council,http://opendatacommunities.org/doc/district-council/wyre,28/02/2024,People and Places,Cultural and Related Services,132A,Key Engineering & Hygiene Supplies LTD,06/02/2024,PE155747,9.42,0.00,EAUFRESH NON ACIDIC POT POURRI TOILET CLEANER 1 LTR,Cleaning Materials,
Wyre Council,http://opendatacommunities.org/doc/district-council/wyre,28/02/2024,People and Places,Cultural and Related Services,132A,Key Engineering & Hygiene Supplies LTD,06/02/2024,PE155747,63.51,0.00,EXTRA STRONG BLACK REFUSE SACK 18X29X39 180G 90LTR (PER 200),Cleaning Materials,
Wyre Council,http://opendatacommunities.org/doc/district-council/wyre,28/02/2024,People and Places,Cultural and Related Services,132A,Key Engineering & Hygiene Supplies LTD,06/02/2024,PE155747,27.94,0.00,GREEN 1 PLY INTER-FOLD HAND TOWEL 250L X 190W 3600 SHEETS,Cleaning Materials,
Wyre Council,http://opendatacommunities.org/doc/district-council/wyre,28/02/2024,People and Places,Planning and Development Servs,132C,Key Engineering & Hygiene Supplies LTD,26/02/2024,PE157059,1.44,0.00,YELLOW STRIPE DISH CLOTH EA,Cleaning Materials,
Wyre Council,http://opendatacommunities.org/doc/district-council/wyre,28/02/2024,People and Places,Planning and Development Servs,132C,Key Engineering & Hygiene Supplies LTD,26/02/2024,PE157059,13.64,0.00,PEACH + HONEY HAND/BODY SOAP 5LTR,Cleaning Materials,
Wyre Council,http://opendatacommunities.org/doc/district-council/wyre,28/02/2024,People and Places,Planning and Development Servs,132C,Key Engineering & Hygiene Supplies LTD,26/02/2024,PE157059,20.72,0.00,WHITE 2PLY LUXURY TOILET ROLL 320 40 PER PACK,Cleaning Materials,
Wyre Council,http://opendatacommunities.org/doc/district-council/wyre,28/02/2024,People and Places,Planning and Development Servs,132C,Key Engineering & Hygiene Supplies LTD,26/02/2024,PE157059,17.50,0.00,NA2939C STRONG WHITE BAGS 18X29X29 PER 200,Cleaning Materials,
Wyre Council,http://opendatacommunities.org/doc/district-council/wyre,28/02/2024,People and Places,Planning and Development Servs,132C,Key Engineering & Hygiene Supplies LTD,26/02/2024,PE157059,1.44,0.00,BLUE STRIP DISH CLOTH EA,Cleaning Materials,
Wyre Council,http://opendatacommunities.org/doc/district-council/wyre,28/02/2024,People and Places,Planning and Development Servs,132C,Key Engineering & Hygiene Supplies LTD,26/02/2024,PE157059,1.44,0.00,GREEN STRIPE DISH CLOTH EA,Cleaning Materials,
Wyre Council,http://opendatacommunities.org/doc/district-council/wyre,28/02/2024,People and Places,Planning and Development Servs,132C,Key Engineering & Hygiene Supplies LTD,26/02/2024,PE157059,7.77,0.00,TEA TOWELS RICE WEAVE (10),Cleaning Materials,
Wyre Council,http://opendatacommunities.org/doc/district-council/wyre,28/02/2024,People and Places,Planning and Development Servs,132C,Amazon Business,28/02/2024,PE157128,16.49,0.00,Items for Heritage Action Zone Exhibition,Community Development Initiatives,
Wyre Council,http://opendatacommunities.org/doc/district-council/wyre,28/02/2024,People and Places,Planning and Development Servs,132C,Amazon Business,28/02/2024,PE157127,6.66,0.00,Items for Heritage Action Zone Exhibition,Community Development Initiatives,
Wyre Council,http://opendatacommunities.org/doc/district-council/wyre,28/02/2024,People and Places,Planning and Development Servs,132C,Amazon Business,28/02/2024,PE157126,55.80,0.00,Items for Heritage Action Zone Exhibition,Community Development Initiatives,
Wyre Council,http://opendatacommunities.org/doc/district-council/wyre,28/02/2024,People and Places,Planning and Development Servs,132C,Amazon Business,28/02/2024,PE157125,7.49,0.00,Items for Heritage Action Zone Exhibition,Community Development Initiatives,
Wyre Council,http://opendatacommunities.org/doc/district-council/wyre,28/02/2024,People and Places,Environmental Services,132B,The Helping Hand Company (Ledbury) Ltd,08/02/2024,PE156568,598.00,0.00,40 Ranger Litter pickers @ 14.95 per unit,Community Development Initiatives,
Wyre Council,http://opendatacommunities.org/doc/district-council/wyre,28/02/2024,Resources,Support Services,135B,Ebuyer (UK) Ltd,19/02/2024,RS156929,260.00,0.00,Techair 15`` Classic Laptop Backpack x10,Comp Hardware Purchases,
Wyre Council,http://opendatacommunities.org/doc/district-council/wyre,28/02/2024,Resources,Support Services,135B,Ebuyer (UK) Ltd,19/02/2024,RS156920,6124.00,0.00,HP ProBook 450 G9 Laptop | Core i5 | 16GB | 256GB x 10,Comp Hardware Purchases,
Wyre Council,http://opendatacommunities.org/doc/district-council/wyre,28/02/2024,Resources,Support Services,135B,Amazon Business,19/02/2024,RS156930,41.66,0.00,1 x Edifier WH700NB Active Noise Cancelling Headphones - 68H Playtime - AI Call Noise Cancellation - Dual Device Connection - Lightweight & Foldable Design - Fast Charge - Bluetooth 5.3 - Black.,Comp Hardware Purchases,
Wyre Council,http://opendatacommunities.org/doc/district-council/wyre,28/02/2024,Resources,Support Services,135B,Amazon Business,13/02/2024,RS156682,106.05,0.00,"15 x USB C Charger Cable, 3Pack(0.5+2+2m) INIU USB A to USB C Cable 3.1A Fast Charging, Zinc Alloy Braided Phone Charger Type C Cable for Samsung Galaxy S22 S21 iPad Pro Switch PS5 Huawei Google Pixel etc.",Comp Hardware Purchases,
Wyre Council,http://opendatacommunities.org/doc/district-council/wyre,28/02/2024,Resources,Support Services,135B,Amazon Business,19/02/2024,RS156919,32.32,0.00,"2 x BUSOHE Cat 8 Ethernet Cable 0.5m (10 Pack), High-Speed 40Gbps 2000MHz Network Cable Braided Flat Gigabit Rj45 STP Shielded Internet Network Lan Cable Cord Compatible for Xbox PS5/4 Modem Router PC.",Comp Hardware Purchases,
Wyre Council,http://opendatacommunities.org/doc/district-council/wyre,28/02/2024,Resources,Support Services,135B,Amazon Business,20/02/2024,RS156939,21.66,0.00,"1 x BUSOHE Cat 8 Ethernet Cable 1.5m (10 Pack), High-Speed 40Gbps 2000MHz Network Cable Braided Flat Gigabit Rj45 STP Shielded Internet Network Lan Cable Cord Compatible for Xbox PS5/4 Modem Router PC.",Comp Hardware Purchases,
Wyre Council,http://opendatacommunities.org/doc/district-council/wyre,28/02/2024,Resources,Support Services,135B,Amazon Business,20/02/2024,RS156939,14.16,0.00,"1 x BUSOHE Cat 8 Ethernet Cable 0.25m (10 Pack), High-Speed 40Gbps 2000MHz Network Cable Braided Flat Gigabit RJ45 STP Shielded Internet Lan Cable Cord Compatible for Xbox PS5/4 Modem Router PC.",Comp Hardware Purchases,
Wyre Council,http://opendatacommunities.org/doc/district-council/wyre,28/02/2024,Resources,Support Services,135B,Amazon Business,20/02/2024,RS156939,19.16,0.00,"1 X BUSOHE Cat 8 Ethernet Cable 1m (10 Pack), High-Speed 40Gbps 2000MHz Network Cable Braided Flat Gigabit Rj45 STP Shielded Internet Network Lan Cable Cord Compatible for Xbox PS5/4 Modem Router PC.",Comp Hardware Purchases,
Wyre Council,http://opendatacommunities.org/doc/district-council/wyre,28/02/2024,Resources,Support Services,135B,Amazon Business,26/02/2024,RS157061,14.16,0.00,"1 x TITANWOLF- Vertical Ergonomic USB Mouse Wired Optical Mouse, Mice with Ergonomic design, 6 Buttons 1600dpi prevention against mouse arm tennis elbow, For Laptop Desktop PC Computer Macbook",Comp Hardware Purchases,
Wyre Council,http://opendatacommunities.org/doc/district-council/wyre,28/02/2024,Resources,Support Services,135B,Amazon Business,05/02/2024,RS156422,57.20,0.00,"60 x Logitech M100 Wired USB Mouse 3 Buttons 1000 DPI Optical Tracking, For left and right handed users, Compatible with PC, Mac, Laptop - Black",Comp Hardware Purchases,
Wyre Council,http://opendatacommunities.org/doc/district-council/wyre,28/02/2024,Resources,Support Services,135B,Amazon Business,05/02/2024,RS156447,286.00,0.00,"60 x Logitech M100 Wired USB Mouse 3 Buttons 1000 DPI Optical Tracking, For left and right handed users, Compatible with PC, Mac, Laptop - Black",Comp Hardware Purchases,
Wyre Council,http://opendatacommunities.org/doc/district-council/wyre,28/02/2024,Resources,Support Services,135B,Amazon Business,26/02/2024,RS157057,187.35,0.00,"15 x USB C Plug, 3 Pack [MFi Certified] 20W USB C Fast Charger Plug for iPhone 15/14/13/12/11 Pro/Pro Max/XS Max/XS/XR/X/SE 2022/10/8, Galaxy, USB C PD 3.0 Wall Charger Plug UK Type C Power Adaptor.",Comp Hardware Purchases,
Wyre Council,http://opendatacommunities.org/doc/district-council/wyre,28/02/2024,Resources,Support Services,135B,Amazon Business,14/02/2024,RS156767,8.32,0.00,"1 x For Apple iPhone Charger 3Pack PD USB C Power Adapter with 3Pack Fast Charging Cabel, PD Wall Charger Plug and 3.3FT iPhone Charger Cables Compatible With iPhone14 13 12 11 Pro/Pro Max/Plus",Comp Hardware Purchases,
Wyre Council,http://opendatacommunities.org/doc/district-council/wyre,28/02/2024,Resources,Support Services,135B,Amazon Business,20/02/2024,RS156940,36.64,0.00,"2 x 40W USB Plug, 8-Port USB Charger Plug UK with LED Screen, Portable Multi USB Power Adapter, Charging Station for iPhone 15/14/Pro/Max/XR, iPad, Galaxy S21, Android and Tablet - White.",Comp Hardware Purchases,
Wyre Council,http://opendatacommunities.org/doc/district-council/wyre,28/02/2024,Resources,Support Services,135B,Amazon Business,12/02/2024,RS156371,9049.80,0.00,60 x Sam Galaxy A34 5G EE 128-6-5G-gy Sams Galaxy A34 5G EE 128GB/6GB graphite.,Comp Hardware Purchases,
Wyre Council,http://opendatacommunities.org/doc/district-council/wyre,28/02/2024,Resources,Support Services,135B,Amazon Business,06/02/2024,RS156450,-2399.80,0.00,20 xSamsung Galaxy A14 5G,Comp Hardware Purchases,
Wyre Council,http://opendatacommunities.org/doc/district-council/wyre,28/02/2024,Resources,Support Services,135B,Arthur J Gallagher Insurance Brokers Ltd,14/02/2024,RS156819,706.98,0.00,MTA addition of laptops,Computer Insurance,
Wyre Council,http://opendatacommunities.org/doc/district-council/wyre,28/02/2024,Resources,Support Services,135B,Amazon Business,05/02/2024,RS156463,14.74,0.00,"1 x SEYMCY for iPad 10th Generation Case 10.9 inch 2022, 3 Layer Full Body Drop Shockproof Case with Folding Stand, Screen Protector, Pencil Holder, iPad 10th Gen Case A2696/A2757/A2777, Black.",Computer Stationery and Consumables,
Wyre Council,http://opendatacommunities.org/doc/district-council/wyre,28/02/2024,Resources,Support Services,135B,Amazon Business,14/02/2024,RS156766,83.20,0.00,"10 x Jumkeet Laptop Stand,Foldable Portable Ventilated Desktop Laptop Holder,Universal Lightweight&Adjustable Ergonomic Tray Mount Compatible with iM(ac)/Laptop/Notebook Computer/Tablet (Black)",Computer Stationery and Consumables,
Wyre Council,http://opendatacommunities.org/doc/district-council/wyre,28/02/2024,Resources,Support Services,135B,Amazon Business,14/02/2024,RS156762,92.70,0.00,"20 x Targus Laptop Bag, Fits Laptop up to 16``, Case for Travel and Business, Padded Shoulder Strap, Front Storage Pocket - Black.",Computer Stationery and Consumables,
Wyre Council,http://opendatacommunities.org/doc/district-council/wyre,28/02/2024,Resources,Support Services,135B,Amazon Business,14/02/2024,RS156765,113.30,0.00,"20 x Targus Laptop Bag, Fits Laptop up to 16``, Case for Travel and Business, Padded Shoulder Strap, Front Storage Pocket - Black.",Computer Stationery and Consumables,
Wyre Council,http://opendatacommunities.org/doc/district-council/wyre,28/02/2024,Resources,Support Services,135B,Amazon Business,14/02/2024,RS156764,22.23,0.00,"3 x NULAXY Phone Stand, Fully Foldable Angle Height Adjustable Mobile Phone Holder Stand Dock Aluminum Desk Compatible with Phone 15 14 13 12 11 Pro Max XR X 8, HUAWEI, Galaxy, All Phones - Black.",Computer Stationery and Consumables,
Wyre Council,http://opendatacommunities.org/doc/district-council/wyre,28/02/2024,Resources,Support Services,135B,Amazon Business,13/02/2024,RS156683,52.44,0.00,"3 x Lamicall Tablet Stand, Adjustable Tablet Holder - Desktop Stand Dock Compatible with New iPad 2022 Pro 9.7, 10.5, 11, 12.9, Air mini 2 3 4 5 6, Switch, Samsung Tab, other Tablets - Silver.",Computer Stationery and Consumables,
Wyre Council,http://opendatacommunities.org/doc/district-council/wyre,28/02/2024,Resources,Support Services,135B,Amazon Business,20/02/2024,RS156932,10.82,0.00,"1 x Trust Primo Laptop Bag 16 Inch, Work Bag with Padded Interior, Adjustable Shoulder Strap, Dual Metal Zippers, Messenger Bag for Business, Notebooks, Macbook - Black.",Computer Stationery and Consumables,
Wyre Council,http://opendatacommunities.org/doc/district-council/wyre,28/02/2024,Resources,Support Services,135B,Redactive Events Ltd,07/02/2024,RS156546,595.00,0.00,CIPFA Conference 08/01/24,Conference and Seminars - Staff,
Wyre Council,http://opendatacommunities.org/doc/district-council/wyre,28/02/2024,People and Places,Support Services,135B,Lancashire County Council,12/02/2024,PE155656,1575.00,0.00,LCC Estates Support,Consultants Fees,
Wyre Council,http://opendatacommunities.org/doc/district-council/wyre,28/02/2024,People and Places,Cultural and Related Services,132A,Knight Kavanagh & Page,21/02/2024,PE156987,1715.00,0.00,"Utilities consultancy support for Wyre Council/Fylde Coast YMCA, supporting the 5 Leisure Centres and Swimming Pools to improve their energy efficiency",Consultants Fees,
Wyre Council,http://opendatacommunities.org/doc/district-council/wyre,28/02/2024,People and Places,Planning and Development Servs,132C,Duxburys Commercial,05/02/2024,PE156478,1250.00,0.00,Letting of former TIC Fleetwood FY7 6DL,Consultants Fees,
Wyre Council,http://opendatacommunities.org/doc/district-council/wyre,28/02/2024,Resources,Central Services to the Public,131C,Inform CPI,14/02/2024,RS156824,675.00,0.00,"RV Finder - 121 Victoria Rd West, 5/6 Millenium Court, Furness Drive",Consultants Fees,
Wyre Council,http://opendatacommunities.org/doc/district-council/wyre,28/02/2024,People and Places,Planning and Development Servs,132C,FAIRHURST,13/02/2024,PE156728,4462.50,0.00,Planning assistant work provided for Wyre Beach Management Scheme - D Waugh,Consultants Fees,
Wyre Council,http://opendatacommunities.org/doc/district-council/wyre,28/02/2024,People and Places,Environmental Services,132B,PS Research Ltd,08/02/2024,PE156571,3125.00,0.00,Climate Change Strategy Consultation,Consultants Fees,
Wyre Council,http://opendatacommunities.org/doc/district-council/wyre,28/02/2024,Resources,Support Services,135B,THE NETWORKING PEOPLE (TNP) LTD,07/02/2024,RS156492,1800.00,0.00,Block of 30 RMACs,Consultants Fees,
Wyre Council,http://opendatacommunities.org/doc/district-council/wyre,28/02/2024,People and Places,Planning and Development Servs,132C,AG & P Jackson,05/02/2024,PE156464,410.00,0.00,"Alan Jackson - Agricultural consultee fee, for planning application 23/01183/FUL, The Olde Shippon, Hales Hall, Drybread Lane, Out Rawcliffe, Preston, Lancashire, PR3 6TD",Consultants Fees,
Wyre Council,http://opendatacommunities.org/doc/district-council/wyre,28/02/2024,People and Places,Planning and Development Servs,132C,AG & P Jackson,20/02/2024,PE156937,470.00,0.00,"Alan Jackson - Agricultural consultee fees for planning application 23/01206/FUL - Merry Field, Garstang Road, Pilling,Preston, Lancashire, PR3 6AR",Consultants Fees,
Wyre Council,http://opendatacommunities.org/doc/district-council/wyre,28/02/2024,People and Places,Planning and Development Servs,132C,Jeremy Benn Associates Limited,07/02/2024,PE156545,6750.00,0.00,Fylde Coast Strategic Flood Risk Assessment (Level 1),Consultants Fees,
Wyre Council,http://opendatacommunities.org/doc/district-council/wyre,28/02/2024,People and Places,Planning and Development Servs,132C,Jeremy Benn Associates Limited,01/02/2024,PE156409,8256.00,0.00,Fylde Coast Strategic Flood Risk Assessment (Level 1),Consultants Fees,
Wyre Council,http://opendatacommunities.org/doc/district-council/wyre,28/02/2024,People and Places,Planning and Development Servs,132C,Justin Gardner Consulting,22/02/2024,PE157010,10827.50,0.00,Wyre Local Housing Needs Assessment,Consultants Fees,
Wyre Council,http://opendatacommunities.org/doc/district-council/wyre,28/02/2024,People and Places,"Cultural, Environ and Planning",137B,Fylde Borough Council,21/02/2024,PE156649,4187.00,0.00,Project Management Services for the Our Future Coast Scheme,Consultants Fees (New CCR),
Wyre Council,http://opendatacommunities.org/doc/district-council/wyre,28/02/2024,People and Places,"Cultural, Environ and Planning",137B,Halcrow Group LTD,01/02/2024,PE156404,3848.39,0.00,Current approved order based on agreed additional work. Authorised by Carl Green,Consultants Fees (New CCR),
Wyre Council,http://opendatacommunities.org/doc/district-council/wyre,28/02/2024,People and Places,"Cultural, Environ and Planning",137B,Halcrow Group LTD,01/02/2024,PE156421,3820.07,0.00,Current approved order based on agreed additional work. Authorised by Carl Green,Consultants Fees (New CCR),
Wyre Council,http://opendatacommunities.org/doc/district-council/wyre,28/02/2024,People and Places,"Cultural, Environ and Planning",137B,The Royal Venue,28/02/2024,PE157139,7500.00,0.00,"FAO Jakki SlackThe Venue North PromenadeThornton CleveleysLancashireFY5 1LW Car park mitigation measures at an agreed price of 15,000 per annum paid in 6 monthly instalments until completion of the Wyre Beach Management Scheme. Cost 15",Consultants Fees (New CCR),
Wyre Council,http://opendatacommunities.org/doc/district-council/wyre,28/02/2024,People and Places,"Cultural, Environ and Planning",137B,Purcell Architecture Limited,09/02/2024,PE156295,6281.25,0.00,"To professional services for Fleetwood Market Project, prolongation fees to end of Jan 24",Consultants Fees (New CCR),
Wyre Council,http://opendatacommunities.org/doc/district-council/wyre,28/02/2024,People and Places,"Cultural, Environ and Planning",137B,Susannah Bleakley Consulting,21/02/2024,PE156544,4300.70,0.00,Additional works for My Future Coast,Consultants Fees (New CCR),
Wyre Council,http://opendatacommunities.org/doc/district-council/wyre,28/02/2024,People and Places,Support Services,135B,Blackpool Skip Hire LTD,28/02/2024,PE157147,225.00,0.00,Empty skip Fleetwood Cemetery  21/2/24,Containers Skips and Hire,
Wyre Council,http://opendatacommunities.org/doc/district-council/wyre,28/02/2024,People and Places,Support Services,135B,Blackpool Skip Hire LTD,01/02/2024,PE156405,225.00,0.00,Empty skips at Cemeteries in Wyre,Containers Skips and Hire,
Wyre Council,http://opendatacommunities.org/doc/district-council/wyre,28/02/2024,People and Places,Support Services,135B,Blackpool Skip Hire LTD,22/02/2024,PE156997,225.00,0.00,Skip empty for Poulton Cemetery,Containers Skips and Hire,
Wyre Council,http://opendatacommunities.org/doc/district-council/wyre,28/02/2024,People and Places,Support Services,135B,Blackpool Skip Hire LTD,08/02/2024,PE156593,10.00,0.00,Empty of skips for Cemetries in Wyre,Containers Skips and Hire,
Wyre Council,http://opendatacommunities.org/doc/district-council/wyre,28/02/2024,People and Places,Support Services,135B,Blackpool Skip Hire LTD,08/02/2024,PE156593,150.00,0.00,Empty skips at Cemeteries in Wyre,Containers Skips and Hire,
Wyre Council,http://opendatacommunities.org/doc/district-council/wyre,28/02/2024,People and Places,"Cultural, Environ and Planning",137B,Allcool (NW) Ltd,13/02/2024,PE156761,3598.00,0.00,Provision of Air Conditioning Units to Wyre Council CCTV Control Room - Equipment and Installation Works to include: 1 x MSZ-AP71VGK-E1 - Wall mounted indoor unit + 1 x MUZ AP71VGK-E3 - Outdoor Condenser Unit,Contract (New CCR),
Wyre Council,http://opendatacommunities.org/doc/district-council/wyre,28/02/2024,People and Places,"Cultural, Environ and Planning",137B,Allcool (NW) Ltd,13/02/2024,PE156761,307.00,0.00,Decommission of redundant AC System,Contract (New CCR),
Wyre Council,http://opendatacommunities.org/doc/district-council/wyre,28/02/2024,Resources,"Cultural, Environ and Planning",137B,Lancashire County Council,12/02/2024,RS156685,76342.00,0.00,REPF - Business Grants - Sandhams,Contract (New CCR),
Wyre Council,http://opendatacommunities.org/doc/district-council/wyre,28/02/2024,People and Places,"Cultural, Environ and Planning",137B,Landscape Engineering LTD,05/02/2024,PE156457,2877.82,0.00,"Fleetwood HAZ - Custom House Square, payment of retention.",Contract (New CCR),
Wyre Council,http://opendatacommunities.org/doc/district-council/wyre,28/02/2024,People and Places,"Cultural, Environ and Planning",137B,F PARKINSON LTD,23/02/2024,PE157023,22029.27,0.00,Fleetwood Market Refurbishments Additional works b/f into main contract,Contract (New CCR),
Wyre Council,http://opendatacommunities.org/doc/district-council/wyre,28/02/2024,People and Places,"Cultural, Environ and Planning",137B,Balfour Beatty Civil Engineering Ltd,14/02/2024,PE156846,1590795.55,0.00,"FAO Chloe SumnerBalfour Beatty Civil Engineering LtdChaddock Lane WorsleyManchesterM28 1XYWyre Beach Management Scheme Phase 2 � Construction Works.Cost 35,601,957.69Carl Green / Mike Wilkinson",Contract (New CCR),
Wyre Council,http://opendatacommunities.org/doc/district-council/wyre,28/02/2024,Resources,Support Services,135B,PSTAX Consulting Limited,26/02/2024,RS157070,3350.00,0.00,2024/25 PSTax Club Subscription,Corporate and Professional Subscriptions,
Wyre Council,http://opendatacommunities.org/doc/district-council/wyre,28/02/2024,Resources,Support Services,135B,LG FUTURES LTD,26/02/2024,RS157080,7995.00,0.00,Collection Fund Suite 2024-25 Subscription,Corporate and Professional Subscriptions,
Wyre Council,http://opendatacommunities.org/doc/district-council/wyre,28/02/2024,People and Places,Support Services,135B,South Tyneside Council,20/02/2024,PE156922,500.00,0.00,2023/24 LGA Coastal SIG Subscription,Corporate and Professional Subscriptions,
Wyre Council,http://opendatacommunities.org/doc/district-council/wyre,28/02/2024,Finance,Current Assets,130B,,27/02/2024,WPST00134400,32493.83,0.00,23/02/24 Ctax Refunds,Council Tax Refunds,
Wyre Council,http://opendatacommunities.org/doc/district-council/wyre,28/02/2024,Finance,Current Assets,130B,,13/02/2024,WPST00133301,33844.17,0.00,09/02/24 Ctax Refunds,Council Tax Refunds,
Wyre Council,http://opendatacommunities.org/doc/district-council/wyre,28/02/2024,Finance,Current Assets,130B,,20/02/2024,WPST00133798,86342.84,0.00,16/02/24 NNDR Refunds,Council Tax Refunds,
Wyre Council,http://opendatacommunities.org/doc/district-council/wyre,28/02/2024,Finance,Current Assets,130B,,06/02/2024,WPST00132636,17902.38,0.00,02/02/24 Ctax Refunds,Council Tax Refunds,
Wyre Council,http://opendatacommunities.org/doc/district-council/wyre,28/02/2024,People and Places,Environmental Services,132B,EK Motors Factors LTD,09/02/2024,PE156637,26.12,0.00,Parts,Daywork Materials (Excl.Tyres),
Wyre Council,http://opendatacommunities.org/doc/district-council/wyre,28/02/2024,People and Places,Environmental Services,132B,EK Motors Factors LTD,09/02/2024,PE156637,26.12,0.00,Parts,Daywork Materials (Excl.Tyres),
Wyre Council,http://opendatacommunities.org/doc/district-council/wyre,28/02/2024,People and Places,Planning and Development Servs,132C,EK Motors Factors LTD,09/02/2024,PE156639,93.74,0.00,Parts,Daywork Materials (Excl.Tyres),
Wyre Council,http://opendatacommunities.org/doc/district-council/wyre,28/02/2024,People and Places,Planning and Development Servs,132C,EK Motors Factors LTD,09/02/2024,PE156638,182.36,0.00,Parts,Daywork Materials (Excl.Tyres),
Wyre Council,http://opendatacommunities.org/doc/district-council/wyre,28/02/2024,People and Places,Environmental Services,132B,EK Motors Factors LTD,09/02/2024,PE156629,6.82,0.00,Parts,Daywork Materials (Excl.Tyres),
Wyre Council,http://opendatacommunities.org/doc/district-council/wyre,28/02/2024,People and Places,Environmental Services,132B,EK Motors Factors LTD,09/02/2024,PE156633,14.12,0.00,Parts,Daywork Materials (Excl.Tyres),
Wyre Council,http://opendatacommunities.org/doc/district-council/wyre,28/02/2024,People and Places,Environmental Services,132B,EK Motors Factors LTD,09/02/2024,PE156630,36.64,0.00,Parts,Daywork Materials (Excl.Tyres),
Wyre Council,http://opendatacommunities.org/doc/district-council/wyre,28/02/2024,People and Places,Environmental Services,132B,EK Motors Factors LTD,09/02/2024,PE156635,445.02,0.00,Parts,Daywork Materials (Excl.Tyres),
Wyre Council,http://opendatacommunities.org/doc/district-council/wyre,28/02/2024,People and Places,Support Services,135B,EK Motors Factors LTD,09/02/2024,PE156616,70.48,0.00,Parts,Daywork Materials (Excl.Tyres),
Wyre Council,http://opendatacommunities.org/doc/district-council/wyre,28/02/2024,People and Places,Support Services,135B,EK Motors Factors LTD,09/02/2024,PE156619,29.56,0.00,Parts,Daywork Materials (Excl.Tyres),
Wyre Council,http://opendatacommunities.org/doc/district-council/wyre,28/02/2024,People and Places,Environmental Services,132B,EK Motors Factors LTD,09/02/2024,PE156637,26.12,0.00,Parts,Daywork Materials (Excl.Tyres),
Wyre Council,http://opendatacommunities.org/doc/district-council/wyre,28/02/2024,People and Places,Support Services,135B,EK Motors Factors LTD,09/02/2024,PE156627,22.59,0.00,Parts,Daywork Materials (Excl.Tyres),
Wyre Council,http://opendatacommunities.org/doc/district-council/wyre,28/02/2024,People and Places,Support Services,135B,EK Motors Factors LTD,09/02/2024,PE156618,56.85,0.00,Parts,Daywork Materials (Excl.Tyres),
Wyre Council,http://opendatacommunities.org/doc/district-council/wyre,28/02/2024,People and Places,Support Services,135B,EK Motors Factors LTD,09/02/2024,PE156617,107.72,0.00,Parts,Daywork Materials (Excl.Tyres),
Wyre Council,http://opendatacommunities.org/doc/district-council/wyre,28/02/2024,People and Places,Cultural and Related Services,132A,EK Motors Factors LTD,09/02/2024,PE156628,185.10,0.00,Parts,Daywork Materials (Excl.Tyres),
Wyre Council,http://opendatacommunities.org/doc/district-council/wyre,28/02/2024,People and Places,Support Services,135B,EK Motors Factors LTD,09/02/2024,PE156615,16.56,0.00,Parts,Daywork Materials (Excl.Tyres),
Wyre Council,http://opendatacommunities.org/doc/district-council/wyre,28/02/2024,People and Places,Environmental Services,132B,EK Motors Factors LTD,09/02/2024,PE156634,28.60,0.00,Parts,Daywork Materials (Excl.Tyres),
Wyre Council,http://opendatacommunities.org/doc/district-council/wyre,28/02/2024,People and Places,Environmental Services,132B,EK Motors Factors LTD,09/02/2024,PE156632,199.74,0.00,Parts,Daywork Materials (Excl.Tyres),
Wyre Council,http://opendatacommunities.org/doc/district-council/wyre,28/02/2024,People and Places,Environmental Services,132B,EK Motors Factors LTD,09/02/2024,PE156631,23.66,0.00,Parts,Daywork Materials (Excl.Tyres),
Wyre Council,http://opendatacommunities.org/doc/district-council/wyre,28/02/2024,People and Places,Support Services,135B,EK Motors Factors LTD,09/02/2024,PE156620,5.54,0.00,Parts,Daywork Materials (Excl.Tyres),
Wyre Council,http://opendatacommunities.org/doc/district-council/wyre,28/02/2024,People and Places,Support Services,135B,FR Sharrock LTD,22/02/2024,PE156970,764.10,0.00,Parts,Daywork Materials (Excl.Tyres),
Wyre Council,http://opendatacommunities.org/doc/district-council/wyre,28/02/2024,People and Places,Environmental Services,132B,Bucher Municipal Limited,09/02/2024,PE156599,448.30,0.00,Pump,Daywork Materials (Excl.Tyres),
Wyre Council,http://opendatacommunities.org/doc/district-council/wyre,28/02/2024,People and Places,Environmental Services,132B,Bucher Municipal Limited,15/02/2024,PE156753,37.98,0.00,Cap Expansion tank,Daywork Materials (Excl.Tyres),
Wyre Council,http://opendatacommunities.org/doc/district-council/wyre,28/02/2024,People and Places,Environmental Services,132B,Bucher Municipal Limited,09/02/2024,PE156473,155.30,0.00,Alternator,Daywork Materials (Excl.Tyres),
Wyre Council,http://opendatacommunities.org/doc/district-council/wyre,28/02/2024,People and Places,Environmental Services,132B,Bucher Municipal Limited,15/02/2024,PE156560,1788.39,0.00,Welding Assembly  Air Filters,Daywork Materials (Excl.Tyres),
Wyre Council,http://opendatacommunities.org/doc/district-council/wyre,28/02/2024,People and Places,Environmental Services,132B,Scarab Sweepers Ltd,28/02/2024,PE157131,1367.50,0.00,Parts for sweeper,Daywork Materials (Excl.Tyres),
Wyre Council,http://opendatacommunities.org/doc/district-council/wyre,28/02/2024,People and Places,Environmental Services,132B,Scarab Sweepers Ltd,09/02/2024,PE156605,624.60,0.00,Parts,Daywork Materials (Excl.Tyres),
Wyre Council,http://opendatacommunities.org/doc/district-council/wyre,28/02/2024,People and Places,Support Services,135B,Stuart Taylor International Ltd,16/02/2024,PE156843,1818.55,0.00,"Service, parts and labour",Daywork Materials (Excl.Tyres),
Wyre Council,http://opendatacommunities.org/doc/district-council/wyre,28/02/2024,People and Places,Support Services,135B,Amazon Business,22/02/2024,PE156967,49.92,0.00,light,Daywork Materials (Excl.Tyres),
Wyre Council,http://opendatacommunities.org/doc/district-council/wyre,28/02/2024,People and Places,Support Services,135B,Amazon Business,22/02/2024,PE156868,12.16,0.00,coil,Daywork Materials (Excl.Tyres),
Wyre Council,http://opendatacommunities.org/doc/district-council/wyre,28/02/2024,People and Places,Support Services,135B,Amazon Business,28/02/2024,PE157129,55.20,0.00,Trailers brackets,Daywork Materials (Excl.Tyres),
Wyre Council,http://opendatacommunities.org/doc/district-council/wyre,28/02/2024,People and Places,Environmental Services,132B,Hako Machines Limited,09/02/2024,PE156458,794.64,0.00,Hydraulic motor,Daywork Materials (Excl.Tyres),
Wyre Council,http://opendatacommunities.org/doc/district-council/wyre,28/02/2024,Resources,Support Services,135B,DISCLOSURE & BARRING SERVICE,14/02/2024,RS156531,706.18,0.00,PAM Monthly PAYG Charges - Invoice 0000139106,Disclosure and Barring Service Fee (CRB),
Wyre Council,http://opendatacommunities.org/doc/district-council/wyre,28/02/2024,Resources,Support Services,135B,DISCLOSURE & BARRING SERVICE,14/02/2024,RS156531,162.76,0.00,PAM Monthly PAYG Charges - Invoice 0000139106,Disclosure and Barring Service Fee (CRB),
Wyre Council,http://opendatacommunities.org/doc/district-council/wyre,28/02/2024,People and Places,Planning and Development Servs,132C,Blackpool Skip Hire LTD,14/02/2024,PE156818,212.40,0.00,"FAO Carl Commercial waste skiplink tip, REG: PO12 XLX,  Copse Road Depot, Copse Road, FleetwoodMixed waste To be taken by Wyre Council, Chris Somers to Blackpool Skip hire from Copse Road Depot Estimate of 300",Disposal Costs Industrial Waste,
Wyre Council,http://opendatacommunities.org/doc/district-council/wyre,28/02/2024,People and Places,Cultural and Related Services,132A,Carlsberg UK LTD,13/02/2024,PE156290,138.32,0.00,CO2 & Mixed gas,Drinks,
Wyre Council,http://opendatacommunities.org/doc/district-council/wyre,28/02/2024,People and Places,Cultural and Related Services,132A,Carlsberg UK LTD,13/02/2024,PE155609,172.90,0.00,CO2 & mixed gas,Drinks,
Wyre Council,http://opendatacommunities.org/doc/district-council/wyre,28/02/2024,People and Places,Cultural and Related Services,132A,Carlsberg UK LTD,28/02/2024,PE157007,359.49,0.00,Marine Hall Bar stock,Drinks,
Wyre Council,http://opendatacommunities.org/doc/district-council/wyre,28/02/2024,Resources,Current Assets,130B,Shaw & Sons LTD,19/02/2024,RS156921,1538.50,0.00,1 PCCSDBAG PRESIDING OFFICERS SUNDRIES BAGS (85 BAGS)POLICE & CRIME COMMISSION,Elect. - Other Costs,
Wyre Council,http://opendatacommunities.org/doc/district-council/wyre,28/02/2024,People and Places,Environmental Services,132B,N Power LTD,08/02/2024,PE156469,9.58,0.00,1610036002855 unmetered supply Civic Centre 01/01/24 to 31/01/24 (1.4 kWh,Electricity,
Wyre Council,http://opendatacommunities.org/doc/district-council/wyre,28/02/2024,People and Places,Environmental Services,132B,N Power LTD,08/02/2024,PE156468,371.71,0.00,1610036002846 Unmetered supply lighting 01/02/24 to 31/01/24 (1119.1 kWh),Electricity,
Wyre Council,http://opendatacommunities.org/doc/district-council/wyre,28/02/2024,People and Places,Parking Services,133F,N Power LTD,08/02/2024,PE156470,531.32,0.00,16200000821031 Unmetered supply lighting 01/01/24 to 31/01/24 (1487.8 kWh),Electricity,
Wyre Council,http://opendatacommunities.org/doc/district-council/wyre,28/02/2024,People and Places,Parking Services,133F,N Power LTD,08/02/2024,PE156469,53.74,0.00,1610036002855 unmetered supply Civic Centre 01/01/24 to 31/01/24(8.4 kWh),Electricity,
Wyre Council,http://opendatacommunities.org/doc/district-council/wyre,28/02/2024,People and Places,Parking Services,133F,N Power LTD,08/02/2024,PE156468,2084.65,0.00,1610036002846 Unmetered supply lighting 01/02/24 to 31/01/24 (6276.1 kWh),Electricity,
Wyre Council,http://opendatacommunities.org/doc/district-council/wyre,28/02/2024,People and Places,Cultural and Related Services,132A,N Power LTD,12/02/2024,PE156577,4004.85,0.00,"2500000676813 Swimming & Fitness Ctr, Breck Rd, Poulton, FY6 7HU 01/01/24 to 31/01/24 (13722 kWh)",Electricity,
Wyre Council,http://opendatacommunities.org/doc/district-council/wyre,28/02/2024,People and Places,Cultural and Related Services,132A,N Power LTD,12/02/2024,PE156578,1732.58,0.00,"1600000125794 Garstang Swimming Pool, Birch Rd, Preston, PR3 1WJ 01/01/24 to 31/01/24 (6639.3 kWh)",Electricity,
Wyre Council,http://opendatacommunities.org/doc/district-council/wyre,28/02/2024,People and Places,Cultural and Related Services,132A,N Power LTD,12/02/2024,PE156575,8119.50,0.00,"1600000162884 Fleetwood Leisure Centre, The Esplanade, Fleetwood, FY7 6HF 01/01/24 to 31/01/24 (33034.9 kWh)",Electricity,
Wyre Council,http://opendatacommunities.org/doc/district-council/wyre,28/02/2024,People and Places,Cultural and Related Services,132A,N Power LTD,12/02/2024,PE156576,7718.10,0.00,"2500000793090 Thornton Leisure Centre, Victoria Rd E, Thornton Cleveleys, FY5 3SX 01/01/24 to 31/01/24 (28686.7 kWh)",Electricity,
Wyre Council,http://opendatacommunities.org/doc/district-council/wyre,28/02/2024,People and Places,Cultural and Related Services,132A,N Power LTD,12/02/2024,PE156579,1282.40,0.00,"1610023220857 YMCA Garstang Leisure Centre, Windsor Rd, Garstang, PR3 1ED 01/01/24 to 31/01/24 (4254.2 kWh)",Electricity,
Wyre Council,http://opendatacommunities.org/doc/district-council/wyre,28/02/2024,People and Places,Central Services to the Public,131C,OPUS Energy LTD,05/02/2024,PE155975,1543.18,0.00,1610004322012 WRVS Teanlowe Day Centre Queensway Poulton FY6 7ST01/12/23-31/12/235177.00 Kwh,Electricity,
Wyre Council,http://opendatacommunities.org/doc/district-council/wyre,28/02/2024,People and Places,Cultural and Related Services,132A,OPUS Energy LTD,14/02/2024,PE156708,522.44,0.00,"Electricity charges for 1640000960322 The Mount Lodge, The Esplanade, Fleetwood FY7 6EZ01/01/24-31/01/241846.00 kWh used",Electricity,
Wyre Council,http://opendatacommunities.org/doc/district-council/wyre,28/02/2024,People and Places,Cultural and Related Services,132A,OPUS Energy LTD,05/02/2024,PE155986,473.06,0.00,"1640000960322 The Mount Lodge, The Esplanade, Fleetwood FY7 6EZ01/12/23-31/12/231667.00 kWh",Electricity,
Wyre Council,http://opendatacommunities.org/doc/district-council/wyre,28/02/2024,People and Places,Cultural and Related Services,132A,OPUS Energy LTD,05/02/2024,PE155980,584.23,0.00,1610004742404 River Road Thornton Cleveleys FY5 5LR01/12/23-31/12/232047.00 kWh,Electricity,
Wyre Council,http://opendatacommunities.org/doc/district-council/wyre,28/02/2024,People and Places,Environmental Services,132B,OPUS Energy LTD,05/02/2024,PE155976,46.15,0.00,"1610004421042 New Lane Pumping Station 1, New Lane Thornton Cleveleys FY5 5NS 01/12/23-31/12/239.00 kWh",Electricity,
Wyre Council,http://opendatacommunities.org/doc/district-council/wyre,28/02/2024,People and Places,Environmental Services,132B,OPUS Energy LTD,05/02/2024,PE155977,21.43,0.00,"1610004421200 New Lane Pumping Station 2,New Lane, Thornton FY5 5NH01/12/23-31/12/2330.00 kWh",Electricity,
Wyre Council,http://opendatacommunities.org/doc/district-council/wyre,28/02/2024,People and Places,Cultural and Related Services,132A,OPUS Energy LTD,05/02/2024,PE155974,47.39,0.00,"1610004318841 Jean Stansfield Bowling Green, Vicarage Road Poulton FY6 7BE01/12/23-31/12/23124.00",Electricity,
Wyre Council,http://opendatacommunities.org/doc/district-council/wyre,28/02/2024,People and Places,Cultural and Related Services,132A,OPUS Energy LTD,05/02/2024,PE155979,58.96,0.00,"1610004724089 North Drive Pavilion, North Drive, Thornton FY5 2QD01/12/23-31/12/23166.00 kWh",Electricity,
Wyre Council,http://opendatacommunities.org/doc/district-council/wyre,28/02/2024,People and Places,Cultural and Related Services,132A,OPUS Energy LTD,05/02/2024,PE155972,6.57,0.00,"1610004305443 Blackpool Old Road, Sports Pavilion, Cottam Hall FY6 7RH01/12/23-31/12/230.00",Electricity,
Wyre Council,http://opendatacommunities.org/doc/district-council/wyre,28/02/2024,People and Places,Cultural and Related Services,132A,OPUS Energy LTD,05/02/2024,PE155983,843.27,0.00,"1610004773866 Thornton Little Theatre, Fleetwood Road Thornton FY5 4AD 01/12/23-31/12/232640.00 KWH",Electricity,
Wyre Council,http://opendatacommunities.org/doc/district-council/wyre,28/02/2024,People and Places,Environmental Services,132B,OPUS Energy LTD,05/02/2024,PE155978,430.45,0.00,"1610004665168 Public Conveniences, Cleveleys Bus Station, Rough Lea Road FY5 1BW01/12/23-31/12/231402.00 kWh",Electricity,
Wyre Council,http://opendatacommunities.org/doc/district-council/wyre,28/02/2024,People and Places,Environmental Services,132B,OPUS Energy LTD,05/02/2024,PE155973,395.96,0.00,1610004313728 Queensway Public Conveniences Teanlowe Centre Poulton FY6 7DF01/12/23-31/12/231277.00,Electricity,
Wyre Council,http://opendatacommunities.org/doc/district-council/wyre,28/02/2024,People and Places,Environmental Services,132B,OPUS Energy LTD,05/02/2024,PE155985,100.87,0.00,"1610023232505 Public Conveniences, High Street Car Park, Garstang PR3 1FA 01/12/23-31/12/23213.00 kWh",Electricity,
Wyre Council,http://opendatacommunities.org/doc/district-council/wyre,28/02/2024,People and Places,Environmental Services,132B,OPUS Energy LTD,05/02/2024,PE155981,226.57,0.00,"16100047442413 Stanah Pumphouse 11, River Road, Thornton Cleveleys FY5 5LR01/12/23-31/12/23663.00 kWh",Electricity,
Wyre Council,http://opendatacommunities.org/doc/district-council/wyre,28/02/2024,People and Places,Cultural and Related Services,132A,OPUS Energy LTD,05/02/2024,PE155987,16.30,0.00,"1630000861704 North Promenade Kiosk, Childrens Corner, Thornton Cleveleys FY5 1DB01/12/23-31/12/230.00 kWh",Electricity,
Wyre Council,http://opendatacommunities.org/doc/district-council/wyre,28/02/2024,People and Places,Cultural and Related Services,132A,OPUS Energy LTD,05/02/2024,PE155984,134.41,0.00,"1610004863632 Beach Bungalows, The Esplanade, Fleetwood FY7 6QD 01/12/23-31/12/23432.00 kWh",Electricity,
Wyre Council,http://opendatacommunities.org/doc/district-council/wyre,28/02/2024,People and Places,Environmental Services,132B,Corona Energy Retail 4 Limited,13/02/2024,PE156612,272.77,0.00,1600000023675 Royles Brook Pumping Station  Off Victoria Road East Thornton FY55OX 01/01/24 to 31/01/24 (769kWh),Electricity,
Wyre Council,http://opendatacommunities.org/doc/district-council/wyre,28/02/2024,People and Places,Cultural and Related Services,132A,Corona Energy Retail 4 Limited,13/02/2024,PE156608,9442.90,0.00,1600000162875 Marine Hall The Esplanade  Fleetwood FY76HF 01/01/24 to 31/01/24 (24251kWh),Electricity,
Wyre Council,http://opendatacommunities.org/doc/district-council/wyre,28/02/2024,People and Places,Cultural and Related Services,132A,Corona Energy Retail 4 Limited,13/02/2024,PE156609,1259.06,0.00,1630000670291 Promenade Cafe North  Promenade Thornton-Cleveleys FY51DB 01/01/24 to 31/01/24 (3386kWh),Electricity,
Wyre Council,http://opendatacommunities.org/doc/district-council/wyre,28/02/2024,People and Places,Support Services,135B,Corona Energy Retail 4 Limited,13/02/2024,PE156607,15707.79,0.00,1600000162857 Civic Centre Breck Road  Blackpool FY39DT 01/01/24 to 31/01/24 (43837kWh),Electricity,
Wyre Council,http://opendatacommunities.org/doc/district-council/wyre,28/02/2024,People and Places,Planning and Development Servs,132C,Corona Energy Retail 4 Limited,13/02/2024,PE156606,804.01,0.00,1620000784666 Main Hall Adelaide Street  Fleetwood FY76AB 01/01/24 to 31/01/24 (0kWh),Electricity,
Wyre Council,http://opendatacommunities.org/doc/district-council/wyre,28/02/2024,People and Places,Cultural and Related Services,132A,Corona Energy Retail 4 Limited,13/02/2024,PE156611,386.68,0.00,1640000233705 Coastal Observation Point  Rossal Point Fleetwood FY78AF 01/01/24 to 31/01/24 (1049kWh),Electricity,
Wyre Council,http://opendatacommunities.org/doc/district-council/wyre,28/02/2024,People and Places,Planning and Development Servs,132C,Corona Energy Retail 4 Limited,13/02/2024,PE156610,2893.67,0.00,1640000184606 Council Depot Copse Road  Fleetwood FY76RP 01/01/24 to 31/01/24 (7948kWh),Electricity,
Wyre Council,http://opendatacommunities.org/doc/district-council/wyre,28/02/2024,People and Places,Cultural and Related Services,132A,Corona Energy Retail 4 Limited,13/02/2024,PE156613,233.36,0.00,"165000008330 Mount Pavilion, Fleetwood, FY7 6EX 01/01/24 to 01/02/24 R (344kWh)",Electricity,
Wyre Council,http://opendatacommunities.org/doc/district-council/wyre,28/02/2024,People and Places,Environmental Services,132B,Engie Power Limited,20/02/2024,PE156321,132.03,0.00,"1610004845322 PC, Beach Rd, Fleetwood, FY7  8PH 01/04/23 to 30/04/23 (170.6) E",Electricity,
Wyre Council,http://opendatacommunities.org/doc/district-council/wyre,28/02/2024,People and Places,Cultural and Related Services,132A,Engie Power Limited,05/02/2024,PE156100,533.59,0.00,"1610004890636 Fishermans Walk, Lord St,  Fleetwood, FY7 6DU 01/12/23 to 31/12/23 (1261.9kWh) E",Electricity,
Wyre Council,http://opendatacommunities.org/doc/district-council/wyre,28/02/2024,People and Places,Cultural and Related Services,132A,Engie Power Limited,23/02/2024,PE156802,586.74,0.00,"1610004890636 Fishermans Walk,  Lord St, Fleetwood, FY7 6DU 01/01/24 to 31/01/24 (1407.7kWh) E",Electricity,
Wyre Council,http://opendatacommunities.org/doc/district-council/wyre,28/02/2024,People and Places,Cultural and Related Services,132A,Engie Power Limited,23/02/2024,PE156776,284.86,0.00,"1640000118533 Feeder Pillar,  Vicarage Rd, Poulton le Fylde, FY6 7BE 01/01/24 to 31/01/24 (721kWh) A",Electricity,
Wyre Council,http://opendatacommunities.org/doc/district-council/wyre,28/02/2024,People and Places,Cultural and Related Services,132A,Engie Power Limited,02/02/2024,PE156074,284.30,0.00,"1640000118533 Feeder Pillar, Vicarage Rd,  Poulton le Fylde, FY6 7BE 01/12/23 to 31/12/23 (719.3kWh) A",Electricity,
Wyre Council,http://opendatacommunities.org/doc/district-council/wyre,28/02/2024,People and Places,Cultural and Related Services,132A,Engie Power Limited,05/02/2024,PE156096,106.24,0.00,"1610004932427 King Georges Field,  Boradwater, Fleetwood Road, Fleetwood, Lancashire, FY7 8BD 01/12/23 to  31/12/23 (124.1kWh) E",Electricity,
Wyre Council,http://opendatacommunities.org/doc/district-council/wyre,28/02/2024,People and Places,Cultural and Related Services,132A,Engie Power Limited,20/02/2024,PE156327,92.06,0.00,"1610004932427 King Georges Field,  Boradwater, Fleetwood Road, Fleetwood, Lancashire, FY7 8BD 01/05/23 to  31/05/23 (70.3) E",Electricity,
Wyre Council,http://opendatacommunities.org/doc/district-council/wyre,28/02/2024,People and Places,Cultural and Related Services,132A,Engie Power Limited,23/02/2024,PE156798,109.09,0.00,"1610004932427 King Georges  Field, Boradwater, Fleetwood Road, Fleetwood, Lancashire, FY7 8BD 01/01/24 to  31/01/24 (134.9kWh) E",Electricity,
Wyre Council,http://opendatacommunities.org/doc/district-council/wyre,28/02/2024,People and Places,Environmental Services,132B,Engie Power Limited,05/02/2024,PE156107,112.75,0.00,"1620001343345 PC, Thornton Centre, Victoria  Rd East, FY5 5DZ 01/12/23 to 31/12/23 (109.9kWh) A",Electricity,
Wyre Council,http://opendatacommunities.org/doc/district-council/wyre,28/02/2024,People and Places,Environmental Services,132B,Engie Power Limited,05/02/2024,PE156109,298.19,0.00,"1630000740099 PC, Wyreside, Knott End on  Sea, FY6 0AA 01/12/23 to 31/12/23 (629.6kWh) E",Electricity,
Wyre Council,http://opendatacommunities.org/doc/district-council/wyre,28/02/2024,People and Places,Environmental Services,132B,Engie Power Limited,20/02/2024,PE156329,132.78,0.00,"1630000819048 Public Conveniences,  Cherestanc Square, Garstang, Lancashire, PR3 1EF 01/04/23 to 30/04/23 (172.7)  E",Electricity,
Wyre Council,http://opendatacommunities.org/doc/district-council/wyre,28/02/2024,People and Places,Environmental Services,132B,Engie Power Limited,20/02/2024,PE156317,124.02,0.00,"1640000258365 PC, River Road, Thornton  Cleveleys, FY5 5LR 01/04/23 to 30/04/23 (233.8) E",Electricity,
Wyre Council,http://opendatacommunities.org/doc/district-council/wyre,28/02/2024,People and Places,Environmental Services,132B,Engie Power Limited,20/02/2024,PE156322,211.69,0.00,"1610004846520 Boating Lake Toilets,  Laidleys Walk, Fleetwood, FY7 7HU 01/05/23 to 31/05/23 (387.2) E",Electricity,
Wyre Council,http://opendatacommunities.org/doc/district-council/wyre,28/02/2024,People and Places,Environmental Services,132B,Engie Power Limited,05/02/2024,PE156092,249.91,0.00,"1610023195261 PC, Smallwood Hey, Pilling,  Preston, PR3 6HJ 01/12/23 to 31/12/23 (494.3kWh) E",Electricity,
Wyre Council,http://opendatacommunities.org/doc/district-council/wyre,28/02/2024,People and Places,Environmental Services,132B,Engie Power Limited,05/02/2024,PE156091,161.90,0.00,"1610023169146 Public Conveniences, Barton  Square, Knott End on Sea, Lancashire, FY6 0AG 01/12/23 to 31/12/23 (258.2kWh)  E",Electricity,
Wyre Council,http://opendatacommunities.org/doc/district-council/wyre,28/02/2024,People and Places,Environmental Services,132B,Engie Power Limited,05/02/2024,PE156099,139.04,0.00,"1610004885487 PC, Preston St, Fleetwood,  FY7 6JA 01/12/23 to 31/12/23 (183.6kWh) E",Electricity,
Wyre Council,http://opendatacommunities.org/doc/district-council/wyre,28/02/2024,People and Places,Environmental Services,132B,Engie Power Limited,05/02/2024,PE156093,323.06,0.00,"1610023251891 PC, Gubberford Lane, Scorton,  PR3 1BL 01/12/23 to 31/12/23 (699.3kWh) E",Electricity,
Wyre Council,http://opendatacommunities.org/doc/district-council/wyre,28/02/2024,People and Places,Cultural and Related Services,132A,Engie Power Limited,28/02/2024,PE156809,99.30,0.00,"1640000004924 Feeder Pillar,  Hawthorne Park, Hawthorne Rd, Thornton Cleveleys, FY5 5DH 01/01/24 to  31/01/24 (69.9kWh) A",Electricity,
Wyre Council,http://opendatacommunities.org/doc/district-council/wyre,28/02/2024,People and Places,Cultural and Related Services,132A,Engie Power Limited,20/02/2024,PE156146,100.03,0.00,"1640000004924 Fedder Pillar, Hawthorne Park, Thornton-Cleveleys, FY5 5DH 01/12/23 to 31/12/23 (71.9kWh)",Electricity,
Wyre Council,http://opendatacommunities.org/doc/district-council/wyre,28/02/2024,People and Places,Cultural and Related Services,132A,Engie Power Limited,20/02/2024,PE156144,95.16,0.00,"1640000004924 Fedder Pillar, Hawthorne Park, Hawthorne Rd, Thornton-Cleveleys, FY5 5DH 01/11/23 to 30/11/23 (65.1kWh)",Electricity,
Wyre Council,http://opendatacommunities.org/doc/district-council/wyre,28/02/2024,People and Places,Cultural and Related Services,132A,Engie Power Limited,23/02/2024,PE156804,74.17,0.00,"1610004863776 Tourist  Information Office, The Esplanade, Fleetwood, FY7 6DL 01/01/24 to 31/01/24  (1.8kWh) A",Electricity,
Wyre Council,http://opendatacommunities.org/doc/district-council/wyre,28/02/2024,People and Places,Cultural and Related Services,132A,Engie Power Limited,05/02/2024,PE156102,77.42,0.00,"1610004863776 Tourist Information Office,  The Esplanade, Fleetwood, FY7 6DL 01/12/23 to 31/12/23 (10.9kWh) E",Electricity,
Wyre Council,http://opendatacommunities.org/doc/district-council/wyre,28/02/2024,People and Places,Planning and Development Servs,132C,Engie Power Limited,02/02/2024,PE156073,383.58,0.00,"1640000947145 Kiosk 2, Fleetwood Market,  Adelaie St, Fleetwood, FY7 6AB 01/12/23 to 31/12/23 (1023kWh) A",Electricity,
Wyre Council,http://opendatacommunities.org/doc/district-council/wyre,28/02/2024,People and Places,Planning and Development Servs,132C,Engie Power Limited,02/02/2024,PE156072,58.17,0.00,"1640000947136 Kiosk 1, Fleetwood Market,  Adelaide St, Fleetwood, FY7 6AB 01/12/23 to 31/12/23 (27.5kWh) A",Electricity,
Wyre Council,http://opendatacommunities.org/doc/district-council/wyre,28/02/2024,People and Places,Planning and Development Servs,132C,Engie Power Limited,02/02/2024,PE156077,65.33,0.00,"1640000947206 Kiosk 8, Fleetwood Market,  Adelaide St, Fleetwood, FY7 6AB 01/12/23 to 31/12/23 (49.4kWh) A",Electricity,
Wyre Council,http://opendatacommunities.org/doc/district-council/wyre,28/02/2024,People and Places,Cultural and Related Services,132A,Engie Power Limited,23/02/2024,PE156791,112.07,0.00,"1610004775074 The Windmill,  Fleetwood Rd North, Thornton Cleveleys, FY5 4BP 01/01/24 to 31/01/24 (108kWh)  A",Electricity,
Wyre Council,http://opendatacommunities.org/doc/district-council/wyre,28/02/2024,People and Places,Cultural and Related Services,132A,Engie Power Limited,02/02/2024,PE156085,380.08,0.00,"1610004775083 The Windmill, Fleetwood Road  North, Thornton Cleveleys, FY5 4BP 01/12/23 to 31/12/23 (1129.7kWh) A",Electricity,
Wyre Council,http://opendatacommunities.org/doc/district-council/wyre,28/02/2024,People and Places,Cultural and Related Services,132A,Engie Power Limited,20/02/2024,PE156326,111.14,0.00,"1610004775074 The Windmill, Fleetwood Rd  North, Thornton Cleveleys, FY5 4BP 01/05/23 to 31/05/23 (105.4) A",Electricity,
Wyre Council,http://opendatacommunities.org/doc/district-council/wyre,28/02/2024,People and Places,Environmental Services,132B,Engie Power Limited,05/02/2024,PE156086,500.09,0.00,"1610004828771 Council Depot, Chatsworth Day  Centre, Chatsworth Ave, Fleetwood, FY7 8AP 01/12/23 to 31/12/23 (1170kWh) E",Electricity,
Wyre Council,http://opendatacommunities.org/doc/district-council/wyre,28/02/2024,People and Places,Environmental Services,132B,Engie Power Limited,23/02/2024,PE156788,575.44,0.00,"1610004828771 Council Depot,  Chatsworth Day Centre, Chatsworth Ave, Fleetwood, FY7 8AP 01/01/24 to  31/01/24 (1376.7kWh) E",Electricity,
Wyre Council,http://opendatacommunities.org/doc/district-council/wyre,28/02/2024,People and Places,Environmental Services,132B,Engie Power Limited,23/02/2024,PE156793,170.22,0.00,"1610023169146 Public  Conveniences, Barton Square, Knott End on Sea, Lancashire, FY6 0AG 01/01/24  to 31/01/24 (282.5kWh) E",Electricity,
Wyre Council,http://opendatacommunities.org/doc/district-council/wyre,28/02/2024,People and Places,Environmental Services,132B,Engie Power Limited,23/02/2024,PE156792,236.17,0.00,"1610013371994 PC, The Weind,  Great Eccleston, PR3 0ZU 01/01/24 to 31/01/24 (455.8kWh) E",Electricity,
Wyre Council,http://opendatacommunities.org/doc/district-council/wyre,28/02/2024,People and Places,Environmental Services,132B,Engie Power Limited,23/02/2024,PE156801,146.61,0.00,"1610004885487 PC, Preston St,  Fleetwood, FY7 6JA 01/01/24 to 31/01/24 (204.8kWh) E",Electricity,
Wyre Council,http://opendatacommunities.org/doc/district-council/wyre,28/02/2024,People and Places,Environmental Services,132B,Engie Power Limited,23/02/2024,PE156813,159.88,0.00,"1630000819048 Public  Conveniences, Cherestanc Square, Garstang, Lancashire, PR3 1EF 01/01/24 to  31/01/24 (242kWh) E",Electricity,
Wyre Council,http://opendatacommunities.org/doc/district-council/wyre,28/02/2024,People and Places,Environmental Services,132B,Engie Power Limited,23/02/2024,PE156812,324.16,0.00,"1630000740099 PC, Wyreside,  Knott End on Sea, FY6 0AA 01/01/24 to 31/01/24 (702.4kWh) E",Electricity,
Wyre Council,http://opendatacommunities.org/doc/district-council/wyre,28/02/2024,People and Places,Environmental Services,132B,Engie Power Limited,23/02/2024,PE156811,261.72,0.00,"1630000584632 PC, rear of Tesco,  Rough Lea Rd, Thornton Cleveleys, FY5 1BW 01/01/24 to 31/01/24 (527.4kWh) E",Electricity,
Wyre Council,http://opendatacommunities.org/doc/district-council/wyre,28/02/2024,People and Places,Environmental Services,132B,Engie Power Limited,23/02/2024,PE156810,114.10,0.00,"1620001343345 PC, Thornton  Centre, Victoria Rd East, FY5 5DZ 01/01/24 to 31/01/24 (113.7kWh) A",Electricity,
Wyre Council,http://opendatacommunities.org/doc/district-council/wyre,28/02/2024,People and Places,Environmental Services,132B,Engie Power Limited,02/02/2024,PE156083,150.00,0.00,"1610004845322 PC, Beach Rd, Fleetwood, FY7  8PH 01/12/23 to 31/12/23 (214.3kWh) E",Electricity,
Wyre Council,http://opendatacommunities.org/doc/district-council/wyre,28/02/2024,People and Places,Environmental Services,132B,Engie Power Limited,02/02/2024,PE156075,192.32,0.00,"1640000218200 PC, Bold St, Fleetwood, FY7  6BW 01/12/23 to 31/12/23 (437.9kWh) E",Electricity,
Wyre Council,http://opendatacommunities.org/doc/district-council/wyre,28/02/2024,People and Places,Environmental Services,132B,Engie Power Limited,02/02/2024,PE156070,145.18,0.00,"1640000258365 PC, River Road, Thornton  Cleveleys, FY5 5LR 01/12/23 to 31/12/23 (293.7kWh) E",Electricity,
Wyre Council,http://opendatacommunities.org/doc/district-council/wyre,28/02/2024,People and Places,Environmental Services,132B,Engie Power Limited,23/02/2024,PE156795,351.89,0.00,"1610023251891 PC, Gubberford  Lane, Scorton, PR3 1BL 01/01/24 to 31/01/24 (780.1kWh) E",Electricity,
Wyre Council,http://opendatacommunities.org/doc/district-council/wyre,28/02/2024,People and Places,Environmental Services,132B,Engie Power Limited,23/02/2024,PE156794,270.28,0.00,"1610023195261 PC, Smallwood Hey,  Pilling, Preston, PR3 6HJ 01/01/24 to 31/01/24 (551.4kWh) E",Electricity,
Wyre Council,http://opendatacommunities.org/doc/district-council/wyre,28/02/2024,People and Places,Environmental Services,132B,Engie Power Limited,23/02/2024,PE156777,208.86,0.00,"1640000218200 PC, Bold St,  Fleetwood, FY7 6BW 01/01/24 to 31/01/24 (488.5kWh) E",Electricity,
Wyre Council,http://opendatacommunities.org/doc/district-council/wyre,28/02/2024,People and Places,Environmental Services,132B,Engie Power Limited,23/02/2024,PE156784,158.85,0.00,"1610004845322 PC, Beach Rd,  Fleetwood, FY7 8PH 01/01/24 to 31/01/24 (239.1kWh) E",Electricity,
Wyre Council,http://opendatacommunities.org/doc/district-council/wyre,28/02/2024,People and Places,Environmental Services,132B,Engie Power Limited,23/02/2024,PE156772,156.26,0.00,"1640000258365 PC, River Road,  Thornton Cleveleys, FY5 5LR 01/01/24 to 31/01/24 (327.6kWh) E",Electricity,
Wyre Council,http://opendatacommunities.org/doc/district-council/wyre,28/02/2024,People and Places,Environmental Services,132B,Engie Power Limited,05/02/2024,PE156090,219.33,0.00,"1610013371994 PC, The Weind, Great  Eccleston, PR3 0ZU 01/12/23 to 31/12/23 (408.6kWh) E",Electricity,
Wyre Council,http://opendatacommunities.org/doc/district-council/wyre,28/02/2024,People and Places,Environmental Services,132B,Engie Power Limited,05/02/2024,PE156108,242.24,0.00,"1630000584632 PC, rear of Tesco, Rough Lea  Rd, Thornton Cleveleys, FY5 1BW 01/12/23 to 31/12/23 (472.8kWh) E",Electricity,
Wyre Council,http://opendatacommunities.org/doc/district-council/wyre,28/02/2024,People and Places,Environmental Services,132B,Engie Power Limited,05/02/2024,PE156110,150.96,0.00,"1630000819048 Public Conveniences,  Cherestanc Square, Garstang, Lancashire, PR3 1EF 01/12/23 to 31/12/23  (217kWh) E",Electricity,
Wyre Council,http://opendatacommunities.org/doc/district-council/wyre,28/02/2024,People and Places,Planning and Development Servs,132C,Engie Power Limited,23/02/2024,PE156768,58.14,0.00,"1640000947154 Kiosk 3, Fleetwood  Market, Adelaide St, Fleetwood, FY7 6AB 01/01/24 to 31/01/24 (27.4kWh) A",Electricity,
Wyre Council,http://opendatacommunities.org/doc/district-council/wyre,28/02/2024,People and Places,Planning and Development Servs,132C,Engie Power Limited,23/02/2024,PE156780,68.76,0.00,"1640000947215 Landlord Supply,  Fleetwood Market, Adelaide St, Fleetwood, FY7 6AB 01/01/24 to 31/01/24  (59.9kWh) A",Electricity,
Wyre Council,http://opendatacommunities.org/doc/district-council/wyre,28/02/2024,People and Places,Planning and Development Servs,132C,Engie Power Limited,23/02/2024,PE156779,60.29,0.00,"1640000947206 Kiosk 8, Fleetwood  Market, Adelaide St, Fleetwood, FY7 6AB 01/01/24 to 31/01/24 (34kWh) A",Electricity,
Wyre Council,http://opendatacommunities.org/doc/district-council/wyre,28/02/2024,People and Places,Planning and Development Servs,132C,Engie Power Limited,23/02/2024,PE156778,255.21,0.00,"1640000947190 Kiosk 7, Fleetwood  Market, Adelaide St, Fleetwood, FY7 6AB 01/01/24 to 31/01/24 (630.3kWh) A",Electricity,
Wyre Council,http://opendatacommunities.org/doc/district-council/wyre,28/02/2024,People and Places,Planning and Development Servs,132C,Engie Power Limited,23/02/2024,PE156775,401.54,0.00,"1640000947145 Kiosk 2, Fleetwood  Market, Adelaie St, Fleetwood, FY7 6AB 01/01/24 to 31/01/24 (1053kWh) A",Electricity,
Wyre Council,http://opendatacommunities.org/doc/district-council/wyre,28/02/2024,People and Places,Planning and Development Servs,132C,Engie Power Limited,23/02/2024,PE156774,63.33,0.00,"1640000947136 Kiosk 1, Fleetwood  Market, Adelaide St, Fleetwood, FY7 6AB 01/01/24 to 31/01/24 (43.3kWh) A",Electricity,
Wyre Council,http://opendatacommunities.org/doc/district-council/wyre,28/02/2024,People and Places,Planning and Development Servs,132C,Engie Power Limited,23/02/2024,PE156771,55.13,0.00,"1640000947172 Kiosk 5, Fleetwood  Market, Adelaide St, Fleetwood, FY7 6AB 01/01/24 to 31/01/24 (18.2kWh) A",Electricity,
Wyre Council,http://opendatacommunities.org/doc/district-council/wyre,28/02/2024,People and Places,Planning and Development Servs,132C,Engie Power Limited,23/02/2024,PE156770,61.08,0.00,"1640000947181 Kiosk 6, Fleetwood  Market, Adelaide St, Fleetwood, FY7 6AB 01/01/24 to 31/01/24 (36.4kWh) A",Electricity,
Wyre Council,http://opendatacommunities.org/doc/district-council/wyre,28/02/2024,People and Places,Planning and Development Servs,132C,Engie Power Limited,23/02/2024,PE156769,68.92,0.00,"1640000947163 Kiosk 4, Fleetwood  Market, Adelaide St, Fleetwood, FY7 6AB 01/01/24 to 31/01/24 (60.4kWh) A",Electricity,
Wyre Council,http://opendatacommunities.org/doc/district-council/wyre,28/02/2024,People and Places,Cultural and Related Services,132A,Engie Power Limited,23/02/2024,PE156786,73.78,0.00,"1610004846502 Valve House,  Marine Lake, Laidleys Walk, Fleetwood, FY7 7JL 01/01/24 to 31/01/24 (0.7kWh)  E",Electricity,
Wyre Council,http://opendatacommunities.org/doc/district-council/wyre,28/02/2024,People and Places,Cultural and Related Services,132A,Engie Power Limited,23/02/2024,PE156782,374.51,0.00,"1610004863605 Central Toilets  Kiosk, The Esplanade, Fleetwood, FY7 7BE 01/01/24 to 31/01/24 (843.5kWh) A",Electricity,
Wyre Council,http://opendatacommunities.org/doc/district-council/wyre,28/02/2024,People and Places,Cultural and Related Services,132A,Engie Power Limited,23/02/2024,PE156781,194.60,0.00,"1610004846558 Pump Station, The  Esplanade, Fleetwood, FY7 6HF 01/01/24 to 31/01/24 (339.3kWh) A",Electricity,
Wyre Council,http://opendatacommunities.org/doc/district-council/wyre,28/02/2024,People and Places,Cultural and Related Services,132A,Engie Power Limited,23/02/2024,PE156773,97.33,0.00,"1640000400837 Beach Huts, The  Esplanade, Fleetwood, FY7 6QD 01/01/24 to 31/01/24 (147.3kWh) E",Electricity,
Wyre Council,http://opendatacommunities.org/doc/district-council/wyre,28/02/2024,People and Places,Planning and Development Servs,132C,Engie Power Limited,02/02/2024,PE156076,230.92,0.00,"1640000947190 Kiosk 7, Fleetwood Market,  Adelaide St, Fleetwood, FY7 6AB 01/12/23 to 31/12/23 (556kWh) A",Electricity,
Wyre Council,http://opendatacommunities.org/doc/district-council/wyre,28/02/2024,People and Places,Planning and Development Servs,132C,Engie Power Limited,02/02/2024,PE156078,74.35,0.00,"1640000947215 Landlord Supply, Fleetwood  Market, Adelaide St, Fleetwood, FY7 6AB 01/12/23 to 31/12/23 (77kWh) A",Electricity,
Wyre Council,http://opendatacommunities.org/doc/district-council/wyre,28/02/2024,People and Places,Planning and Development Servs,132C,Engie Power Limited,02/02/2024,PE156069,54.97,0.00,"1640000947172 Kiosk 5, Fleetwood Market,  Adelaide St, Fleetwood, FY7 6AB 01/12/23 to 31/12/23 (17.7kWh) A",Electricity,
Wyre Council,http://opendatacommunities.org/doc/district-council/wyre,28/02/2024,People and Places,Planning and Development Servs,132C,Engie Power Limited,02/02/2024,PE156068,64.51,0.00,"1640000947181 Kiosk 6, Fleetwood Market,  Adelaide St, Fleetwood, FY7 6AB 01/12/23 to 31/12/23 (46.9kWh) A",Electricity,
Wyre Council,http://opendatacommunities.org/doc/district-council/wyre,28/02/2024,People and Places,Planning and Development Servs,132C,Engie Power Limited,02/02/2024,PE156067,60.98,0.00,"1640000947163 Kiosk 4, Fleetwood Market,  Adelaide St, Fleetwood, FY7 6AB 01/12/23 to 31/12/23 (36.1kWh) A",Electricity,
Wyre Council,http://opendatacommunities.org/doc/district-council/wyre,28/02/2024,People and Places,Planning and Development Servs,132C,Engie Power Limited,02/02/2024,PE156066,57.32,0.00,"1640000947154 Kiosk 3, Fleetwood Market,  Adelaide St, Fleetwood, FY7 6AB 01/12/23 to 31/12/23 (24.9kWh) A",Electricity,
Wyre Council,http://opendatacommunities.org/doc/district-council/wyre,28/02/2024,People and Places,Planning and Development Servs,132C,Engie Power Limited,20/02/2024,PE156318,52.63,0.00,"1640000947145 Kiosk 2, Fleetwood Market,  Adelaie St, Fleetwood, FY7 6AB 01/04/23 to 30/04/23 (15.4) A",Electricity,
Wyre Council,http://opendatacommunities.org/doc/district-council/wyre,28/02/2024,People and Places,Cultural and Related Services,132A,Engie Power Limited,05/02/2024,PE156089,111.28,0.00,"1610004775074 The Windmill, Fleetwood Rd  North, Thornton Cleveleys, FY5 4BP 01/12/23 to 31/12/23 (105.8kWh) A",Electricity,
Wyre Council,http://opendatacommunities.org/doc/district-council/wyre,28/02/2024,People and Places,Cultural and Related Services,132A,Engie Power Limited,23/02/2024,PE156807,253.31,0.00,1610004867479 The Mount Pavilion  Mount Rd Fleetwood FY7 6EZ 01/01/24 to 31/01/24 (518.6kWh) E,Electricity,
Wyre Council,http://opendatacommunities.org/doc/district-council/wyre,28/02/2024,People and Places,Cultural and Related Services,132A,Engie Power Limited,23/02/2024,PE156806,212.53,0.00,"1610004867441 Mount Hotel, Mount  Rd, Fleetwood, FY7 6RA 01/01/24 to 31/01/24 (527.3kWh) E",Electricity,
Wyre Council,http://opendatacommunities.org/doc/district-council/wyre,28/02/2024,People and Places,Cultural and Related Services,132A,Engie Power Limited,23/02/2024,PE156805,489.51,0.00,"1610004867432 Mount Hotel, Mount  Rd, Fleetwood, FY7 6RA 01/01/24 to 31/01/24 (1141kWh) E",Electricity,
Wyre Council,http://opendatacommunities.org/doc/district-council/wyre,28/02/2024,People and Places,Cultural and Related Services,132A,Engie Power Limited,23/02/2024,PE156800,212.39,0.00,"1610004867488 Mount Pavilion,  Mount Rd, Fleetwood, FY7 6EZ 01/01/24 to 31/01/24 (526.8kWh) E",Electricity,
Wyre Council,http://opendatacommunities.org/doc/district-council/wyre,28/02/2024,People and Places,Environmental Services,132B,Engie Power Limited,23/02/2024,PE156799,264.38,0.00,"1610004933625 Springfield  Pumping Station 17, Fleeetwood Road, Fleetwood, Lancashire, FY7 8TW 01/01/24  to 31/01/24 (568kWh) E",Electricity,
Wyre Council,http://opendatacommunities.org/doc/district-council/wyre,28/02/2024,People and Places,Environmental Services,132B,Engie Power Limited,05/02/2024,PE156097,248.03,0.00,"1610004933625 Springfield Pumping Station  17, Fleeetwood Road, Fleetwood, Lancashire, FY7 8TW 01/12/23 to 31/12/23  (519.4kWh) E",Electricity,
Wyre Council,http://opendatacommunities.org/doc/district-council/wyre,28/02/2024,People and Places,Cultural and Related Services,132A,Engie Power Limited,02/02/2024,PE156071,92.36,0.00,"1640000400837 Beach Huts, The Esplanade,  Fleetwood, FY7 6QD 01/12/23 to 31/12/23 (132.1kWh) E",Electricity,
Wyre Council,http://opendatacommunities.org/doc/district-council/wyre,28/02/2024,People and Places,Cultural and Related Services,132A,Engie Power Limited,02/02/2024,PE156084,73.78,0.00,"1610004846502 Valve House, Marine Lake,  Laidleys Walk, Fleetwood, FY7 7JL 01/12/23 to 31/12/23 (0.7kWh) E",Electricity,
Wyre Council,http://opendatacommunities.org/doc/district-council/wyre,28/02/2024,People and Places,Cultural and Related Services,132A,Engie Power Limited,02/02/2024,PE156080,354.24,0.00,"1610004863605 Central Toilets Kiosk, The  Esplanade, Fleetwood, FY7 7BE 01/12/23 to 31/12/23 (786.7kWh) A",Electricity,
Wyre Council,http://opendatacommunities.org/doc/district-council/wyre,28/02/2024,People and Places,Cultural and Related Services,132A,Engie Power Limited,02/02/2024,PE156079,170.52,0.00,"1610004846558 Pump Station, The Esplanade,  Fleetwood, FY7 6HF 01/12/23 to 31/12/23 (271.8kWh) A",Electricity,
Wyre Council,http://opendatacommunities.org/doc/district-council/wyre,28/02/2024,People and Places,Cultural and Related Services,132A,Engie Power Limited,20/02/2024,PE156320,436.98,0.00,"1610004863623 Pitch &amp; Putt Kiosk, Carr  Rd, The Esplanade, Fleetwood, FY7 6QE 01/04/23 to 30/04/23 (1003.4) E",Electricity,
Wyre Council,http://opendatacommunities.org/doc/district-council/wyre,28/02/2024,People and Places,Cultural and Related Services,132A,Engie Power Limited,20/02/2024,PE156319,251.89,0.00,"1610004846558 Pump Station, The Esplanade,  Fleetwood, FY7 6HF 01/04/23 to 30/04/23 (506.5) A",Electricity,
Wyre Council,http://opendatacommunities.org/doc/district-council/wyre,28/02/2024,People and Places,Cultural and Related Services,132A,Engie Power Limited,02/02/2024,PE156082,279.24,0.00,1610004846390 Pump House Model Yacht Pond  Laidleys Walk Fleetwood FY7 7JL 01/12/23 to 31/12/23 (576.5kWh) A,Electricity,
Wyre Council,http://opendatacommunities.org/doc/district-council/wyre,28/02/2024,People and Places,Cultural and Related Services,132A,Engie Power Limited,23/02/2024,PE156785,305.79,0.00,1610004846390 Pump House Model  Yacht Pond Laidleys Walk Fleetwood FY7 7JL 01/01/24 to 31/01/24 (650.9kWh) A,Electricity,
Wyre Council,http://opendatacommunities.org/doc/district-council/wyre,28/02/2024,People and Places,Cultural and Related Services,132A,Engie Power Limited,23/02/2024,PE156797,586.27,0.00,"1610004897400 Ladies Bowls  Pavilion, Memorial Park, Fleetwood, FY7 7AE 01/01/24 to 31/01/24 (1406.4kWh)  E",Electricity,
Wyre Council,http://opendatacommunities.org/doc/district-council/wyre,28/02/2024,People and Places,Cultural and Related Services,132A,Engie Power Limited,23/02/2024,PE156796,284.48,0.00,"1610004897394 Bowls House,  Memorial Park, Fleetwood, FY7 7AE 01/01/24 to 31/01/24 (591.2kWh) A",Electricity,
Wyre Council,http://opendatacommunities.org/doc/district-council/wyre,28/02/2024,People and Places,Cultural and Related Services,132A,Engie Power Limited,23/02/2024,PE156803,317.33,0.00,"1610004897385 Tennis Pavillion,  Memorial Park, Fleetwood, FY7 7AE 01/01/24 to 31/01/24 (746.8kWh) E",Electricity,
Wyre Council,http://opendatacommunities.org/doc/district-council/wyre,28/02/2024,People and Places,Cultural and Related Services,132A,Engie Power Limited,05/02/2024,PE156095,533.11,0.00,"1610004897400 Ladies Bowls Pavilion,  Memorial Park, Fleetwood, FY7 7AE 01/12/23 to 31/12/23 (1260.6kWh) E",Electricity,
Wyre Council,http://opendatacommunities.org/doc/district-council/wyre,28/02/2024,People and Places,Cultural and Related Services,132A,Engie Power Limited,05/02/2024,PE156094,213.98,0.00,"1610004897394 Bowls House, Memorial Park,  Fleetwood, FY7 7AE 01/12/23 to 31/12/23 (393.6kWh) A",Electricity,
Wyre Council,http://opendatacommunities.org/doc/district-council/wyre,28/02/2024,People and Places,Cultural and Related Services,132A,Engie Power Limited,05/02/2024,PE156101,296.45,0.00,"1610004897385 Tennis Pavillion, Memorial  Park, Fleetwood, FY7 7AE 01/12/23 to 31/12/23 (682.9kWh) E",Electricity,
Wyre Council,http://opendatacommunities.org/doc/district-council/wyre,28/02/2024,People and Places,Cultural and Related Services,132A,Engie Power Limited,20/02/2024,PE156328,246.72,0.00,"1610004897385 Tennis Pavillion, Memorial  Park, Fleetwood, FY7 7AE 01/04/23 to 30/04/23 (538.1) E",Electricity,
Wyre Council,http://opendatacommunities.org/doc/district-council/wyre,28/02/2024,People and Places,Cultural and Related Services,132A,Engie Power Limited,05/02/2024,PE156104,201.30,0.00,"1610004867441 Mount Hotel, Mount Rd,  Fleetwood, FY7 6RA 01/12/23 to 31/12/23 (484.7kWh) E",Electricity,
Wyre Council,http://opendatacommunities.org/doc/district-council/wyre,28/02/2024,People and Places,Cultural and Related Services,132A,Engie Power Limited,05/02/2024,PE156103,438.49,0.00,"1610004867432 Mount Hotel, Mount Rd,  Fleetwood, FY7 6RA 01/12/23 to 31/12/23 (1022.8kWh) E",Electricity,
Wyre Council,http://opendatacommunities.org/doc/district-council/wyre,28/02/2024,People and Places,Cultural and Related Services,132A,Engie Power Limited,05/02/2024,PE156105,234.69,0.00,1610004867479 The Mount Pavilion Mount Rd  Fleetwood FY7 6EZ 01/12/23 to 31/12/23 (464.9kWh) E,Electricity,
Wyre Council,http://opendatacommunities.org/doc/district-council/wyre,28/02/2024,People and Places,Cultural and Related Services,132A,Engie Power Limited,05/02/2024,PE156098,201.16,0.00,"1610004867488 Mount Pavilion, Mount Rd,  Fleetwood, FY7 6EZ 01/12/23 to 31/12/23 (484.2kWh) E",Electricity,
Wyre Council,http://opendatacommunities.org/doc/district-council/wyre,28/02/2024,People and Places,Environmental Services,132B,Engie Power Limited,05/02/2024,PE156088,233.40,0.00,"1610004845313 Fleetwood Corp Cemetery,  Beach Rd, Fleetwood, FY7 8PH 01/12/23 to 31/12/23 (606.5kWh) E",Electricity,
Wyre Council,http://opendatacommunities.org/doc/district-council/wyre,28/02/2024,People and Places,Environmental Services,132B,Engie Power Limited,05/02/2024,PE156087,384.47,0.00,"1610004845304 Fleetwood Corp Cemetery,  Beach Rd, Fleetwood, FY7 8PH 01/12/23 to 31/12/23 (871.4kWh) A",Electricity,
Wyre Council,http://opendatacommunities.org/doc/district-council/wyre,28/02/2024,People and Places,Environmental Services,132B,Engie Power Limited,23/02/2024,PE156789,626.56,0.00,"1610004845304 Fleetwood Corp  Cemetery, Beach Rd, Fleetwood, FY7 8PH 01/01/24 to 31/01/24 (1516.9kWh) A",Electricity,
Wyre Council,http://opendatacommunities.org/doc/district-council/wyre,28/02/2024,People and Places,Environmental Services,132B,Engie Power Limited,23/02/2024,PE156790,209.81,0.00,"1610004845313 Fleetwood Corp  Cemetery, Beach Rd, Fleetwood, FY7 8PH 01/01/24 to 31/01/24 (517kWh) E",Electricity,
Wyre Council,http://opendatacommunities.org/doc/district-council/wyre,28/02/2024,People and Places,Environmental Services,132B,Engie Power Limited,20/02/2024,PE156325,94.84,0.00,"1610004845313 Fleetwood Corp Cemetery,  Beach Rd, Fleetwood, FY7 8PH 01/12/22 to 31/12/22 (84.1) E",Electricity,
Wyre Council,http://opendatacommunities.org/doc/district-council/wyre,28/02/2024,People and Places,Environmental Services,132B,Engie Power Limited,20/02/2024,PE156324,88.47,0.00,"1610004845313 Fleetwood Corp Cemetery,  Beach Rd, Fleetwood, FY7 8PH 01/11/22 to 30/11/22 (68.3) E",Electricity,
Wyre Council,http://opendatacommunities.org/doc/district-council/wyre,28/02/2024,People and Places,Environmental Services,132B,Engie Power Limited,20/02/2024,PE156323,83.98,0.00,"1610004845313 Fleetwood Corp Cemetery,  Beach Rd, Fleetwood, FY7 8PH 02/10/22 to 31/10/22 (50.6) E",Electricity,
Wyre Council,http://opendatacommunities.org/doc/district-council/wyre,28/02/2024,Resources,Support Services,135B,The Lunchbox Ltd,13/02/2024,RS156742,38.00,0.00,Red and brown sauce3 sausage on white barm1 bacon on brown barm1 veg on brown barm1 veg on white barm4 bacon on white barmTotal 10 sandwiches,Event Hospitality,
Wyre Council,http://opendatacommunities.org/doc/district-council/wyre,28/02/2024,People and Places,Cultural and Related Services,132A,Play Inclusion Project,22/02/2024,PE157018,939.66,0.00,Play Inclusion Project   SEND Saturday CLUB November 2023 - March 2024,External Coaching,
Wyre Council,http://opendatacommunities.org/doc/district-council/wyre,28/02/2024,People and Places,Cultural and Related Services,132A,Play Inclusion Project,21/02/2024,PE156387,939.66,0.00,Play Inclusion Project   SEND Saturday CLUB November 2023 - March 2024,External Coaching,
Wyre Council,http://opendatacommunities.org/doc/district-council/wyre,28/02/2024,People and Places,Cultural and Related Services,132A,Fleetwood Town Community Trust,13/02/2024,PE156754,3000.00,0.00,"Fit for the Future chair based exercise programme - July 2023 - March 2024. Cost for delivery, training, equipment and marketing",External Coaching,
Wyre Council,http://opendatacommunities.org/doc/district-council/wyre,28/02/2024,People and Places,Cultural and Related Services,132A,Wildaid,01/02/2024,PE156407,1410.00,0.00,Grass cutting by Wild aid  August 2023 PROW,External Contractor,
Wyre Council,http://opendatacommunities.org/doc/district-council/wyre,28/02/2024,People and Places,Environmental Services,132B,UK Health Security Agency,14/02/2024,PE156648,546.72,0.00,Shellfish Testing oct-march  23/24,Food and Drug Etc Samples,
Wyre Council,http://opendatacommunities.org/doc/district-council/wyre,28/02/2024,People and Places,Cultural and Related Services,132A,Lancashire County Council,27/02/2024,PE157094,6800.00,0.00,Annual contribution to Forest of Bowland National Landscape Partnership,Forest of Bowland Joint Advise Com Contr,
Wyre Council,http://opendatacommunities.org/doc/district-council/wyre,28/02/2024,People and Places,Cultural and Related Services,132A,Lancashire County Council,29/02/2024,PE157188,36.00,0.00,Hire of Meeting Room at Garstang Library from 1/7/2023 - 30/9/2023,Garstang Walking Festival,
Wyre Council,http://opendatacommunities.org/doc/district-council/wyre,28/02/2024,People and Places,Planning and Development Servs,132C,Engie Gas Limited,12/02/2024,PE156582,494.55,0.00,"9322410204 Copse Rd Depot, Fleetwood, FY7  6PR 01/01/24 to 31/01/24 Est (3173.6kWh)",Gas,
Wyre Council,http://opendatacommunities.org/doc/district-council/wyre,28/02/2024,People and Places,Planning and Development Servs,132C,Engie Gas Limited,02/02/2024,PE155939,455.21,0.00,9322410204 Copse Road Depot  01/12/23-31/12/23 (2660.7kWh),Gas,
Wyre Council,http://opendatacommunities.org/doc/district-council/wyre,28/02/2024,People and Places,Cultural and Related Services,132A,Engie Gas Limited,12/02/2024,PE156583,1645.42,0.00,"73570403 Thornton Little Theatre, Victoria  Rd East, Thornton-Cleveleys, FY5 3SZ 01/01/24 to 31/01/24 Est (16711.6kWh)",Gas,
Wyre Council,http://opendatacommunities.org/doc/district-council/wyre,28/02/2024,People and Places,Cultural and Related Services,132A,Engie Gas Limited,02/02/2024,PE155937,1486.02,0.00,73570403 Thornton Little Theatre  01/12/23-31/12/23 (14801.2kWh),Gas,
Wyre Council,http://opendatacommunities.org/doc/district-council/wyre,28/02/2024,People and Places,Planning and Development Servs,132C,Engie Gas Limited,02/02/2024,PE155940,7095.89,0.00,49097909 Fleetwood Market Adelaide Street  01/12/23-31/12/23 (82037.5kWh),Gas,
Wyre Council,http://opendatacommunities.org/doc/district-council/wyre,28/02/2024,People and Places,Planning and Development Servs,132C,Engie Gas Limited,12/02/2024,PE156581,7528.05,0.00,"49097909 Adelaide St, Fleetwood, FY7 6AB  01/01/24 to 31/01/24 Est (87217.1kWh)",Gas,
Wyre Council,http://opendatacommunities.org/doc/district-council/wyre,28/02/2024,People and Places,Support Services,135B,Engie Gas Limited,02/02/2024,PE155938,8439.31,0.00,"20867010 Wyre Civic Centre, Breck Road  01/12/23-31/12/23 (97139kWh)",Gas,
Wyre Council,http://opendatacommunities.org/doc/district-council/wyre,28/02/2024,People and Places,Support Services,135B,Engie Gas Limited,12/02/2024,PE156584,9165.96,0.00,"20867010 Civic Centre, Breck Rd, Poulton,  FY6 7PU 01/01/24 to 31/01/24 Est (106848.1kWh)",Gas,
Wyre Council,http://opendatacommunities.org/doc/district-council/wyre,28/02/2024,People and Places,Cultural and Related Services,132A,Npower Commercial Gas Ltd,12/02/2024,PE156573,2464.03,0.00,"9159039903 Garstang Swimming Pool, Oak Rd, Garstang, PR3 1HT 01/01/24 to 31/01/24 (37459.7 kWh)",Gas,
Wyre Council,http://opendatacommunities.org/doc/district-council/wyre,28/02/2024,People and Places,Cultural and Related Services,132A,Npower Commercial Gas Ltd,12/02/2024,PE156574,1111.90,0.00,"50171305 Thornton Sports Centre, Victoria Rd E, Thronton Cleveleys, FY5 3SX 01/01/24 to 31/01/24 (13125.1 kWh)",Gas,
Wyre Council,http://opendatacommunities.org/doc/district-council/wyre,28/02/2024,People and Places,Cultural and Related Services,132A,Npower Commercial Gas Ltd,12/02/2024,PE156580,778.73,0.00,"56039908 Garstang Sports Centre, 34 Windsor Rd, Garstang, PR3. 1ED 01/01/24 to 31/01/24 (10105.6 kWh)",Gas,
Wyre Council,http://opendatacommunities.org/doc/district-council/wyre,28/02/2024,People and Places,Cultural and Related Services,132A,Keep Britain Tidy,16/02/2024,PE156901,369.00,0.00,Wyre estuary country park green flag award,Green Flag and Other Awards,
Wyre Council,http://opendatacommunities.org/doc/district-council/wyre,28/02/2024,People and Places,Cultural and Related Services,132A,Keep Britain Tidy,16/02/2024,PE156902,369.00,0.00,Vicarage Park entry to Green Flag award 2024/25,Green Flag and Other Awards,
Wyre Council,http://opendatacommunities.org/doc/district-council/wyre,28/02/2024,People and Places,Cultural and Related Services,132A,Keep Britain Tidy,16/02/2024,PE156900,369.00,0.00,"Memorial Park, Fleetwood - Green Flag submission for 24/25 369",Green Flag and Other Awards,
Wyre Council,http://opendatacommunities.org/doc/district-council/wyre,28/02/2024,People and Places,Cultural and Related Services,132A,Keep Britain Tidy,16/02/2024,PE156899,369.00,0.00,"Hawthorne Park, Thornton Green Flag submission for 24/25 369",Green Flag and Other Awards,
Wyre Council,http://opendatacommunities.org/doc/district-council/wyre,28/02/2024,People and Places,Parking Services,133F,Pipescan LTD,23/02/2024,PE157032,1650.00,0.00,*** Confirmation Order ***Carry out clearing of car park gullies as agreed with Maria Leeder,Gully Emptying,
Wyre Council,http://opendatacommunities.org/doc/district-council/wyre,28/02/2024,People and Places,Parking Services,133F,Pipescan LTD,23/02/2024,PE157032,1150.00,0.00,*** Confirmation Order ***Carry out clearing of car park gullies as agreed with Maria Leeder,Gully Emptying,
Wyre Council,http://opendatacommunities.org/doc/district-council/wyre,28/02/2024,Resources,Support Services,135B,Konica Minolta Business Solutions UK LTD,28/02/2024,RS157134,1510.65,0.00,"Bizhub C300i - Equipment numbers    1825856503,1825856487, 1825843155,   1825856493, 1825856455, 1825856489,   1825856490,1825843157, 1825856492,   1825863267, 1825858491, 1825856452,   1900083122, 190083356, 190083035    Contract number 420746628 - 29th",Hire of Tools or Equipment,
Wyre Council,http://opendatacommunities.org/doc/district-council/wyre,28/02/2024,Resources,Support Services,135B,Konica Minolta Business Solutions UK LTD,27/02/2024,RS157065,1304.90,0.00,Copy and print charges  26/02/23 - 25/02/24. Equipment number 1825856503 1825856487 1825843155 1825856493 1825856455 1825856489 1825856490 1825843157 1825856492 1825863267 1825856491 1825856452,Hire of Tools or Equipment,
Wyre Council,http://opendatacommunities.org/doc/district-council/wyre,28/02/2024,Resources,Support Services,135B,Konica Minolta Business Solutions UK LTD,28/02/2024,RS157133,342.51,0.00,1165408088,Hire of Tools or Equipment,
Wyre Council,http://opendatacommunities.org/doc/district-council/wyre,28/02/2024,People and Places,Support Services,135B,Konica Minolta Business Solutions UK LTD,28/02/2024,PE156977,200.00,0.00,collection charged in error - see CR Note,Hire of Tools or Equipment,pls check - narrative makes it sound like we're owed a CRN?
Wyre Council,http://opendatacommunities.org/doc/district-council/wyre,28/02/2024,People and Places,Support Services,135B,The Lunchbox Ltd,27/02/2024,PE157086,75.00,0.00,Catering for Planning enforcement Public Inquiry 22/02/24,Hospitality,
Wyre Council,http://opendatacommunities.org/doc/district-council/wyre,28/02/2024,Resources,Central Services to the Public,131C,West View Community Association,15/02/2024,RS156850,7000.00,0.00,Household Support Fund 4 - 2nd Payment,Household Support Fund,
Wyre Council,http://opendatacommunities.org/doc/district-council/wyre,28/02/2024,Resources,Central Services to the Public,131C,HELPPKE CIC,20/02/2024,RS156931,7000.00,0.00,HSF 4 payment,Household Support Fund,
Wyre Council,http://opendatacommunities.org/doc/district-council/wyre,28/02/2024,Resources,Central Services to the Public,131C,St Thomas Garstang Foodbank,15/02/2024,RS156851,5000.00,0.00,Household Support Fund 4 second payment,Household Support Fund,
Wyre Council,http://opendatacommunities.org/doc/district-council/wyre,28/02/2024,People and Places,Environmental Services,132B,Poulton Pets LTD,20/02/2024,PE156941,1585.50,0.00,Provision of stray dog kennelling service 2023/24,Impounded Dogs Costs,
Wyre Council,http://opendatacommunities.org/doc/district-council/wyre,28/02/2024,Resources,Cultural and Related Services,132A,Daisy Communications LTD,22/02/2024,RS156486,13.87,0.00,Service Charges 01/01/24 to 31/01/24,Internet and Telephone Charges,
Wyre Council,http://opendatacommunities.org/doc/district-council/wyre,28/02/2024,Resources,Cultural and Related Services,132A,Daisy Communications LTD,22/02/2024,RS156486,33.25,0.00,Service Charges 01/01/24 to 31/01/24,Internet and Telephone Charges,
Wyre Council,http://opendatacommunities.org/doc/district-council/wyre,28/02/2024,Resources,Corporate and Democratic Core,131A,Daisy Communications LTD,22/02/2024,RS156486,13.88,0.00,Service Charges 01/01/24 to 31/01/24,Internet and Telephone Charges,
Wyre Council,http://opendatacommunities.org/doc/district-council/wyre,28/02/2024,Resources,Support Services,135B,Daisy Communications LTD,22/02/2024,RS156486,80.87,0.00,Service Charges 01/01/24 to 31/01/24,Internet and Telephone Charges,
Wyre Council,http://opendatacommunities.org/doc/district-council/wyre,28/02/2024,Resources,Support Services,135B,Daisy Communications LTD,22/02/2024,RS156486,19.39,0.00,Service Charges 01/01/24 to 31/01/24,Internet and Telephone Charges,
Wyre Council,http://opendatacommunities.org/doc/district-council/wyre,28/02/2024,Resources,Support Services,135B,THE NETWORKING PEOPLE (TNP) LTD,13/02/2024,RS156740,254.22,0.00,FTTC LG5627 Fleetwood YMCA FTTC6177 - Pro Rata to 31/08/2024,Internet and Telephone Charges,
Wyre Council,http://opendatacommunities.org/doc/district-council/wyre,28/02/2024,Resources,Support Services,135B,THE NETWORKING PEOPLE (TNP) LTD,13/02/2024,RS156740,140.52,0.00,FTTC LG5623 Stannah Country Park FTTC6676271 - Pro Rata to 31/08/2024,Internet and Telephone Charges,
Wyre Council,http://opendatacommunities.org/doc/district-council/wyre,28/02/2024,Resources,Support Services,135B,THE NETWORKING PEOPLE (TNP) LTD,13/02/2024,RS156740,38.32,0.00,FTTC LG5625 Garstang YMCA FTTC6566463 - Pro Rata to 31/08/2024,Internet and Telephone Charges,
Wyre Council,http://opendatacommunities.org/doc/district-council/wyre,28/02/2024,Resources,Support Services,135B,THE NETWORKING PEOPLE (TNP) LTD,13/02/2024,RS156740,7.66,0.00,FTTC LG6083 FTTC6121713 - Pro Rata to 31/08/2024,Internet and Telephone Charges,
Wyre Council,http://opendatacommunities.org/doc/district-council/wyre,28/02/2024,Resources,Support Services,135B,THE NETWORKING PEOPLE (TNP) LTD,13/02/2024,RS156740,141.80,0.00,FTTC LG5622 Thornton Little Theatre FTTC6746737,Internet and Telephone Charges,
Wyre Council,http://opendatacommunities.org/doc/district-council/wyre,28/02/2024,Resources,Support Services,135B,THE NETWORKING PEOPLE (TNP) LTD,13/02/2024,RS156740,123.92,0.00,FTTC LG5624 Cafe Cove FTTC6500643,Internet and Telephone Charges,
Wyre Council,http://opendatacommunities.org/doc/district-council/wyre,28/02/2024,Resources,Support Services,135B,THE NETWORKING PEOPLE (TNP) LTD,13/02/2024,RS156747,7946.00,0.00,Annual Rental 1/1Gb Internet Service.This is due to be terminated once replaced by the 2/10Gb service from TNP. Remaining balance will be credited dependent upon the date of migration to the new connection.,Internet and Telephone Charges,
Wyre Council,http://opendatacommunities.org/doc/district-council/wyre,28/02/2024,People and Places,Cultural and Related Services,132A,Northern Citrus Products LTD,07/02/2024,PE156556,531.50,0.00,kiosk stock,Kiosk stock,
Wyre Council,http://opendatacommunities.org/doc/district-council/wyre,28/02/2024,People and Places,Cultural and Related Services,132A,Active Lancashire LTD,21/02/2024,PE156975,2000.00,0.00,Local Authority contribution to Active Lancashire 2023/2 for Wyre Council,Lancashire Sport Contribution,
Wyre Council,http://opendatacommunities.org/doc/district-council/wyre,28/02/2024,Resources,Support Services,135B,Forbes Solicitors,29/02/2024,RS157171,2716.00,0.00,"Employment Advice
29/01/2024 - 26/02/2024",Legal Fees,
Wyre Council,http://opendatacommunities.org/doc/district-council/wyre,28/02/2024,Resources,Support Services,135B,23 ESSEX STREET CHAMBERS,06/02/2024,RS156381,2200.00,0.00,Legal Professional Fees Mr Asa Tolson - File Ref LAP/2/143,Legal Fees,
Wyre Council,http://opendatacommunities.org/doc/district-council/wyre,28/02/2024,Resources,Support Services,135B,Sellick Partnership Limited,01/02/2024,RS155713,906.25,0.00,W/E 17/12/2023 - 14.50 @ 62.50 =906.25 Invoice INV531189 W/E 24/12/2023 - 14.50 @ 62.50 =906.25 Invoice INV531190,Legal Fees,
Wyre Council,http://opendatacommunities.org/doc/district-council/wyre,28/02/2024,Resources,Support Services,135B,Sellick Partnership Limited,01/02/2024,RS155712,906.25,0.00,W/E 17/12/2023 - 14.50 @ 62.50 =906.25 Invoice INV531189 W/E 24/12/2023 - 14.50 @ 62.50 =906.25 Invoice INV531190,Legal Fees,
Wyre Council,http://opendatacommunities.org/doc/district-council/wyre,28/02/2024,People and Places,Highways,133B,Aitch Tools & Fasteners LTD,09/02/2024,PE156641,153.25,0.00,Materials,Maint. of Unadopted Assets - Engineers,
Wyre Council,http://opendatacommunities.org/doc/district-council/wyre,28/02/2024,People and Places,Support Services,135B,Fumex LTD,22/02/2024,PE156876,512.00,0.00,To carry out servicing & COSHH retests on 1005.00 20.00 201.00 1 Local Exhaust System(s) 1 Dust Extraction System(s) Site visit witnessed by In accordance with our quotation dated 25 October 2023,Maintenance of Tools or Equipment,
Wyre Council,http://opendatacommunities.org/doc/district-council/wyre,28/02/2024,People and Places,Support Services,135B,Fumex LTD,22/02/2024,PE156876,493.00,0.00,To carry out servicing & COSHH retests on 1005.00 20.00 201.00 1 Local Exhaust System(s) 1 Dust Extraction System(s) Site visit witnessed by In accordance with our quotation dated 25 October 2023,Maintenance of Tools or Equipment,
Wyre Council,http://opendatacommunities.org/doc/district-council/wyre,28/02/2024,People and Places,Parking Services,133F,CHIPSIDE LTD,07/02/2024,PE156563,15.00,0.00,Provide 2 no. 500 Mb SIMS for Wyre handheld units - 1 April 2023 - 31 March 2024,Maintenance of Tools or Equipment,
Wyre Council,http://opendatacommunities.org/doc/district-council/wyre,28/02/2024,People and Places,Planning and Development Servs,132C,PSM Group,07/02/2024,PE156559,980.00,0.00,MAINTANENCE TO OUTSIDE MARKET FURNITURE,Maintenance of Tools or Equipment,
Wyre Council,http://opendatacommunities.org/doc/district-council/wyre,28/02/2024,People and Places,Environmental Services,132B,Everglades Nurseries TD,07/02/2024,PE156533,1401.60,0.00,TreesSizeQuantity Unit PriceSilver birch 10-12252.50105.00Japanese Flowering Cherry 10-12 163.75 63.75Disease resistant elm10-12160.0060.00Rowan10-12257.00114Sessile Oak6-8cm only1039.00390Common alder10-12448.75195,Maintenance of Trees and Shrubs,
Wyre Council,http://opendatacommunities.org/doc/district-council/wyre,28/02/2024,People and Places,Support Services,135B,EK Motors Factors LTD,09/02/2024,PE156623,14.85,0.00,Parts,Materials and Consumables,
Wyre Council,http://opendatacommunities.org/doc/district-council/wyre,28/02/2024,People and Places,Support Services,135B,EK Motors Factors LTD,09/02/2024,PE156622,44.00,0.00,Parts,Materials and Consumables,
Wyre Council,http://opendatacommunities.org/doc/district-council/wyre,28/02/2024,People and Places,Support Services,135B,EK Motors Factors LTD,09/02/2024,PE156624,18.70,0.00,Parts,Materials and Consumables,
Wyre Council,http://opendatacommunities.org/doc/district-council/wyre,28/02/2024,People and Places,Support Services,135B,EK Motors Factors LTD,09/02/2024,PE156621,37.50,0.00,Parts,Materials and Consumables,
Wyre Council,http://opendatacommunities.org/doc/district-council/wyre,28/02/2024,People and Places,Support Services,135B,EK Motors Factors LTD,09/02/2024,PE156625,149.50,0.00,Parts,Materials and Consumables,
Wyre Council,http://opendatacommunities.org/doc/district-council/wyre,28/02/2024,People and Places,Support Services,135B,EK Motors Factors LTD,09/02/2024,PE156626,143.10,0.00,Parts,Materials and Consumables,
Wyre Council,http://opendatacommunities.org/doc/district-council/wyre,28/02/2024,People and Places,Support Services,135B,Lancashire County Council,27/02/2024,PE157092,52.00,0.00,"RSA1 - Road Space Application for Works to cut hedges on both sides of the Highway on Fleetwood Road, Fleetwood, FY7 8JZ.Proposed date Monday 5th February to Friday 9th February 2024",Materials and Consumables,
Wyre Council,http://opendatacommunities.org/doc/district-council/wyre,28/02/2024,People and Places,Environmental Services,132B,Graffiti Removal LTD,09/02/2024,PE156645,299.25,0.00,Supply and deliver as your quotation 3 no Heritage Graffiti Remover @ 99.75 each,Materials and Consumables,
Wyre Council,http://opendatacommunities.org/doc/district-council/wyre,28/02/2024,People and Places,Environmental Services,132B,Graffiti Removal LTD,09/02/2024,PE156645,191.50,0.00,4 no Spraycan Graffiti Remover @ 95.75 each,Materials and Consumables,
Wyre Council,http://opendatacommunities.org/doc/district-council/wyre,28/02/2024,People and Places,Environmental Services,132B,Blackpool Skip Hire LTD,22/02/2024,PE157002,225.00,0.00,"Provision of skips for Chatsworth Depot, Fleetwood",Materials and Consumables,
Wyre Council,http://opendatacommunities.org/doc/district-council/wyre,28/02/2024,People and Places,Environmental Services,132B,Newauto Limited T/A Mogo,09/02/2024,PE156590,143.40,0.00,MDSV-2 Mogo Door Sign Vinyl DSC-Private Hire   QTY 30 @ 4.78 each,Materials and Consumables,
Wyre Council,http://opendatacommunities.org/doc/district-council/wyre,28/02/2024,People and Places,Environmental Services,132B,Newauto Limited T/A Mogo,09/02/2024,PE156590,7.90,0.00,P&P,Materials and Consumables,
Wyre Council,http://opendatacommunities.org/doc/district-council/wyre,28/02/2024,People and Places,Environmental Services,132B,Newauto Limited T/A Mogo,08/02/2024,PE156420,189.00,0.00,MP-2-TX Printed plate 240 x 176 Hackney Carriage Rear,Materials and Consumables,
Wyre Council,http://opendatacommunities.org/doc/district-council/wyre,28/02/2024,People and Places,Environmental Services,132B,Newauto Limited T/A Mogo,08/02/2024,PE156420,189.00,0.00,MP-2-STX Printed plate 240 x 125 hackney carriage front,Materials and Consumables,
Wyre Council,http://opendatacommunities.org/doc/district-council/wyre,28/02/2024,People and Places,Environmental Services,132B,Newauto Limited T/A Mogo,08/02/2024,PE156420,58.00,0.00,IP-3-D Internal plate to fit self seal pouch A4 Hackney Carriage,Materials and Consumables,
Wyre Council,http://opendatacommunities.org/doc/district-council/wyre,28/02/2024,People and Places,Environmental Services,132B,Newauto Limited T/A Mogo,08/02/2024,PE156420,14.90,0.00,carriage,Materials and Consumables,
Wyre Council,http://opendatacommunities.org/doc/district-council/wyre,28/02/2024,People and Places,Support Services,135B,Agrovista UK LTD,15/02/2024,PE156852,711.90,0.00,Supply and deliver Evolution Naturelle @ 33.90 p/bag x 21 total 711.90Delivery to:Wyre CouncilCopse Road DepotCopse Road FleetwoodLancashireFY7 6RP,Materials and Consumables,
Wyre Council,http://opendatacommunities.org/doc/district-council/wyre,28/02/2024,People and Places,Environmental Services,132B,Aitch Tools & Fasteners LTD,09/02/2024,PE156641,646.94,0.00,Materials,Materials and Consumables,
Wyre Council,http://opendatacommunities.org/doc/district-council/wyre,28/02/2024,People and Places,Support Services,135B,HUWS GRAY LTD,28/02/2024,PE157108,94.49,0.00,Materials  Keith Urwin,Materials and Consumables,
Wyre Council,http://opendatacommunities.org/doc/district-council/wyre,28/02/2024,People and Places,Environmental Services,132B,HUWS GRAY LTD,15/02/2024,PE156743,33.58,0.00,2023/2024 Direct Works/ Sea Wall Engineer purchases for works around the Borough,Materials and Consumables,
Wyre Council,http://opendatacommunities.org/doc/district-council/wyre,28/02/2024,People and Places,Environmental Services,132B,HUWS GRAY LTD,15/02/2024,PE156863,37.52,0.00,2023/2024 Direct Works/ Sea Wall Engineer purchases for works around the Borough,Materials and Consumables,
Wyre Council,http://opendatacommunities.org/doc/district-council/wyre,28/02/2024,People and Places,Environmental Services,132B,HUWS GRAY LTD,28/02/2024,PE157107,9.96,0.00,Door handles For Chatsworth Depot,Materials and Consumables,
Wyre Council,http://opendatacommunities.org/doc/district-council/wyre,28/02/2024,People and Places,Cultural and Related Services,132A,HUWS GRAY LTD,19/02/2024,PE156745,779.43,0.00,Materials for bridge at Lane ends pilling on behalf of the Environment agency.,Materials and Consumables,
Wyre Council,http://opendatacommunities.org/doc/district-council/wyre,28/02/2024,People and Places,Cultural and Related Services,132A,HUWS GRAY LTD,19/02/2024,PE156744,567.56,0.00,materials for a bridge at Lane ends pilling. on behalf of the Environment agency,Materials and Consumables,
Wyre Council,http://opendatacommunities.org/doc/district-council/wyre,28/02/2024,People and Places,Support Services,135B,Amazon Business,09/02/2024,PE156495,70.29,0.00,Folders and storage bags  Grounds Maintenance,Materials and Consumables,
Wyre Council,http://opendatacommunities.org/doc/district-council/wyre,28/02/2024,People and Places,Support Services,135B,Amazon Business,14/02/2024,PE156494,57.51,0.00,Folders and storage bags  Grounds Maintenance,Materials and Consumables,
Wyre Council,http://opendatacommunities.org/doc/district-council/wyre,28/02/2024,People and Places,Support Services,135B,Amazon Business,21/02/2024,PE156988,43.32,0.00,Tour Guide system,Materials and Consumables,
Wyre Council,http://opendatacommunities.org/doc/district-council/wyre,28/02/2024,Resources,Corporate and Democratic Core,131A,The Lunchbox Ltd,07/02/2024,RS156562,60.75,0.00,Planning Committee Catering Wednesday 7 February 2024,Members' Hospitality,
Wyre Council,http://opendatacommunities.org/doc/district-council/wyre,28/02/2024,Resources,Corporate and Democratic Core,131A,The Lunchbox Ltd,22/02/2024,RS157021,74.25,0.00,Catering O&S Work Programme Workshop Thursday 22 February 2024,Members' Hospitality,
Wyre Council,http://opendatacommunities.org/doc/district-council/wyre,28/02/2024,Resources,Corporate and Democratic Core,131A,The Lunchbox Ltd,16/02/2024,RS156895,105.30,0.00,Catering for Full Council Thursday 30 November 2023,Members' Hospitality,
Wyre Council,http://opendatacommunities.org/doc/district-council/wyre,28/02/2024,Resources,Housing General Fund,134A,Huck Properties LTD,26/02/2024,RS157067,580.00,0.00,REDACT,Minor Adaptations,
Wyre Council,http://opendatacommunities.org/doc/district-council/wyre,28/02/2024,Resources,Housing General Fund,134A,Huck Properties LTD,26/02/2024,RS157066,145.00,0.00,REDACT,Minor Adaptations,
Wyre Council,http://opendatacommunities.org/doc/district-council/wyre,28/02/2024,Resources,Housing General Fund,134A,Huck Properties LTD,26/02/2024,RS157068,465.00,0.00,REDACT,Minor Adaptations,
Wyre Council,http://opendatacommunities.org/doc/district-council/wyre,28/02/2024,Resources,Housing General Fund,134A,Huck Properties LTD,12/02/2024,RS156679,610.00,0.00,REDACT,Minor Adaptations,
Wyre Council,http://opendatacommunities.org/doc/district-council/wyre,28/02/2024,Resources,Housing General Fund,134A,Huck Properties LTD,12/02/2024,RS156678,155.00,0.00,REDACT,Minor Adaptations,
Wyre Council,http://opendatacommunities.org/doc/district-council/wyre,28/02/2024,Resources,Housing General Fund,134A,Huck Properties LTD,12/02/2024,RS156677,890.00,0.00,REDACT,Minor Adaptations,
Wyre Council,http://opendatacommunities.org/doc/district-council/wyre,28/02/2024,Resources,Housing General Fund,134A,Mobility Care Services,12/02/2024,RS156676,110.00,0.00,REDACT,Minor Adaptations,
Wyre Council,http://opendatacommunities.org/doc/district-council/wyre,28/02/2024,Resources,Housing General Fund,134A,Mobility Care Services,12/02/2024,RS156675,480.00,0.00,REDACT,Minor Adaptations,
Wyre Council,http://opendatacommunities.org/doc/district-council/wyre,28/02/2024,Resources,Housing General Fund,134A,Mobility Care Services,12/02/2024,RS156674,150.00,0.00,REDACT,Minor Adaptations,
Wyre Council,http://opendatacommunities.org/doc/district-council/wyre,28/02/2024,Resources,Housing General Fund,134A,Mobility Care Services,12/02/2024,RS156673,160.00,0.00,REDACT,Minor Adaptations,
Wyre Council,http://opendatacommunities.org/doc/district-council/wyre,28/02/2024,Resources,Housing General Fund,134A,Mobility Care Services,12/02/2024,RS156672,160.00,0.00,REDACT,Minor Adaptations,
Wyre Council,http://opendatacommunities.org/doc/district-council/wyre,28/02/2024,Resources,Housing General Fund,134A,Mobility Care Services,12/02/2024,RS156671,456.00,0.00,REDACT,Minor Adaptations,
Wyre Council,http://opendatacommunities.org/doc/district-council/wyre,28/02/2024,Resources,Housing General Fund,134A,J A DICKENS LIMITED,12/02/2024,RS156656,60.00,0.00,REDACT,Minor Adaptations,
Wyre Council,http://opendatacommunities.org/doc/district-council/wyre,28/02/2024,Resources,Housing General Fund,134A,J A DICKENS LIMITED,12/02/2024,RS156656,80.00,0.00,REDACT,Minor Adaptations,
Wyre Council,http://opendatacommunities.org/doc/district-council/wyre,28/02/2024,Resources,Housing General Fund,134A,J A DICKENS LIMITED,12/02/2024,RS156657,80.00,0.00,REDACT,Minor Adaptations,
Wyre Council,http://opendatacommunities.org/doc/district-council/wyre,28/02/2024,Resources,Housing General Fund,134A,J A DICKENS LIMITED,12/02/2024,RS156657,80.00,0.00,REDACT,Minor Adaptations,
Wyre Council,http://opendatacommunities.org/doc/district-council/wyre,28/02/2024,Resources,Housing General Fund,134A,J A DICKENS LIMITED,12/02/2024,RS156658,80.00,0.00,REDACT,Minor Adaptations,
Wyre Council,http://opendatacommunities.org/doc/district-council/wyre,28/02/2024,Resources,Housing General Fund,134A,J A DICKENS LIMITED,12/02/2024,RS156658,80.00,0.00,REDACT,Minor Adaptations,
Wyre Council,http://opendatacommunities.org/doc/district-council/wyre,28/02/2024,Resources,Housing General Fund,134A,J A DICKENS LIMITED,12/02/2024,RS156659,70.00,0.00,REDACT,Minor Adaptations,
Wyre Council,http://opendatacommunities.org/doc/district-council/wyre,28/02/2024,Resources,Housing General Fund,134A,J A DICKENS LIMITED,12/02/2024,RS156659,90.00,0.00,REDACT,Minor Adaptations,
Wyre Council,http://opendatacommunities.org/doc/district-council/wyre,28/02/2024,Resources,Housing General Fund,134A,J A DICKENS LIMITED,12/02/2024,RS156660,70.00,0.00,REDACT,Minor Adaptations,
Wyre Council,http://opendatacommunities.org/doc/district-council/wyre,28/02/2024,Resources,Housing General Fund,134A,J A DICKENS LIMITED,12/02/2024,RS156660,90.00,0.00,REDACT,Minor Adaptations,
Wyre Council,http://opendatacommunities.org/doc/district-council/wyre,28/02/2024,Resources,Housing General Fund,134A,J A DICKENS LIMITED,12/02/2024,RS156661,70.00,0.00,REDACT,Minor Adaptations,
Wyre Council,http://opendatacommunities.org/doc/district-council/wyre,28/02/2024,Resources,Housing General Fund,134A,J A DICKENS LIMITED,12/02/2024,RS156661,90.00,0.00,REDACT,Minor Adaptations,
Wyre Council,http://opendatacommunities.org/doc/district-council/wyre,28/02/2024,Resources,Housing General Fund,134A,J A DICKENS LIMITED,12/02/2024,RS156662,70.00,0.00,REDACT,Minor Adaptations,
Wyre Council,http://opendatacommunities.org/doc/district-council/wyre,28/02/2024,Resources,Housing General Fund,134A,J A DICKENS LIMITED,12/02/2024,RS156662,90.00,0.00,REDACT,Minor Adaptations,
Wyre Council,http://opendatacommunities.org/doc/district-council/wyre,28/02/2024,Resources,Housing General Fund,134A,J A DICKENS LIMITED,12/02/2024,RS156663,180.00,0.00,REDACT,Minor Adaptations,
Wyre Council,http://opendatacommunities.org/doc/district-council/wyre,28/02/2024,Resources,Housing General Fund,134A,J A DICKENS LIMITED,12/02/2024,RS156663,140.00,0.00,REDACT,Minor Adaptations,
Wyre Council,http://opendatacommunities.org/doc/district-council/wyre,28/02/2024,Resources,Housing General Fund,134A,J A DICKENS LIMITED,12/02/2024,RS156664,180.00,0.00,REDACT,Minor Adaptations,
Wyre Council,http://opendatacommunities.org/doc/district-council/wyre,28/02/2024,Resources,Housing General Fund,134A,J A DICKENS LIMITED,12/02/2024,RS156664,140.00,0.00,REDACT,Minor Adaptations,
Wyre Council,http://opendatacommunities.org/doc/district-council/wyre,28/02/2024,Resources,Housing General Fund,134A,J A DICKENS LIMITED,12/02/2024,RS156665,180.00,0.00,REDACT,Minor Adaptations,
Wyre Council,http://opendatacommunities.org/doc/district-council/wyre,28/02/2024,Resources,Housing General Fund,134A,J A DICKENS LIMITED,12/02/2024,RS156665,140.00,0.00,REDACT,Minor Adaptations,
Wyre Council,http://opendatacommunities.org/doc/district-council/wyre,28/02/2024,Resources,Housing General Fund,134A,J A DICKENS LIMITED,12/02/2024,RS156666,180.00,0.00,REDACT,Minor Adaptations,
Wyre Council,http://opendatacommunities.org/doc/district-council/wyre,28/02/2024,Resources,Housing General Fund,134A,J A DICKENS LIMITED,12/02/2024,RS156666,140.00,0.00,REDACT,Minor Adaptations,
Wyre Council,http://opendatacommunities.org/doc/district-council/wyre,28/02/2024,Resources,Housing General Fund,134A,J A DICKENS LIMITED,12/02/2024,RS156667,300.00,0.00,REDACT,Minor Adaptations,
Wyre Council,http://opendatacommunities.org/doc/district-council/wyre,28/02/2024,Resources,Housing General Fund,134A,J A DICKENS LIMITED,12/02/2024,RS156667,380.00,0.00,REDACT,Minor Adaptations,
Wyre Council,http://opendatacommunities.org/doc/district-council/wyre,28/02/2024,Resources,Housing General Fund,134A,J A DICKENS LIMITED,12/02/2024,RS156668,400.00,0.00,REDACT,Minor Adaptations,
Wyre Council,http://opendatacommunities.org/doc/district-council/wyre,28/02/2024,Resources,Housing General Fund,134A,J A DICKENS LIMITED,12/02/2024,RS156668,420.00,0.00,REDACT,Minor Adaptations,
Wyre Council,http://opendatacommunities.org/doc/district-council/wyre,28/02/2024,Resources,Housing General Fund,134A,J A DICKENS LIMITED,12/02/2024,RS156669,280.00,0.00,REDACT,Minor Adaptations,
Wyre Council,http://opendatacommunities.org/doc/district-council/wyre,28/02/2024,Resources,Housing General Fund,134A,J A DICKENS LIMITED,12/02/2024,RS156669,160.00,0.00,REDACT,Minor Adaptations,
Wyre Council,http://opendatacommunities.org/doc/district-council/wyre,28/02/2024,Resources,Current Assets,130B,SME HCI Ltd,13/02/2024,RS156722,1928.30,0.00,Invoice Number: 147743,Miscellaneous Debits,
Wyre Council,http://opendatacommunities.org/doc/district-council/wyre,28/02/2024,Resources,Current Assets,130B,SME HCI Ltd,13/02/2024,RS156723,1288.60,0.00,Invoice Number: 149006,Miscellaneous Debits,
Wyre Council,http://opendatacommunities.org/doc/district-council/wyre,28/02/2024,Resources,Current Assets,130B,SME HCI Ltd,13/02/2024,RS156724,4735.50,0.00,Invoice Number: 149710,Miscellaneous Debits,
Wyre Council,http://opendatacommunities.org/doc/district-council/wyre,28/02/2024,Resources,Current Assets,130B,SME HCI Ltd,13/02/2024,RS156725,2189.50,0.00,Invoice Number: 150298,Miscellaneous Debits,
Wyre Council,http://opendatacommunities.org/doc/district-council/wyre,28/02/2024,Resources,Central Services to the Public,131C,VODAFONE LIMITED,14/02/2024,RS156727,-6.20,0.00,Phone Charges 01/02/24 to 29/02/24,Mobile Devices,
Wyre Council,http://opendatacommunities.org/doc/district-council/wyre,28/02/2024,Resources,Central Services to the Public,131C,VODAFONE LIMITED,12/02/2024,RS156014,24.00,0.00,Phone Charges 01/01/24 to 31/01/24,Mobile Devices,
Wyre Council,http://opendatacommunities.org/doc/district-council/wyre,28/02/2024,Resources,Support Services,135B,VODAFONE LIMITED,12/02/2024,RS156014,80.00,0.00,Phone Charges 01/01/24 to 31/01/24,Mobile Devices,
Wyre Council,http://opendatacommunities.org/doc/district-council/wyre,28/02/2024,Resources,Support Services,135B,VODAFONE LIMITED,14/02/2024,RS156727,-17.82,0.00,Phone Charges 01/02/24 to 29/02/24,Mobile Devices,
Wyre Council,http://opendatacommunities.org/doc/district-council/wyre,28/02/2024,Resources,Support Services,135B,VODAFONE LIMITED,12/02/2024,RS156014,48.00,0.00,Phone Charges 01/01/24 to 31/01/24,Mobile Devices,
Wyre Council,http://opendatacommunities.org/doc/district-council/wyre,28/02/2024,Resources,Support Services,135B,VODAFONE LIMITED,14/02/2024,RS156727,-12.40,0.00,Phone Charges 01/02/24 to 29/02/24,Mobile Devices,
Wyre Council,http://opendatacommunities.org/doc/district-council/wyre,28/02/2024,Resources,Support Services,135B,VODAFONE LIMITED,14/02/2024,RS156727,-2.79,0.00,Phone Charges 01/02/24 to 29/02/24,Mobile Devices,
Wyre Council,http://opendatacommunities.org/doc/district-council/wyre,28/02/2024,Resources,Support Services,135B,VODAFONE LIMITED,12/02/2024,RS156014,12.00,0.00,Phone Charges 01/01/24 to 31/01/24,Mobile Devices,
Wyre Council,http://opendatacommunities.org/doc/district-council/wyre,28/02/2024,Resources,Housing General Fund,134A,VODAFONE LIMITED,14/02/2024,RS156727,-16.77,0.00,Phone Charges 01/02/24 to 29/02/24,Mobile Devices,
Wyre Council,http://opendatacommunities.org/doc/district-council/wyre,28/02/2024,Resources,Housing General Fund,134A,VODAFONE LIMITED,14/02/2024,RS156727,-7.64,0.00,Phone Charges 01/02/24 to 29/02/24,Mobile Devices,
Wyre Council,http://opendatacommunities.org/doc/district-council/wyre,28/02/2024,Resources,Housing General Fund,134A,VODAFONE LIMITED,12/02/2024,RS156014,32.00,0.00,Phone Charges 01/01/24 to 31/01/24,Mobile Devices,
Wyre Council,http://opendatacommunities.org/doc/district-council/wyre,28/02/2024,Resources,Support Services,135B,VODAFONE LIMITED,12/02/2024,RS156014,36.00,0.00,Phone Charges 01/01/24 to 31/01/24,Mobile Devices,
Wyre Council,http://opendatacommunities.org/doc/district-council/wyre,28/02/2024,Resources,Support Services,135B,VODAFONE LIMITED,14/02/2024,RS156727,-8.68,0.00,Phone Charges 01/02/24 to 29/02/24,Mobile Devices,
Wyre Council,http://opendatacommunities.org/doc/district-council/wyre,28/02/2024,Resources,Support Services,135B,VODAFONE LIMITED,14/02/2024,RS156727,-69.89,0.00,Phone Charges 01/02/24 to 29/02/24,Mobile Devices,
Wyre Council,http://opendatacommunities.org/doc/district-council/wyre,28/02/2024,Resources,Support Services,135B,VODAFONE LIMITED,12/02/2024,RS156014,291.48,0.00,Phone Charges 01/01/24 to 31/01/24,Mobile Devices,
Wyre Council,http://opendatacommunities.org/doc/district-council/wyre,28/02/2024,Resources,Support Services,135B,VODAFONE LIMITED,12/02/2024,RS156014,18.97,0.00,Phone Charges 01/01/24 to 31/01/24,Mobile Devices,
Wyre Council,http://opendatacommunities.org/doc/district-council/wyre,28/02/2024,Resources,Support Services,135B,VODAFONE LIMITED,12/02/2024,RS156014,48.00,0.00,Phone Charges 01/01/24 to 31/01/24,Mobile Devices,
Wyre Council,http://opendatacommunities.org/doc/district-council/wyre,28/02/2024,Resources,Support Services,135B,VODAFONE LIMITED,14/02/2024,RS156727,-3.10,0.00,Phone Charges 01/02/24 to 29/02/24,Mobile Devices,
Wyre Council,http://opendatacommunities.org/doc/district-council/wyre,28/02/2024,Resources,Support Services,135B,VODAFONE LIMITED,14/02/2024,RS156727,612.20,0.00,Phone Charges 01/02/24 to 29/02/24,Mobile Devices,
Wyre Council,http://opendatacommunities.org/doc/district-council/wyre,28/02/2024,Resources,Support Services,135B,VODAFONE LIMITED,12/02/2024,RS156014,32.00,0.00,Phone Charges 01/01/24 to 31/01/24,Mobile Devices,
Wyre Council,http://opendatacommunities.org/doc/district-council/wyre,28/02/2024,Resources,Support Services,135B,VODAFONE LIMITED,14/02/2024,RS156727,-7.33,0.00,Phone Charges 01/02/24 to 29/02/24,Mobile Devices,
Wyre Council,http://opendatacommunities.org/doc/district-council/wyre,28/02/2024,Resources,Support Services,135B,VODAFONE LIMITED,15/02/2024,RS156014,28.00,0.00,Phone Charges 01/01/24 to 31/01/24,Mobile Devices,
Wyre Council,http://opendatacommunities.org/doc/district-council/wyre,28/02/2024,Resources,Support Services,135B,VODAFONE LIMITED,15/02/2024,RS156727,-6.30,0.00,Phone Charges 01/02/24 to 29/02/24,Mobile Devices,
Wyre Council,http://opendatacommunities.org/doc/district-council/wyre,28/02/2024,Resources,Cultural and Related Services,132A,VODAFONE LIMITED,14/02/2024,RS156727,-6.20,0.00,Phone Charges 01/02/24 to 29/02/24,Mobile Devices,
Wyre Council,http://opendatacommunities.org/doc/district-council/wyre,28/02/2024,Resources,Cultural and Related Services,132A,VODAFONE LIMITED,12/02/2024,RS156014,24.00,0.00,Phone Charges 01/01/24 to 31/01/24,Mobile Devices,
Wyre Council,http://opendatacommunities.org/doc/district-council/wyre,28/02/2024,Resources,Housing General Fund,134A,VODAFONE LIMITED,12/02/2024,RS156014,12.00,0.00,Phone Charges 01/01/24 to 31/01/24,Mobile Devices,
Wyre Council,http://opendatacommunities.org/doc/district-council/wyre,28/02/2024,Resources,Housing General Fund,134A,VODAFONE LIMITED,12/02/2024,RS156014,72.00,0.00,Phone Charges 01/01/24 to 31/01/24,Mobile Devices,
Wyre Council,http://opendatacommunities.org/doc/district-council/wyre,28/02/2024,Resources,Housing General Fund,134A,VODAFONE LIMITED,14/02/2024,RS156727,-2.79,0.00,Phone Charges 01/02/24 to 29/02/24,Mobile Devices,
Wyre Council,http://opendatacommunities.org/doc/district-council/wyre,28/02/2024,Resources,Environmental Services,132B,VODAFONE LIMITED,14/02/2024,RS156727,-0.72,0.00,Phone Charges 01/02/24 to 29/02/24,Mobile Devices,
Wyre Council,http://opendatacommunities.org/doc/district-council/wyre,28/02/2024,Resources,Environmental Services,132B,VODAFONE LIMITED,12/02/2024,RS156014,4.00,0.00,Phone Charges 01/01/24 to 31/01/24,Mobile Devices,
Wyre Council,http://opendatacommunities.org/doc/district-council/wyre,28/02/2024,Resources,Cultural and Related Services,132A,VODAFONE LIMITED,14/02/2024,RS156727,-6.20,0.00,Phone Charges 01/02/24 to 29/02/24,Mobile Devices,
Wyre Council,http://opendatacommunities.org/doc/district-council/wyre,28/02/2024,Resources,Cultural and Related Services,132A,VODAFONE LIMITED,12/02/2024,RS156014,24.00,0.00,Phone Charges 01/01/24 to 31/01/24,Mobile Devices,
Wyre Council,http://opendatacommunities.org/doc/district-council/wyre,28/02/2024,Resources,Cultural and Related Services,132A,VODAFONE LIMITED,14/02/2024,RS156727,-3.10,0.00,Phone Charges 01/02/24 to 29/02/24,Mobile Devices,
Wyre Council,http://opendatacommunities.org/doc/district-council/wyre,28/02/2024,Resources,Cultural and Related Services,132A,VODAFONE LIMITED,12/02/2024,RS156014,12.00,0.00,Phone Charges 01/01/24 to 31/01/24,Mobile Devices,
Wyre Council,http://opendatacommunities.org/doc/district-council/wyre,28/02/2024,Resources,Support Services,135B,VODAFONE LIMITED,12/02/2024,RS156014,168.00,0.00,Phone Charges 01/01/24 to 31/01/24,Mobile Devices,
Wyre Council,http://opendatacommunities.org/doc/district-council/wyre,28/02/2024,Resources,Support Services,135B,VODAFONE LIMITED,14/02/2024,RS156727,-43.40,0.00,Phone Charges 01/02/24 to 29/02/24,Mobile Devices,
Wyre Council,http://opendatacommunities.org/doc/district-council/wyre,28/02/2024,Resources,Corporate and Democratic Core,131A,VODAFONE LIMITED,12/02/2024,RS156014,12.00,0.00,Phone Charges 01/01/24 to 31/01/24,Mobile Devices,
Wyre Council,http://opendatacommunities.org/doc/district-council/wyre,28/02/2024,Resources,Corporate and Democratic Core,131A,VODAFONE LIMITED,14/02/2024,RS156727,-3.10,0.00,Phone Charges 01/02/24 to 29/02/24,Mobile Devices,
Wyre Council,http://opendatacommunities.org/doc/district-council/wyre,28/02/2024,Resources,Support Services,135B,VODAFONE LIMITED,12/02/2024,RS156014,12.00,0.00,Phone Charges 01/01/24 to 31/01/24,Mobile Devices,
Wyre Council,http://opendatacommunities.org/doc/district-council/wyre,28/02/2024,Resources,Support Services,135B,VODAFONE LIMITED,14/02/2024,RS156727,-2.79,0.00,Phone Charges 01/02/24 to 29/02/24,Mobile Devices,
Wyre Council,http://opendatacommunities.org/doc/district-council/wyre,28/02/2024,Resources,Support Services,135B,VODAFONE LIMITED,14/02/2024,RS156727,-6.20,0.00,Phone Charges 01/02/24 to 29/02/24,Mobile Devices,
Wyre Council,http://opendatacommunities.org/doc/district-council/wyre,28/02/2024,Resources,Support Services,135B,VODAFONE LIMITED,12/02/2024,RS156014,24.00,0.00,Phone Charges 01/01/24 to 31/01/24,Mobile Devices,
Wyre Council,http://opendatacommunities.org/doc/district-council/wyre,28/02/2024,Resources,Cultural and Related Services,132A,VODAFONE LIMITED,14/02/2024,RS156727,-2.79,0.00,Phone Charges 01/02/24 to 29/02/24,Mobile Devices,
Wyre Council,http://opendatacommunities.org/doc/district-council/wyre,28/02/2024,Resources,Cultural and Related Services,132A,VODAFONE LIMITED,12/02/2024,RS156014,12.00,0.00,Phone Charges 01/01/24 to 31/01/24,Mobile Devices,
Wyre Council,http://opendatacommunities.org/doc/district-council/wyre,28/02/2024,Resources,Environmental Services,132B,VODAFONE LIMITED,12/02/2024,RS156014,84.00,0.00,Phone Charges 01/01/24 to 31/01/24,Mobile Devices,
Wyre Council,http://opendatacommunities.org/doc/district-council/wyre,28/02/2024,Resources,Environmental Services,132B,VODAFONE LIMITED,14/02/2024,RS156727,-17.01,0.00,Phone Charges 01/02/24 to 29/02/24,Mobile Devices,
Wyre Council,http://opendatacommunities.org/doc/district-council/wyre,28/02/2024,Resources,Central Services to the Public,131C,VODAFONE LIMITED,14/02/2024,RS156727,-2.79,0.00,Phone Charges 01/02/24 to 29/02/24,Mobile Devices,
Wyre Council,http://opendatacommunities.org/doc/district-council/wyre,28/02/2024,Resources,Central Services to the Public,131C,VODAFONE LIMITED,12/02/2024,RS156014,12.00,0.00,Phone Charges 01/01/24 to 31/01/24,Mobile Devices,
Wyre Council,http://opendatacommunities.org/doc/district-council/wyre,28/02/2024,Resources,Support Services,135B,VODAFONE LIMITED,12/02/2024,RS156014,52.00,0.00,Phone Charges 01/01/24 to 31/01/24,Mobile Devices,
Wyre Council,http://opendatacommunities.org/doc/district-council/wyre,28/02/2024,Resources,Support Services,135B,VODAFONE LIMITED,14/02/2024,RS156727,-11.60,0.00,Phone Charges 01/02/24 to 29/02/24,Mobile Devices,
Wyre Council,http://opendatacommunities.org/doc/district-council/wyre,28/02/2024,Resources,Support Services,135B,VODAFONE LIMITED,14/02/2024,RS156727,-44.51,0.00,Phone Charges 01/02/24 to 29/02/24,Mobile Devices,
Wyre Council,http://opendatacommunities.org/doc/district-council/wyre,28/02/2024,Resources,Support Services,135B,VODAFONE LIMITED,14/02/2024,RS156727,-8.99,0.00,Phone Charges 01/02/24 to 29/02/24,Mobile Devices,
Wyre Council,http://opendatacommunities.org/doc/district-council/wyre,28/02/2024,Resources,Support Services,135B,VODAFONE LIMITED,12/02/2024,RS156014,36.00,0.00,Phone Charges 01/01/24 to 31/01/24,Mobile Devices,
Wyre Council,http://opendatacommunities.org/doc/district-council/wyre,28/02/2024,Resources,Support Services,135B,VODAFONE LIMITED,12/02/2024,RS156014,180.00,0.00,Phone Charges 01/01/24 to 31/01/24,Mobile Devices,
Wyre Council,http://opendatacommunities.org/doc/district-council/wyre,28/02/2024,Resources,Support Services,135B,VODAFONE LIMITED,14/02/2024,RS156727,-43.39,0.00,Phone Charges 01/02/24 to 29/02/24,Mobile Devices,
Wyre Council,http://opendatacommunities.org/doc/district-council/wyre,28/02/2024,Resources,Support Services,135B,VODAFONE LIMITED,12/02/2024,RS156014,24.00,0.00,Phone Charges 01/01/24 to 31/01/24,Mobile Devices,
Wyre Council,http://opendatacommunities.org/doc/district-council/wyre,28/02/2024,Resources,Support Services,135B,VODAFONE LIMITED,14/02/2024,RS156727,-5.58,0.00,Phone Charges 01/02/24 to 29/02/24,Mobile Devices,
Wyre Council,http://opendatacommunities.org/doc/district-council/wyre,28/02/2024,Resources,Support Services,135B,VODAFONE LIMITED,12/02/2024,RS156014,209.33,0.00,Phone Charges 01/01/24 to 31/01/24,Mobile Devices,
Wyre Council,http://opendatacommunities.org/doc/district-council/wyre,28/02/2024,Resources,Housing General Fund,134A,VODAFONE LIMITED,12/02/2024,RS156014,36.00,0.00,Phone Charges 01/01/24 to 31/01/24,Mobile Devices,
Wyre Council,http://opendatacommunities.org/doc/district-council/wyre,28/02/2024,Resources,Housing General Fund,134A,VODAFONE LIMITED,14/02/2024,RS156727,-8.37,0.00,Phone Charges 01/02/24 to 29/02/24,Mobile Devices,
Wyre Council,http://opendatacommunities.org/doc/district-council/wyre,28/02/2024,Resources,Support Services,135B,VODAFONE LIMITED,14/02/2024,RS156727,-8.68,0.00,Phone Charges 01/02/24 to 29/02/24,Mobile Devices,
Wyre Council,http://opendatacommunities.org/doc/district-council/wyre,28/02/2024,Resources,Support Services,135B,VODAFONE LIMITED,12/02/2024,RS156014,36.00,0.00,Phone Charges 01/01/24 to 31/01/24,Mobile Devices,
Wyre Council,http://opendatacommunities.org/doc/district-council/wyre,28/02/2024,Resources,Support Services,135B,VODAFONE LIMITED,12/02/2024,RS156014,112.00,0.00,Phone Charges 01/01/24 to 31/01/24,Mobile Devices,
Wyre Council,http://opendatacommunities.org/doc/district-council/wyre,28/02/2024,Resources,Support Services,135B,VODAFONE LIMITED,14/02/2024,RS156727,-27.38,0.00,Phone Charges 01/02/24 to 29/02/24,Mobile Devices,
Wyre Council,http://opendatacommunities.org/doc/district-council/wyre,28/02/2024,Resources,Support Services,135B,VODAFONE LIMITED,14/02/2024,RS156727,-17.98,0.00,Phone Charges 01/02/24 to 29/02/24,Mobile Devices,
Wyre Council,http://opendatacommunities.org/doc/district-council/wyre,28/02/2024,Resources,Support Services,135B,VODAFONE LIMITED,12/02/2024,RS156014,72.00,0.00,Phone Charges 01/01/24 to 31/01/24,Mobile Devices,
Wyre Council,http://opendatacommunities.org/doc/district-council/wyre,28/02/2024,Resources,Support Services,135B,VODAFONE LIMITED,12/02/2024,RS156014,145.64,0.00,Phone Charges 01/01/24 to 31/01/24,Mobile Devices,
Wyre Council,http://opendatacommunities.org/doc/district-council/wyre,28/02/2024,Resources,Support Services,135B,VODAFONE LIMITED,14/02/2024,RS156727,-33.18,0.00,Phone Charges 01/02/24 to 29/02/24,Mobile Devices,
Wyre Council,http://opendatacommunities.org/doc/district-council/wyre,28/02/2024,Resources,Environmental Services,132B,VODAFONE LIMITED,14/02/2024,RS156727,-3.82,0.00,Phone Charges 01/02/24 to 29/02/24,Mobile Devices,
Wyre Council,http://opendatacommunities.org/doc/district-council/wyre,28/02/2024,Resources,Environmental Services,132B,VODAFONE LIMITED,12/02/2024,RS156014,16.00,0.00,Phone Charges 01/01/24 to 31/01/24,Mobile Devices,
Wyre Council,http://opendatacommunities.org/doc/district-council/wyre,28/02/2024,Finance,Current Assets,130B,,06/02/2024,WPST00132637,796.00,0.00,02/02/24 NNDR Refunds,NNDR Refunds,
Wyre Council,http://opendatacommunities.org/doc/district-council/wyre,28/02/2024,Finance,Current Assets,130B,,13/02/2024,WPST00133302,3783.97,0.00,09/02/24 NNDR Refunds,NNDR Refunds,
Wyre Council,http://opendatacommunities.org/doc/district-council/wyre,28/02/2024,Finance,Current Assets,130B,,27/02/2024,WPST00134401,28067.98,0.00,23/02/24 NNDR Refunds,NNDR Refunds,
Wyre Council,http://opendatacommunities.org/doc/district-council/wyre,28/02/2024,Finance,Current Assets,130B,,20/02/2024,WPST00133799,73907.19,0.00,16/02/24 Ctax Refunds,NNDR Refunds,
Wyre Council,http://opendatacommunities.org/doc/district-council/wyre,28/02/2024,Finance,General Fund below the line,136A,DEPARTMENT FOR COMMUNITIES AND LOCAL GOVERNMENT,21/02/2024,WPST00133946,643840.00,0.00,19/02/24 R V B C GENERAL,NNDR Tariff to Government,
Wyre Council,http://opendatacommunities.org/doc/district-council/wyre,28/02/2024,Finance,Collection Fund Revenue Accts,138A,DEPARTMENT FOR COMMUNITIES AND LOCAL GOVERNMENT,21/02/2024,WPST00133947,1022749.00,0.00,DLUHC - Business Rates Cent Share 19/02/,NNDR Tariff to Government,
Wyre Council,http://opendatacommunities.org/doc/district-council/wyre,28/02/2024,Resources,Support Services,135B,People Asset Management LTD,14/02/2024,RS156419,1037.00,0.00,OHIO Annual Fee - 1 October 2023 to 30 September 2024,Occupational Health Fees,
Wyre Council,http://opendatacommunities.org/doc/district-council/wyre,28/02/2024,Resources,Support Services,135B,Karen Openshaw Consultancy,07/02/2024,RS156549,520.00,0.00,Listening Services until March 22024,Occupational Health Fees,
Wyre Council,http://opendatacommunities.org/doc/district-council/wyre,28/02/2024,People and Places,Environmental Services,132B,DANFO (UK) LTD,02/02/2024,PE156412,23387.86,0.00,Public Conveniences - Maintenance and Cleaning 2023/24,Other Establishments,
Wyre Council,http://opendatacommunities.org/doc/district-council/wyre,28/02/2024,Finance,Collection Fund Revenue Accts,138A,LANCASHIRE FIRE AUTHORITY,08/02/2024,WPST00132885,25569.00,0.00,6/2/24 Precept LFire 23/24 Business Rate,Other Local Authorities,
Wyre Council,http://opendatacommunities.org/doc/district-council/wyre,28/02/2024,Finance,Collection Fund Revenue Accts,138A,LANCASHIRE COUNTY COUNCIL,08/02/2024,WPST00132881,230119.00,0.00,6/2/24 PreceptLCC 23/24 Business Rates,Other Local Authorities,
Wyre Council,http://opendatacommunities.org/doc/district-council/wyre,28/02/2024,Finance,Collection Fund Revenue Accts,138A,LANCASHIRE COUNTY COUNCIL,08/02/2024,WPST00132876,6061941.00,0.00,6/02/24 Precepts LCC 23/24 Council Tax,Other Local Authorities,
Wyre Council,http://opendatacommunities.org/doc/district-council/wyre,28/02/2024,Finance,Collection Fund Revenue Accts,138A,LANCASHIRE FIRE AUTHORITY,08/02/2024,WPST00132880,297674.00,0.00,6/2/24 Pre LCC 22/23 Council Tax Surplus,Other Local Authorities,
Wyre Council,http://opendatacommunities.org/doc/district-council/wyre,28/02/2024,Finance,Collection Fund Revenue Accts,138A,,08/02/2024,WPST00132887,967972.00,0.00,6/2/24 Precept PCC 23/24 Council Tax,Other Local Authorities,
Wyre Council,http://opendatacommunities.org/doc/district-council/wyre,28/02/2024,Finance,Collection Fund Revenue Accts,138A,,08/02/2024,WPST00132888,46481.00,0.00,6/2/24 Precept PCC 22/23 CTax Surplus,Other Local Authorities,
Wyre Council,http://opendatacommunities.org/doc/district-council/wyre,28/02/2024,Finance,Collection Fund Revenue Accts,138A,LANCASHIRE FIRE AUTHORITY,08/02/2024,WPST00132883,316703.00,0.00,6/2/24 Precept Lancs Fire 23/24  CTax,Other Local Authorities,
Wyre Council,http://opendatacommunities.org/doc/district-council/wyre,28/02/2024,Finance,Collection Fund Revenue Accts,138A,,08/02/2024,WPST00132884,15190.00,0.00,6/2/24 Precept LFire 22/23 CTax Surplus,Other Local Authorities,
Wyre Council,http://opendatacommunities.org/doc/district-council/wyre,28/02/2024,People and Places,Cultural and Related Services,132A,T-Fer Tree Surgeons,12/02/2024,PE156653,780.00,0.00,"Quote 52  01/02/2024     The Mount, FleetwoodScheduled tree work around The Mount park         780Total net amount VAT @20% Quote total",Other Materials,
Wyre Council,http://opendatacommunities.org/doc/district-council/wyre,28/02/2024,People and Places,Cultural and Related Services,132A,T-Fer Tree Surgeons,19/02/2024,PE156913,980.00,0.00,"Quote 53 Date: 09/02/2024     Location/AddressJob DescriptionPriceThe Mount, FleetwoodScheduled tree work around The Mount park         980Total net amount 980VAT @20% 0Quote total 980",Other Materials,
Wyre Council,http://opendatacommunities.org/doc/district-council/wyre,28/02/2024,People and Places,Parking Services,133F,Park Now Limited,09/02/2024,PE156600,557.92,0.00,RingGo fee 1 Nov 2023 - 31 March 2024,Other Parking Fees and Commission,
Wyre Council,http://opendatacommunities.org/doc/district-council/wyre,28/02/2024,Finance,Corporate and Democratic Core,131A,LANCASHIRE COUNTY COUNCIL,01/02/2024,WPST00132146,16271.44,0.00,30-01-24 Pension,Pension Increase Act Payments,
Wyre Council,http://opendatacommunities.org/doc/district-council/wyre,28/02/2024,People and Places,Environmental Services,132B,Lancashire County Council,01/02/2024,PE156406,243.88,0.00,Poulton-le-Fylde New Cemetery - Legionella Risk  Assessment,Planned Building Maintenance,
Wyre Council,http://opendatacommunities.org/doc/district-council/wyre,28/02/2024,People and Places,Cultural and Related Services,132A,Lancashire County Council,01/02/2024,PE156406,174.14,0.00,Thornton Cleveleys Marsh Mill - Legionella Risk  Assessment,Planned Building Maintenance,
Wyre Council,http://opendatacommunities.org/doc/district-council/wyre,28/02/2024,People and Places,Cultural and Related Services,132A,Lancashire County Council,01/02/2024,PE156406,336.61,0.00,Poulton-le-Fylde Vicarage Park - Legionella Risk  Assessment,Planned Building Maintenance,
Wyre Council,http://opendatacommunities.org/doc/district-council/wyre,28/02/2024,People and Places,Cultural and Related Services,132A,Lancashire County Council,01/02/2024,PE156406,371.48,0.00,Poulton-le-Fylde Vicarage Park - Legionella Risk  Assessment,Planned Building Maintenance,
Wyre Council,http://opendatacommunities.org/doc/district-council/wyre,28/02/2024,People and Places,Public Transport,133G,Lancashire County Council,01/02/2024,PE156406,243.74,0.00,Thornton Cleveleys Bus Station - Legionella Risk  Assessment,Planned Building Maintenance,
Wyre Council,http://opendatacommunities.org/doc/district-council/wyre,28/02/2024,People and Places,Planning and Development Servs,132C,Lancashire County Council,01/02/2024,PE156406,209.01,0.00,Thornton Cleveleys Unit 2 Croft Court - Legionella Risk  Assessment,Planned Building Maintenance,
Wyre Council,http://opendatacommunities.org/doc/district-council/wyre,28/02/2024,People and Places,Planning and Development Servs,132C,Lancashire County Council,01/02/2024,PE156406,139.27,0.00,Thornton Cleveleys Unit 5 Croft Court - Legionella Risk  Assessment,Planned Building Maintenance,
Wyre Council,http://opendatacommunities.org/doc/district-council/wyre,28/02/2024,People and Places,Support Services,135B,John Carney,08/02/2024,PE156586,550.00,0.00,"Civic Centre: For clearing our all gutters to all main roofs, land valleys and all gulley hoppers.  Clearing off all lower roofs, all clear of debris and running freely",Planned Building Maintenance,
Wyre Council,http://opendatacommunities.org/doc/district-council/wyre,28/02/2024,People and Places,Environmental Services,132B,The Columbaria Company,22/02/2024,PE156871,107.00,0.00,REDACT,Plaque Inscriptions and Furniture,
Wyre Council,http://opendatacommunities.org/doc/district-council/wyre,28/02/2024,People and Places,Environmental Services,132B,The Columbaria Company,02/02/2024,PE156413,144.70,0.00,REDACT,Plaque Inscriptions and Furniture,
Wyre Council,http://opendatacommunities.org/doc/district-council/wyre,28/02/2024,People and Places,Environmental Services,132B,The Columbaria Company,02/02/2024,PE156413,107.00,0.00,REDACT,Plaque Inscriptions and Furniture,
Wyre Council,http://opendatacommunities.org/doc/district-council/wyre,28/02/2024,People and Places,Environmental Services,132B,The Columbaria Company,15/02/2024,PE156741,198.20,0.00,REDACT,Plaque Inscriptions and Furniture,
Wyre Council,http://opendatacommunities.org/doc/district-council/wyre,28/02/2024,People and Places,Environmental Services,132B,The Columbaria Company,13/02/2024,PE156757,183.00,0.00,REDACT,Plaque Inscriptions and Furniture,
Wyre Council,http://opendatacommunities.org/doc/district-council/wyre,28/02/2024,Finance,Central Services to the Public,131C,SANTANDER,09/02/2024,WPST00133014,613.88,0.00,07/02/24 Santander Charges Jan 24,Plastic Cards Processing Fees,
Wyre Council,http://opendatacommunities.org/doc/district-council/wyre,28/02/2024,People and Places,Support Services,135B,Wicksteed Leisure LTD,26/02/2024,PE157069,213.40,0.00,Parts as per Quotation WLLQ104923032-405 Teacup Twister Spindle Adaptor (Qty1),Playground Equipment,
Wyre Council,http://opendatacommunities.org/doc/district-council/wyre,28/02/2024,People and Places,Support Services,135B,Wicksteed Leisure LTD,26/02/2024,PE157069,3.63,0.00,2224-002  50852-318 (Qty3),Playground Equipment,
Wyre Council,http://opendatacommunities.org/doc/district-council/wyre,28/02/2024,People and Places,Support Services,135B,Wicksteed Leisure LTD,26/02/2024,PE157069,13.02,0.00,Carriage,Playground Equipment,
Wyre Council,http://opendatacommunities.org/doc/district-council/wyre,28/02/2024,People and Places,Support Services,135B,Wicksteed Leisure LTD,12/02/2024,PE156652,1452.00,0.00,As per quotation WLLQ99575901-891 Retrofit suspension unit for Rockerplay for framed suspension unit,Playground Equipment,
Wyre Council,http://opendatacommunities.org/doc/district-council/wyre,28/02/2024,People and Places,Support Services,135B,Wicksteed Leisure LTD,12/02/2024,PE156652,123.42,0.00,Carriage,Playground Equipment,
Wyre Council,http://opendatacommunities.org/doc/district-council/wyre,28/02/2024,People and Places,Support Services,135B,GB  Sport & Leisure UK LTD,16/02/2024,PE156891,800.00,0.00,SP-01-061 Curve Cradle Seat - Coloured - Flat Packed x10,Playground Equipment,
Wyre Council,http://opendatacommunities.org/doc/district-council/wyre,28/02/2024,People and Places,Support Services,135B,GB  Sport & Leisure UK LTD,16/02/2024,PE156891,165.00,0.00,SP-02-022 8mm Sheradised Chain - 25m,Playground Equipment,
Wyre Council,http://opendatacommunities.org/doc/district-council/wyre,28/02/2024,People and Places,Support Services,135B,GB  Sport & Leisure UK LTD,16/02/2024,PE156891,43.75,0.00,Delivery,Playground Equipment,
Wyre Council,http://opendatacommunities.org/doc/district-council/wyre,28/02/2024,Resources,Support Services,135B,The University Of Manchester,06/02/2024,RS156441,5250.00,0.00,George Briscoe Planning Msc 2023/24,Post Entry/Professional Training,
Wyre Council,http://opendatacommunities.org/doc/district-council/wyre,28/02/2024,Resources,Corporate and Democratic Core,131A,SOUTH WEST COUNCILS,28/02/2024,RS157135,1200.00,0.00,ADSO Certificate in Democratic Services Knowledge - George Ratcliffe (plus VAT),Post Entry/Professional Training,
Wyre Council,http://opendatacommunities.org/doc/district-council/wyre,28/02/2024,Resources,Support Services,135B,Critiqom LTD,16/02/2024,RS156889,1227.16,0.00,Services Jan 24 IQ post - CC,Postage,
Wyre Council,http://opendatacommunities.org/doc/district-council/wyre,28/02/2024,Resources,Support Services,135B,Critiqom LTD,16/02/2024,RS156890,831.82,0.00,Postage Jan 24 Council Tax Reminders,Postage,
Wyre Council,http://opendatacommunities.org/doc/district-council/wyre,28/02/2024,Resources,Support Services,135B,Critiqom LTD,16/02/2024,RS156890,43.73,0.00,Postage Jan 24 NNDR Reminders,Postage,
Wyre Council,http://opendatacommunities.org/doc/district-council/wyre,28/02/2024,Resources,Support Services,135B,Critiqom LTD,16/02/2024,RS156889,442.36,0.00,Services Jan 24 IQ Post - Planning,Postage,
Wyre Council,http://opendatacommunities.org/doc/district-council/wyre,28/02/2024,Resources,Cultural and Related Services,132A,Critiqom LTD,16/02/2024,RS156889,22.61,0.00,Services Jan 24 IQ Post - Marine Hall,Postage,
Wyre Council,http://opendatacommunities.org/doc/district-council/wyre,28/02/2024,Resources,Central Services to the Public,131C,Critiqom LTD,16/02/2024,RS156889,269.06,0.00,Services Jan 24 IQ post - Electoral,Postage,
Wyre Council,http://opendatacommunities.org/doc/district-council/wyre,28/02/2024,Resources,Support Services,135B,Critiqom LTD,16/02/2024,RS156889,241.19,0.00,Services Jan 24 Ctax Reminders,Postage,
Wyre Council,http://opendatacommunities.org/doc/district-council/wyre,28/02/2024,Resources,Support Services,135B,Critiqom LTD,16/02/2024,RS156889,6.22,0.00,Services Jan 24 NNDR Reminders,Postage,
Wyre Council,http://opendatacommunities.org/doc/district-council/wyre,28/02/2024,Resources,Support Services,135B,Critiqom LTD,16/02/2024,RS156889,519.10,0.00,Services Jan 24 IQ post - Off Serv Admin,Postage,
Wyre Council,http://opendatacommunities.org/doc/district-council/wyre,28/02/2024,Resources,Support Services,135B,Critiqom LTD,16/02/2024,RS156889,5.46,0.00,Services Jan 24 IQ Post - Cemeteries,Postage,
Wyre Council,http://opendatacommunities.org/doc/district-council/wyre,28/02/2024,Resources,Support Services,135B,Critiqom LTD,16/02/2024,RS156889,28.02,0.00,Services Jan 24 IQ Post - Pollution,Postage,
Wyre Council,http://opendatacommunities.org/doc/district-council/wyre,28/02/2024,Resources,Housing General Fund,134A,Critiqom LTD,16/02/2024,RS156889,45.57,0.00,Services Jan 24 Benefit Notifications,Postage,
Wyre Council,http://opendatacommunities.org/doc/district-council/wyre,28/02/2024,Resources,Housing General Fund,134A,Critiqom LTD,16/02/2024,RS156890,192.14,0.00,Postage Jan 24 Benefit Notifications,Postage,
Wyre Council,http://opendatacommunities.org/doc/district-council/wyre,28/02/2024,Resources,Central Services to the Public,131C,Critiqom LTD,16/02/2024,RS156890,2122.14,0.00,Postage Jan 24 Daily Bills,Postage,
Wyre Council,http://opendatacommunities.org/doc/district-council/wyre,28/02/2024,Resources,Central Services to the Public,131C,Critiqom LTD,16/02/2024,RS156889,470.87,0.00,Services Jan 24 Daily Bills,Postage,
Wyre Council,http://opendatacommunities.org/doc/district-council/wyre,28/02/2024,Resources,Support Services,135B,Amazon Business,22/02/2024,RS156918,-1000.00,0.00,against invocice RS156842,Postage,
Wyre Council,http://opendatacommunities.org/doc/district-council/wyre,28/02/2024,Resources,Support Services,135B,Amazon Business,22/02/2024,RS156842,1000.00,0.00,credited RS156918,Postage,
Wyre Council,http://opendatacommunities.org/doc/district-council/wyre,28/02/2024,Finance,Housing General Fund,134A,,06/02/2024,WPST00132635,12075.00,0.00,02/02/24 HB PAYMENTSHomes for Ukraine,Private Contractors,
Wyre Council,http://opendatacommunities.org/doc/district-council/wyre,28/02/2024,People and Places,Public Transport,133G,Wyre Marine Services,27/02/2024,PE157119,26055.00,0.00,"Knott End Ferry ServiceSchedule of  payments Oct 2023 - April 202412 Oct - 11 Nov  - 9,518.3312 Nov - 11 Dec  - 9,518.3312 Dec - 11 Jan  - 9,518.3312 Jan - 11 Feb  - 9,518.3312 Feb - 11 Mar  - 9,518.3412 Mar - 11 Apr  - 9,518.34",Private Contractors,
Wyre Council,http://opendatacommunities.org/doc/district-council/wyre,28/02/2024,People and Places,Support Services,135B,Pipescan LTD,08/02/2024,PE156592,850.00,0.00,"Please carry out works as recommended at King Georges, Thornton To avoid large silt up in the drainage sumps please empty with a tanker and wash down with a jetting unit to give the system a fresh start.Cost to carry out this work is 850+vatReq",Private Contractors,
Wyre Council,http://opendatacommunities.org/doc/district-council/wyre,28/02/2024,People and Places,Parking Services,133F,NSL Services Group,12/02/2024,PE156670,4535.60,0.00,Provide enforcement officer for Wyre Council car parks - 1 April 2023 - 31 March 2024,Private Contractors,
Wyre Council,http://opendatacommunities.org/doc/district-council/wyre,28/02/2024,People and Places,Environmental Services,132B,AMBER CONSULTANCY (MARPLE) LTD,14/02/2024,PE156844,980.00,0.00,"for  100 D rated food safety and hygiene inspections to include allergen management , completion of inspection documentation , letters for 0,1 and 2 rather premises where necessary , to input visit on the council data base system and communication of any",Private Contractors,
Wyre Council,http://opendatacommunities.org/doc/district-council/wyre,28/02/2024,People and Places,Parking Services,133F,CHIPSIDE LTD,26/02/2024,PE157071,520.89,0.00,provision of notice processing services 1 April 2023 - 31 March 2024; including postage,Private Contractors,
Wyre Council,http://opendatacommunities.org/doc/district-council/wyre,28/02/2024,People and Places,Parking Services,133F,CHIPSIDE LTD,07/02/2024,PE156561,39.45,0.00,Wyre Council bank transaction fees 1 April 2023 - 31 March 2024,Private Contractors,
Wyre Council,http://opendatacommunities.org/doc/district-council/wyre,28/02/2024,Resources,Planning and Development Servs,132C,Lancashire County Council,23/02/2024,RS157001,48989.00,0.00,Cleveleys Transport Study - LCC project design services,Project Costs,
Wyre Council,http://opendatacommunities.org/doc/district-council/wyre,28/02/2024,Resources,Planning and Development Servs,132C,Lancashire County Council,09/02/2024,RS156597,57.00,0.00,"Use of room for 14-16 people & kitchen at Garstang library for Bid Writing Training for 7.5 hours, 9-4.30pm - 52.50 plus 4.50 admin charge. 7 per hour. For TWMAD",Project Costs,
Wyre Council,http://opendatacommunities.org/doc/district-council/wyre,28/02/2024,People and Places,Planning and Development Servs,132C,Lancashire County Council,13/02/2024,PE156758,72816.00,0.00,Boost Provision - Initial Payment (UKSPF E23 Strengthening Local Entrepreneurial Ecosystems). LCC Ref: 1500014 Boost 5 UKSPF,Project Costs,
Wyre Council,http://opendatacommunities.org/doc/district-council/wyre,28/02/2024,People and Places,Cultural and Related Services,132A,Fylde Coast YMCA,21/02/2024,PE156925,-1500.00,0.00,Fleetwood YMCA Winter HAF delivery,Project Costs,
Wyre Council,http://opendatacommunities.org/doc/district-council/wyre,28/02/2024,People and Places,Cultural and Related Services,132A,Fylde Coast YMCA,20/02/2024,PE156924,-2640.00,0.00,YMCA Thornton Winter HAF deliver 2023,Project Costs,
Wyre Council,http://opendatacommunities.org/doc/district-council/wyre,28/02/2024,Resources,Planning and Development Servs,132C,Fleetwood Museum Trust,13/02/2024,RS156746,15000.00,0.00,HAZ Fleetwood Light Show,Project Costs,
Wyre Council,http://opendatacommunities.org/doc/district-council/wyre,28/02/2024,Resources,Planning and Development Servs,132C,IBI GROUP UK LTD,14/02/2024,RS156822,5823.00,0.00,E14: Relevant feasibility studies � Fleetwood Waterfront Leisure Masterplan additional fees,Project Costs,
Wyre Council,http://opendatacommunities.org/doc/district-council/wyre,28/02/2024,People and Places,Planning and Development Servs,132C,IBI GROUP UK LTD,29/02/2024,PE157174,11400.00,0.00,E14: Relevant feasibility studies � Fleetwood Waterfront Leisure Masterplan fees,Project Costs,
Wyre Council,http://opendatacommunities.org/doc/district-council/wyre,28/02/2024,People and Places,Planning and Development Servs,132C,STANTEC UK LTD,22/02/2024,PE157006,19888.00,0.00,Garstang Town Centre Public Realm Improvements: Design & Public Consultation - Third Payment (UKSPF E01: Improvements To Town Centres & High Streets),Project Costs,
Wyre Council,http://opendatacommunities.org/doc/district-council/wyre,28/02/2024,People and Places,Planning and Development Servs,132C,The Lunchbox Ltd,08/02/2024,PE156567,156.50,0.00,"To provide catering for a `Bid Writing Training` Course for 18 people at The Lofthouse Building in Fleetwood. To include Sandwiches, Savouries & Cakes on Thursday 1 February 2024",Project Costs,
Wyre Council,http://opendatacommunities.org/doc/district-council/wyre,28/02/2024,People and Places,Cultural and Related Services,132A,EW SSC Limited t/a SportsCool Fylde,07/02/2024,PE156442,-4576.00,0.00,Meals for HAF,Project Costs,
Wyre Council,http://opendatacommunities.org/doc/district-council/wyre,28/02/2024,People and Places,Planning and Development Servs,132C,PSM Group,21/02/2024,PE156984,705.00,0.00,5 signs print and instalationnew market offices,Promotions - General,
Wyre Council,http://opendatacommunities.org/doc/district-council/wyre,28/02/2024,People and Places,Planning and Development Servs,132C,PSM Group,21/02/2024,PE156985,1000.00,0.00,call out make safe and re print storm damaged signs also tint to 4 market office windowsnew market offices,Promotions - General,
Wyre Council,http://opendatacommunities.org/doc/district-council/wyre,28/02/2024,People and Places,Support Services,135B,Key Engineering & Hygiene Supplies LTD,07/02/2024,PE156551,313.00,0.00,Casual ranger staff wet weather gear,Protective Clothing,
Wyre Council,http://opendatacommunities.org/doc/district-council/wyre,28/02/2024,People and Places,Support Services,135B,Key Engineering & Hygiene Supplies LTD,23/02/2024,PE157033,326.05,0.00,"Supply and deliver Clothing as your quotation 22207Delivery to Wyre Council, Civic Centre, Breck Road, Poulton-le-Fylde, FY6 7PU, FAO Tracy Waistle",Protective Clothing,
Wyre Council,http://opendatacommunities.org/doc/district-council/wyre,28/02/2024,People and Places,Support Services,135B,Key Engineering & Hygiene Supplies LTD,23/02/2024,PE157033,25.98,0.00,"Supply and deliver Clothing as your quotation 22207Delivery to Wyre Council, Civic Centre, Breck Road, Poulton-le-Fylde, FY6 7PU, FAO Tracy Waistle",Protective Clothing,
Wyre Council,http://opendatacommunities.org/doc/district-council/wyre,28/02/2024,People and Places,Support Services,135B,Key Engineering & Hygiene Supplies LTD,19/02/2024,PE156911,143.72,0.00,"Supply Clothing as per your quotation 22241Engineers Delivery to Wyre Council, Copse Road, Fleetwood, FY7 6RP",Protective Clothing,
Wyre Council,http://opendatacommunities.org/doc/district-council/wyre,28/02/2024,People and Places,Support Services,135B,Key Engineering & Hygiene Supplies LTD,15/02/2024,PE156874,23.64,0.00,"Supply additional items of clothing as same prices on quotation 222411 NO S463YERS, Hi-vis Bomber jacket in yellow with Wyre logo on front and back - SIZE SMALL",Protective Clothing,
Wyre Council,http://opendatacommunities.org/doc/district-council/wyre,28/02/2024,People and Places,Support Services,135B,Key Engineering & Hygiene Supplies LTD,15/02/2024,PE156874,10.21,0.00,1 NO H441YERS - Hi-vis rain trouser in yellow - SMALL,Protective Clothing,
Wyre Council,http://opendatacommunities.org/doc/district-council/wyre,28/02/2024,People and Places,Support Services,135B,Key Engineering & Hygiene Supplies LTD,15/02/2024,PE156874,5.17,0.00,"1 NO BWCSYS, BSEEN EN-ISO 20471 Vest S/Yell in SIZE SMALL WITH WYRE LOGO TO FRONT AND REAR",Protective Clothing,
Wyre Council,http://opendatacommunities.org/doc/district-council/wyre,28/02/2024,People and Places,Support Services,135B,Key Engineering & Hygiene Supplies LTD,15/02/2024,PE156874,14.60,0.00,1 NO 601BKSMALL - UC601 black SMALL 380GSM PREMIUM FULL ZIP MICRO FLEECE JACKET with Wyre emb logo to the front,Protective Clothing,
Wyre Council,http://opendatacommunities.org/doc/district-council/wyre,28/02/2024,People and Places,Cultural and Related Services,132A,Key Engineering & Hygiene Supplies LTD,07/02/2024,PE156552,202.40,0.00,2 x large water proof trousers,Protective Clothing,
Wyre Council,http://opendatacommunities.org/doc/district-council/wyre,28/02/2024,People and Places,Cultural and Related Services,132A,Key Engineering & Hygiene Supplies LTD,26/02/2024,PE156947,313.00,0.00,2 x staff water proof pants,Protective Clothing,
Wyre Council,http://opendatacommunities.org/doc/district-council/wyre,28/02/2024,People and Places,Support Services,135B,Key Engineering & Hygiene Supplies LTD,15/02/2024,PE156874,13.28,0.00,"2 NO 101BKSMALL, UC101 BLACK SMALL 220GSM CLASSIC POLOSHIRT with wyre emb logo to the front @ 6.64 EACH To be delivered to Wyre Council, Copse Road Depot, Copse Road, Fleetwood, FY7 6RP",Protective Clothing,
Wyre Council,http://opendatacommunities.org/doc/district-council/wyre,28/02/2024,People and Places,Support Services,135B,Aitch Tools & Fasteners LTD,09/02/2024,PE156641,52.50,0.00,Materials,Protective Clothing,
Wyre Council,http://opendatacommunities.org/doc/district-council/wyre,28/02/2024,People and Places,Support Services,135B,Amazon Business,08/02/2024,PE156595,44.97,0.00,Bags Enforcement Officers @ 17.99 each,Protective Clothing,
Wyre Council,http://opendatacommunities.org/doc/district-council/wyre,28/02/2024,People and Places,Support Services,135B,Amazon Business,23/02/2024,PE157058,93.96,0.00,1 x vertical Ergonomic Mouse 2 x work boots (steel toecap and waterproof ) size 5,Protective Clothing,
Wyre Council,http://opendatacommunities.org/doc/district-council/wyre,28/02/2024,Resources,Support Services,135B,Amazon Business,26/02/2024,RS157063,17.70,0.00,3.5 WATT LED GOLF GLOBES BAYONET FITTING COOL WHITE,Provision Fixtures and Fittings,
Wyre Council,http://opendatacommunities.org/doc/district-council/wyre,28/02/2024,People and Places,Environmental Services,132B,Glasdon UK LTD,23/02/2024,PE157056,5671.46,0.00,"Supply and deliver bins as per quotation EQ70099383 7/2/249 Glasdon Jubilee Duo 220 litter bins Delivery to Wyre Council, Copse Road Depot, Copse Road, Fleetwood, Lancashire, FY7 6RP","Provision of Bins, Boxes and Sacks",
Wyre Council,http://opendatacommunities.org/doc/district-council/wyre,28/02/2024,People and Places,Environmental Services,132B,UK Container Maintenance LTD,14/02/2024,PE156221,176.00,0.00,1 x Undertake refurbishment of 1280ltr Bulk Containers @ 176.00 per container,"Provision of Bins, Boxes and Sacks",
Wyre Council,http://opendatacommunities.org/doc/district-council/wyre,28/02/2024,People and Places,Environmental Services,132B,UK Container Maintenance LTD,14/02/2024,PE156221,704.00,0.00,4 x Undertake refurbishment of 1100 Bulk Containers with foot lid opening @ 176.00 per container,"Provision of Bins, Boxes and Sacks",
Wyre Council,http://opendatacommunities.org/doc/district-council/wyre,28/02/2024,People and Places,Environmental Services,132B,UK Container Maintenance LTD,14/02/2024,PE156221,1056.00,0.00,6 x Undertake refurbishment of 1100ltr Bulk Containers @ 176.00 per container,"Provision of Bins, Boxes and Sacks",
Wyre Council,http://opendatacommunities.org/doc/district-council/wyre,28/02/2024,People and Places,Environmental Services,132B,UK Container Maintenance LTD,14/02/2024,PE156221,1936.00,0.00,"11 x Undertake refurbishment of 940ltr Chamberlin Bulk Containers @ 176.00 per container  All Bins c/w with New black trade lid, new castors, Logos, Lid lock, and Key  Email address - www.ukcontainers.co.uk Telephone Number: 01606 723020 Victoria.Whitake","Provision of Bins, Boxes and Sacks",
Wyre Council,http://opendatacommunities.org/doc/district-council/wyre,28/02/2024,People and Places,Environmental Services,132B,Veolia ES (UK) LTD,15/02/2024,PE156869,4977.81,0.00,Bin Provision,"Provision of Bins, Boxes and Sacks",
Wyre Council,http://opendatacommunities.org/doc/district-council/wyre,28/02/2024,People and Places,Environmental Services,132B,Contenur UK Ltd,20/02/2024,PE156948,5204.90,0.00,"230 x 240ltr Anthracite Grey Body c/w 0801 Blue Lid, 2 standard wheels + axle, logo, in Virgin polymer @ 22.63 per unit","Provision of Bins, Boxes and Sacks",
Wyre Council,http://opendatacommunities.org/doc/district-council/wyre,28/02/2024,People and Places,Environmental Services,132B,Contenur UK Ltd,20/02/2024,PE156948,5476.46,0.00,"242 x 240ltr Anthracite Grey Body c/w 0300 Grey Lid, 2 standard wheels & axle, logo, in Virgin polymer @ 22.63 per unit","Provision of Bins, Boxes and Sacks",
Wyre Council,http://opendatacommunities.org/doc/district-council/wyre,28/02/2024,People and Places,Environmental Services,132B,Contenur UK Ltd,20/02/2024,PE156948,5204.90,0.00,"230 x 240ltr Anthracite Grey Body c/w 0801 Red Lid, 2 standard wheels + axle, logo, in Virgin polymer @ 22.63 per unitPrices as per ESPO Contract Schedule 860ADDAnticipated delivery ASAP (can accept delivery any time, but please advise in ad","Provision of Bins, Boxes and Sacks",
Wyre Council,http://opendatacommunities.org/doc/district-council/wyre,28/02/2024,People and Places,Cultural and Related Services,132A,Nisbetts Next Day Catering Equipment,27/02/2024,PE157109,499.90,0.00,5 x GF954 Bolero Faux Leather Dining Chair Black (box 2),Purchase Furniture,
Wyre Council,http://opendatacommunities.org/doc/district-council/wyre,28/02/2024,Resources,Housing General Fund,134A,VODAFONE LIMITED,14/02/2024,RS156727,-3.10,0.00,Phone Charges 01/02/24 to 29/02/24,Purchase Furniture,
Wyre Council,http://opendatacommunities.org/doc/district-council/wyre,28/02/2024,Resources,Housing General Fund,134A,VODAFONE LIMITED,12/02/2024,RS156014,12.00,0.00,Phone Charges 01/01/24 to 31/01/24,Purchase Furniture,
Wyre Council,http://opendatacommunities.org/doc/district-council/wyre,28/02/2024,People and Places,Planning and Development Servs,132C,PSM Group,28/02/2024,PE157136,195.00,0.00,New Window sign for Market House Studios,Purchase Furniture,
Wyre Council,http://opendatacommunities.org/doc/district-council/wyre,28/02/2024,Resources,Support Services,135B,Amazon Business,29/02/2024,RS157163,124.41,0.00,Electric Standing Desk 140 x 80cms,Purchase Furniture,
Wyre Council,http://opendatacommunities.org/doc/district-council/wyre,28/02/2024,Resources,Support Services,135B,Thomson Reuters,28/02/2024,RS157141,15831.48,0.00,E- Publication Services & Software Solutions Invoice no. 6801595164 for the period: 01/04/2022 to 31/12/2022,Purchase of Publications,
Wyre Council,http://opendatacommunities.org/doc/district-council/wyre,28/02/2024,Resources,Support Services,135B,Croner-i Limited T/A HR-Inform,14/02/2024,RS156596,567.00,0.00,HR Inform Subscription,Purchase of Publications,
Wyre Council,http://opendatacommunities.org/doc/district-council/wyre,28/02/2024,People and Places,Support Services,135B,Gibson Garden Machinery LTD,08/02/2024,PE156496,1300.00,0.00,"FAO Jack   To Supply  One New Eliet KS 300 Pro HD - 5.5hp Honda GX160 engine heavy duty lawn edger @ 1,300 + vat Includes delivery and installation  Delivery to: Wyre Council Copse Road Depot Copse Road Fleetwood Lancashire FY7 6RP",Purchase of Tools or Equipment,
Wyre Council,http://opendatacommunities.org/doc/district-council/wyre,28/02/2024,People and Places,Environmental Services,132B,Key Engineering & Hygiene Supplies LTD,27/02/2024,PE157120,23.64,0.00,"Urgent Supply of Clothing as below1 small yellow bomber jacket, code S463YERS with Wyre logo front and rear",Purchase of Tools or Equipment,
Wyre Council,http://opendatacommunities.org/doc/district-council/wyre,28/02/2024,People and Places,Environmental Services,132B,Key Engineering & Hygiene Supplies LTD,27/02/2024,PE157120,5.17,0.00,"1 medium yellow hi-vis vest, code BWCSYS with Wyre logo Delivery to Wyre Council, FAO Mwaita Zengeni, Civic Centre, Breck Road, Poulton, FY6 7PU",Purchase of Tools or Equipment,
Wyre Council,http://opendatacommunities.org/doc/district-council/wyre,28/02/2024,People and Places,Environmental Services,132B,Graffiti Removal LTD,09/02/2024,PE156645,191.50,0.00,4 no Spraycan Graffiti Remover @ 95.75 each,Purchase of Tools or Equipment,
Wyre Council,http://opendatacommunities.org/doc/district-council/wyre,28/02/2024,People and Places,Environmental Services,132B,The Lunchbox Ltd,14/02/2024,PE156815,202.50,0.00,Catering for 2 x stakeholder events,Purchase of Tools or Equipment,
Wyre Council,http://opendatacommunities.org/doc/district-council/wyre,28/02/2024,People and Places,Environmental Services,132B,ENDURA GROUP LTD T/A LANDSCAPE SUPPLY COMPANY,14/02/2024,PE156817,143.40,0.00,Supply the following Tools & Equipment:-  Sartra secateurs                               2895                       11.95                     12                           143.40,Purchase of Tools or Equipment,
Wyre Council,http://opendatacommunities.org/doc/district-council/wyre,28/02/2024,People and Places,Environmental Services,132B,ENDURA GROUP LTD T/A LANDSCAPE SUPPLY COMPANY,14/02/2024,PE156817,49.90,0.00,Sartra power hoe                             2245                       24.95                     2                              49.90,Purchase of Tools or Equipment,
Wyre Council,http://opendatacommunities.org/doc/district-council/wyre,28/02/2024,People and Places,Environmental Services,132B,ENDURA GROUP LTD T/A LANDSCAPE SUPPLY COMPANY,14/02/2024,PE156817,41.90,0.00,Sartra lawn rake                               2316                       20.95                     2                              41.90,Purchase of Tools or Equipment,
Wyre Council,http://opendatacommunities.org/doc/district-council/wyre,28/02/2024,People and Places,Environmental Services,132B,ENDURA GROUP LTD T/A LANDSCAPE SUPPLY COMPANY,14/02/2024,PE156817,36.90,0.00,Fuel can 20ltr                                     5218                       18.45                     2                              36.90,Purchase of Tools or Equipment,
Wyre Council,http://opendatacommunities.org/doc/district-council/wyre,28/02/2024,People and Places,Environmental Services,132B,ENDURA GROUP LTD T/A LANDSCAPE SUPPLY COMPANY,14/02/2024,PE156817,58.42,0.00,"Bellota pole saw                               2145                       58.46                     1                              58.46Delivery to Wyre Council, Copse Road Depot, Copse Road, Fleetwood, Lancashire, FY7 6RP.",Purchase of Tools or Equipment,
Wyre Council,http://opendatacommunities.org/doc/district-council/wyre,28/02/2024,People and Places,Environmental Services,132B,ENDURA GROUP LTD T/A LANDSCAPE SUPPLY COMPANY,21/02/2024,PE156989,113.70,0.00,Bellota saw blade                             2544                       18.95                     6                              113.70,Purchase of Tools or Equipment,
Wyre Council,http://opendatacommunities.org/doc/district-council/wyre,28/02/2024,People and Places,Environmental Services,132B,ENDURA GROUP LTD T/A LANDSCAPE SUPPLY COMPANY,14/02/2024,PE156817,63.84,0.00,Flexible Bucket                                  5655                       7.95                        8                              63.80,Purchase of Tools or Equipment,
Wyre Council,http://opendatacommunities.org/doc/district-council/wyre,28/02/2024,People and Places,Environmental Services,132B,ENDURA GROUP LTD T/A LANDSCAPE SUPPLY COMPANY,14/02/2024,PE156817,55.80,0.00,Sartra Shovel                                     2229                       13.95                     4                              55.80,Purchase of Tools or Equipment,
Wyre Council,http://opendatacommunities.org/doc/district-council/wyre,28/02/2024,People and Places,Environmental Services,132B,ENDURA GROUP LTD T/A LANDSCAPE SUPPLY COMPANY,14/02/2024,PE156817,49.90,0.00,Bellota saw                                         2117                       24.95                     2                              49.90,Purchase of Tools or Equipment,
Wyre Council,http://opendatacommunities.org/doc/district-council/wyre,28/02/2024,People and Places,Environmental Services,132B,ENDURA GROUP LTD T/A LANDSCAPE SUPPLY COMPANY,14/02/2024,PE156817,63.88,0.00,Pole pruning saw                              BAH3396T            31.94                     2                              63.88,Purchase of Tools or Equipment,
Wyre Council,http://opendatacommunities.org/doc/district-council/wyre,28/02/2024,People and Places,Environmental Services,132B,ENDURA GROUP LTD T/A LANDSCAPE SUPPLY COMPANY,14/02/2024,PE156817,19.90,0.00,Evenspray fan nozzle                      2437                       9.95                        2                              19.90,Purchase of Tools or Equipment,
Wyre Council,http://opendatacommunities.org/doc/district-council/wyre,28/02/2024,People and Places,Environmental Services,132B,ENDURA GROUP LTD T/A LANDSCAPE SUPPLY COMPANY,14/02/2024,PE156817,19.90,0.00,Evenspray fan nozzle                      2435                       9.95                        2                              19.90,Purchase of Tools or Equipment,
Wyre Council,http://opendatacommunities.org/doc/district-council/wyre,28/02/2024,People and Places,Environmental Services,132B,ENDURA GROUP LTD T/A LANDSCAPE SUPPLY COMPANY,14/02/2024,PE156817,19.90,0.00,Evenspray fan nozzle                      2439                       9.95                        2                              19.90,Purchase of Tools or Equipment,
Wyre Council,http://opendatacommunities.org/doc/district-council/wyre,28/02/2024,People and Places,Environmental Services,132B,ENDURA GROUP LTD T/A LANDSCAPE SUPPLY COMPANY,14/02/2024,PE156817,33.10,0.00,Fuel can 10ltr                                     5217                       16.55                     2                              33.10,Purchase of Tools or Equipment,
Wyre Council,http://opendatacommunities.org/doc/district-council/wyre,28/02/2024,People and Places,Planning and Development Servs,132C,Amazon Business,08/02/2024,PE156594,21.64,0.00,LightsCopse Road Depot,Purchase of Tools or Equipment,
Wyre Council,http://opendatacommunities.org/doc/district-council/wyre,28/02/2024,People and Places,Environmental Services,132B,Amazon Business,21/02/2024,PE156991,10.70,0.00,Items for Climate Control team for the consulation events feb 2024,Purchase of Tools or Equipment,
Wyre Council,http://opendatacommunities.org/doc/district-council/wyre,28/02/2024,People and Places,Environmental Services,132B,Amazon Business,05/02/2024,PE156303,10.31,0.00,correcting incorrect posting on PE156303 - for items for Climate change consultation event,Purchase of Tools or Equipment,
Wyre Council,http://opendatacommunities.org/doc/district-council/wyre,28/02/2024,People and Places,Environmental Services,132B,Amazon Business,19/02/2024,PE156910,3.32,0.00,"50m Garden Twistee Tie, 164ft Plant Twist Wire with Dispenser and Cutter for Gardening, Tomato, Vines, Shrubs and Flowers, Great for Organising, DIY Craft Projects (Garden Wire, 50 Metres) : as requested by Sammy Gray for Climate Change presentations",Purchase of Tools or Equipment,
Wyre Council,http://opendatacommunities.org/doc/district-council/wyre,28/02/2024,People and Places,Environmental Services,132B,Amazon Business,19/02/2024,PE156905,3.32,0.00,Items for Climate Control team for the consulation events feb 2024,Purchase of Tools or Equipment,
Wyre Council,http://opendatacommunities.org/doc/district-council/wyre,28/02/2024,People and Places,Cultural and Related Services,132A,Amazon Business,16/02/2024,PE156906,129.17,0.00,1 henry hoover to replace the Broken on at WECP meeting room,Purchase of Tools or Equipment,
Wyre Council,http://opendatacommunities.org/doc/district-council/wyre,28/02/2024,People and Places,Support Services,135B,Amazon Business,12/02/2024,PE156644,65.82,0.00,Microwave,Purchase of Tools or Equipment,
Wyre Council,http://opendatacommunities.org/doc/district-council/wyre,28/02/2024,People and Places,Support Services,135B,Amazon Business,09/02/2024,PE156543,54.16,0.00,Grip Keith Urwin,Purchase of Tools or Equipment,
Wyre Council,http://opendatacommunities.org/doc/district-council/wyre,28/02/2024,People and Places,Cultural and Related Services,132A,Morelli Enterprises Ltd t/a Athleticum,08/02/2024,PE156569,47096.34,0.00,"The purchase of Spinning Bikes and associated warranties, licences, digital marketing, delivery, installation and service package:Item Description Quantity List Price Unit price Amount GBPSpinner� NXT Studio Bike 65.00 @ 1228.92 = 79,879.80SPIN�",Purchase of Tools or Equipment,
Wyre Council,http://opendatacommunities.org/doc/district-council/wyre,28/02/2024,People and Places,Cultural and Related Services,132A,Morelli Enterprises Ltd t/a Athleticum,09/02/2024,PE156508,94192.68,0.00,Offset via PE156588,Purchase of Tools or Equipment,
Wyre Council,http://opendatacommunities.org/doc/district-council/wyre,28/02/2024,People and Places,Cultural and Related Services,132A,Morelli Enterprises Ltd t/a Athleticum,09/02/2024,PE156588,-94192.68,0.00,Offsets PE156508,Purchase of Tools or Equipment,
Wyre Council,http://opendatacommunities.org/doc/district-council/wyre,28/02/2024,People and Places,Cultural and Related Services,132A,Morelli Enterprises Ltd t/a Athleticum,07/02/2024,PE156538,47096.34,0.00,"The purchase of Spinning Bikes and associated warranties, licences, digital marketing, delivery, installation and service package:Item Description Quantity List Price Unit price Amount GBPSpinner� NXT Studio Bike 65.00 @ 1228.92 = 79,879.80SPIN�",Purchase of Tools or Equipment,
Wyre Council,http://opendatacommunities.org/doc/district-council/wyre,28/02/2024,People and Places,Cultural and Related Services,132A,Morelli Enterprises Ltd t/a Athleticum,08/02/2024,PE156538,-47096.34,0.00,"The purchase of Spinning Bikes and associated warranties, licences, digital marketing, delivery, installation and service package:Item Description Quantity List Price Unit price Amount GBPSpinner� NXT Studio Bike 65.00 @ 1228.92 = 79,879.80SPIN�",Purchase of Tools or Equipment,
Wyre Council,http://opendatacommunities.org/doc/district-council/wyre,28/02/2024,People and Places,Cultural and Related Services,132A,Phil McIntyre Entertainments Ltd,07/02/2024,PE156557,3299.45,0.00,Ed Byrne 7/12/23 TLT,Refund of Ticket Sales to Ext Promoters,
Wyre Council,http://opendatacommunities.org/doc/district-council/wyre,28/02/2024,People and Places,Cultural and Related Services,132A,THE WINDMILL PLAYERS,16/02/2024,PE156870,5388.00,0.00,Windmill Players A Christmas Carol 7th to 9th Feb 24 ticket sales,Refund of Ticket Sales to Ext Promoters,
Wyre Council,http://opendatacommunities.org/doc/district-council/wyre,28/02/2024,People and Places,Cultural and Related Services,132A,Carlton Entertainment,08/02/2024,PE156585,4075.00,0.00,Nearly Elton 02/02/24 ticket sales,Refund of Ticket Sales to Ext Promoters,
Wyre Council,http://opendatacommunities.org/doc/district-council/wyre,28/02/2024,People and Places,Planning and Development Servs,132C,Suez Recycling And Recovery UK LTD,26/02/2024,PE156449,1250.36,0.00,waste removal market suez,Refuse Collection,
Wyre Council,http://opendatacommunities.org/doc/district-council/wyre,28/02/2024,People and Places,Environmental Services,132B,Veolia ES (UK) LTD,15/02/2024,PE156869,194722.58,0.00,Domestic Waste Management Collection Contract 2023/24,Refuse Collection Contract,
Wyre Council,http://opendatacommunities.org/doc/district-council/wyre,28/02/2024,People and Places,Environmental Services,132B,Veolia ES (UK) LTD,15/02/2024,PE156869,535.86,0.00,Pension Pass Through,Refuse Collection Contract,
Wyre Council,http://opendatacommunities.org/doc/district-council/wyre,28/02/2024,People and Places,Environmental Services,132B,Calico Enterprise,05/02/2024,PE156453,2433.30,0.00,Bulky Matters Contract Calico 2023/24,Refuse Collection Contract,
Wyre Council,http://opendatacommunities.org/doc/district-council/wyre,28/02/2024,People and Places,Environmental Services,132B,Calico Enterprise,05/02/2024,PE156454,10462.89,0.00,Bulky Matters Contract Calico 2023/24,Refuse Collection Contract,
Wyre Council,http://opendatacommunities.org/doc/district-council/wyre,28/02/2024,People and Places,Environmental Services,132B,Calico Enterprise,05/02/2024,PE156454,2250.00,0.00,Bulky Matters Contract Calico 2023/24,Refuse Collection Contract,
Wyre Council,http://opendatacommunities.org/doc/district-council/wyre,28/02/2024,People and Places,Cultural and Related Services,132A,EAS Electrical Mechanical,27/02/2024,PE157104,89.40,0.00,Investigate and rectify faulty tap at Riverside Room and Rangers office,Responsive Building Maintenance,
Wyre Council,http://opendatacommunities.org/doc/district-council/wyre,28/02/2024,People and Places,Environmental Services,132B,EAS Electrical Mechanical,27/02/2024,PE157103,60.42,0.00,"Investigate damaged pipe, remove pipe and replace with new at Moorland Road Cemetery",Responsive Building Maintenance,
Wyre Council,http://opendatacommunities.org/doc/district-council/wyre,28/02/2024,People and Places,Environmental Services,132B,EAS Electrical Mechanical,29/02/2024,PE157182,52.80,0.00,"Garstang Rd Cemetery: Investigate leak on sink, copper pipe feed to sink small pin prick in copper, isolate water supply and replace damaged copper with flexi and top hat to resecure tap, test on completion",Responsive Building Maintenance,
Wyre Council,http://opendatacommunities.org/doc/district-council/wyre,28/02/2024,People and Places,Environmental Services,132B,EAS Electrical Mechanical,07/02/2024,PE156525,183.41,0.00,Garstang Rd Cemetery: Cable damaged due to digger bucket hitting it.  Relocated light and wiring to side of container so wouldn`t get damaged as per workers on site instruction,Responsive Building Maintenance,
Wyre Council,http://opendatacommunities.org/doc/district-council/wyre,28/02/2024,People and Places,Environmental Services,132B,EAS Electrical Mechanical,20/02/2024,PE156936,48.00,0.00,"R17761 fault with water heater handle, turned it the correct way round.  Work carried out at Chatsworth Depot",Responsive Building Maintenance,
Wyre Council,http://opendatacommunities.org/doc/district-council/wyre,28/02/2024,People and Places,Planning and Development Servs,132C,EAS Electrical Mechanical,29/02/2024,PE157184,125.48,0.00,Copse Rd Depot: replaced light fitting and panel light in Veoli office,Responsive Building Maintenance,
Wyre Council,http://opendatacommunities.org/doc/district-council/wyre,28/02/2024,People and Places,Planning and Development Servs,132C,EAS Electrical Mechanical,29/02/2024,PE157180,155.56,0.00,"Fleetwood Market: Investigate leak behind ladies cubicles, faulty inlet valve not shutting off on x2 toilets, isolate toilets and replace x2 inlets and fibre washers, test on completion",Responsive Building Maintenance,
Wyre Council,http://opendatacommunities.org/doc/district-council/wyre,28/02/2024,People and Places,Planning and Development Servs,132C,EAS Electrical Mechanical,07/02/2024,PE156526,195.00,0.00,fleetwood Market: Remove and make safe external lighting following high winds,Responsive Building Maintenance,
Wyre Council,http://opendatacommunities.org/doc/district-council/wyre,28/02/2024,People and Places,Planning and Development Servs,132C,EAS Electrical Mechanical,01/02/2024,PE156417,69.28,0.00,"Fleetwood Market: Investigate leak in boiler room, leaking waste pipe, replace damaged washer on coupling and test waste pipe multiple times",Responsive Building Maintenance,
Wyre Council,http://opendatacommunities.org/doc/district-council/wyre,28/02/2024,People and Places,Support Services,135B,EAS Electrical Mechanical,01/02/2024,PE156415,534.94,0.00,Civic Centre: replaced x2 lights in toilets and replaced pir following water damaged and reconnected power,Responsive Building Maintenance,
Wyre Council,http://opendatacommunities.org/doc/district-council/wyre,28/02/2024,People and Places,Support Services,135B,EAS Electrical Mechanical,05/02/2024,PE156459,168.50,0.00,Investigate leak on ladies toilet and replace with new parts,Responsive Building Maintenance,
Wyre Council,http://opendatacommunities.org/doc/district-council/wyre,28/02/2024,People and Places,Cultural and Related Services,132A,EAS Electrical Mechanical,01/02/2024,PE156416,863.10,0.00,Thornton Little Theatre: investigate and rectify problems with lighting to main foyer,Responsive Building Maintenance,
Wyre Council,http://opendatacommunities.org/doc/district-council/wyre,28/02/2024,People and Places,Cultural and Related Services,132A,EAS Electrical Mechanical,29/02/2024,PE157181,94.99,0.00,Kite Club: Isolate power to smoke detectors and replace faulty SD in disabled toilet and test,Responsive Building Maintenance,
Wyre Council,http://opendatacommunities.org/doc/district-council/wyre,28/02/2024,People and Places,Planning and Development Servs,132C,EAS Electrical Mechanical,29/02/2024,PE157186,126.00,0.00,Unit 14 Butts Close: EICR,Responsive Building Maintenance,
Wyre Council,http://opendatacommunities.org/doc/district-council/wyre,28/02/2024,People and Places,Planning and Development Servs,132C,EAS Electrical Mechanical,29/02/2024,PE157185,84.00,0.00,Unit 5 Butts Close: EICR,Responsive Building Maintenance,
Wyre Council,http://opendatacommunities.org/doc/district-council/wyre,28/02/2024,People and Places,Planning and Development Servs,132C,EAS Electrical Mechanical,29/02/2024,PE157179,125.00,0.00,Unit 11 Butts Close: undertake fixed electrical test and provide report,Responsive Building Maintenance,
Wyre Council,http://opendatacommunities.org/doc/district-council/wyre,28/02/2024,People and Places,Planning and Development Servs,132C,EAS Electrical Mechanical,29/02/2024,PE157178,125.00,0.00,Unit 18 Butts Close: undertake fixed electrical test and provide report,Responsive Building Maintenance,
Wyre Council,http://opendatacommunities.org/doc/district-council/wyre,28/02/2024,People and Places,Planning and Development Servs,132C,EAS Electrical Mechanical,01/02/2024,PE156414,420.00,0.00,"Unit 18 Butts Close, EICR Remedials",Responsive Building Maintenance,
Wyre Council,http://opendatacommunities.org/doc/district-council/wyre,28/02/2024,People and Places,Planning and Development Servs,132C,EAS Electrical Mechanical,07/02/2024,PE156528,59.34,0.00,"Fleetwood Market: Investigate fault on water cylinder, no power going to cylinder, check all fuses, x 1 fused spur burnt out, isolate power and replace metal clad sw fused spur and test",Responsive Building Maintenance,
Wyre Council,http://opendatacommunities.org/doc/district-council/wyre,28/02/2024,People and Places,Cultural and Related Services,132A,John Carney,07/02/2024,PE156522,950.00,0.00,"Marine Hall: For attending site on Christmas Eve to make roof watertight at rear over bar area.  Return visit after Christmas to take off damaged boards and replace with new 3/4"" plywood boards.  Re-felt using 2 layers polyester torch on felt",Responsive Building Maintenance,
Wyre Council,http://opendatacommunities.org/doc/district-council/wyre,28/02/2024,People and Places,Cultural and Related Services,132A,John Carney,27/02/2024,PE157100,180.00,0.00,Carrying out roofing repairs to main roof above stage area at Marine Hall,Responsive Building Maintenance,
Wyre Council,http://opendatacommunities.org/doc/district-council/wyre,28/02/2024,People and Places,Cultural and Related Services,132A,John Carney,16/02/2024,PE156894,250.00,0.00,Marine Hall: For carrying out all repairs to land valley gutters.  Cleaning off all debris and drying roof.  Applied Crompol solution to try and stop water ingress,Responsive Building Maintenance,
Wyre Council,http://opendatacommunities.org/doc/district-council/wyre,28/02/2024,People and Places,Cultural and Related Services,132A,John Carney,07/02/2024,PE156521,350.00,0.00,Cottam Hall Pavillion: For carrying out all roofing repairs to different areas due to damage by vandals smashing tiles etc.  finally to clear off all debris from valleys,Responsive Building Maintenance,
Wyre Council,http://opendatacommunities.org/doc/district-council/wyre,28/02/2024,People and Places,Cultural and Related Services,132A,John Carney,07/02/2024,PE156523,180.00,0.00,New Wave Cafe Cove: For carrying out roofing repairs to prevent further damage to roof.  2 visits,Responsive Building Maintenance,
Wyre Council,http://opendatacommunities.org/doc/district-council/wyre,28/02/2024,People and Places,Planning and Development Servs,132C,John Carney,07/02/2024,PE156524,45.00,0.00,Fleetwood Market Studios: For attending site to assess what is required to carry out repair works safely,Responsive Building Maintenance,
Wyre Council,http://opendatacommunities.org/doc/district-council/wyre,28/02/2024,People and Places,Support Services,135B,John Carney,08/02/2024,PE156587,450.00,0.00,"Civic Centre, finance office:  For carrying our all roofing repairs.  Clearing off all debris, dry off roof and priming to prepare.  Finish with layer of crompol solution to prevent water ingress",Responsive Building Maintenance,
Wyre Council,http://opendatacommunities.org/doc/district-council/wyre,28/02/2024,People and Places,Cultural and Related Services,132A,Lea Hough & Co LLP,26/02/2024,PE156875,2400.00,0.00,CONFIRMATION ORDER Building survey to record current condition of the premises to inform the ongoing review of Wyre Theatre provision,Responsive Building Maintenance,
Wyre Council,http://opendatacommunities.org/doc/district-council/wyre,28/02/2024,Resources,Housing General Fund,134A,Roomz Group Limited,29/02/2024,RS157170,1140.00,0.00,REDACT,Rough Sleeper Project/NSNO,
Wyre Council,http://opendatacommunities.org/doc/district-council/wyre,28/02/2024,People and Places,Support Services,135B,Everglades Nurseries TD,28/02/2024,PE157084,3001.80,0.00,Please supply and deliver : Containerised Pinus nigra var Maritima10-1210148.001480.00Containerised disease resistant elm10-12 1078.00780.00SundriesRubber tree support belting45mm x 4 rolls 21.7587.00Treated softwood stakes,Routine Maintenance,
Wyre Council,http://opendatacommunities.org/doc/district-council/wyre,28/02/2024,People and Places,Support Services,135B,HUWS GRAY LTD,28/02/2024,PE157106,46.43,0.00,Loose Crusher run  R17962,Routine Maintenance,
Wyre Council,http://opendatacommunities.org/doc/district-council/wyre,28/02/2024,People and Places,Support Services,135B,HUWS GRAY LTD,22/02/2024,PE156485,442.00,0.00,As per quote Q8800348 Order K88048660 Ryan Arrell,Routine Maintenance,
Wyre Council,http://opendatacommunities.org/doc/district-council/wyre,28/02/2024,People and Places,Support Services,135B,HUWS GRAY LTD,06/02/2024,PE156482,-442.00,0.00,"Q8800348/1 ANDREW DICKINSON (88) 26Jan24 w7536Delivery to: WYRE COUNCILCOPSE ROAD DEPOTCOPSE ROADFLEETWOODFY7 6RPQty 50 x PHT 3/4`` x 8 CUNDY POST STANDARD TREATED 8.84 each , Value 442.00Overall total 442.00 VAT 88.40",Routine Maintenance,
Wyre Council,http://opendatacommunities.org/doc/district-council/wyre,28/02/2024,People and Places,Support Services,135B,HUWS GRAY LTD,05/02/2024,PE156482,442.00,0.00,"Q8800348/1 ANDREW DICKINSON (88) 26Jan24 w7536Delivery to: WYRE COUNCILCOPSE ROAD DEPOTCOPSE ROADFLEETWOODFY7 6RPQty 50 x PHT 3/4`` x 8 CUNDY POST STANDARD TREATED 8.84 each , Value 442.00Overall total 442.00 VAT 88.40",Routine Maintenance,
Wyre Council,http://opendatacommunities.org/doc/district-council/wyre,28/02/2024,People and Places,Support Services,135B,Chris Standeven Ltd,14/02/2024,PE156814,4465.00,0.00,"FAO Chris Standeven Following on from meeting on site at King Georges Playing Fields, Thornton. Please supply and fit 32 no 100mm x 100mm treated timber posts at 1.1m high, bolted to existing boardwalk structure. Supply and fit 3 no 75mm x 47m",Routine Maintenance,
Wyre Council,http://opendatacommunities.org/doc/district-council/wyre,28/02/2024,People and Places,Highways,133B,Glasdon UK LTD,14/02/2024,PE156646,91.58,0.00,Supply one memorial plaque.Plaque inscription to read        In Memory of Joe and Maureen Bromell       14.04.36 -05.09.16    01.05.39  26.11.23They loved to sit here together and enjoy the view Very much loved and sadly missed by all the fam,Seats and Shelters (Non BM),
Wyre Council,http://opendatacommunities.org/doc/district-council/wyre,28/02/2024,People and Places,Highways,133B,Glasdon UK LTD,14/02/2024,PE156840,535.38,0.00,"Supply one memorial plaque.Plaque inscription to read �In Loving Memory of� Mr Ivor Jenkins from 1928 to 2017�In Loving Memory of� Mrs Edna Jenkins from 1928 to 2023.Please deliver bench to Copse Road Depot, Copse Road, Fleetwood.  Please",Seats and Shelters (Non BM),
Wyre Council,http://opendatacommunities.org/doc/district-council/wyre,28/02/2024,People and Places,Cultural and Related Services,132A,WATER PLUS LTD,13/02/2024,PE156403,7.32,0.00,"3000110372 - Tourist Information Centre, Unit 1 Cherestanc Square,  Garstang, PRESTON, PR3 1EF Sewerage Charge",Sewerage,
Wyre Council,http://opendatacommunities.org/doc/district-council/wyre,28/02/2024,People and Places,Planning and Development Servs,132C,WATER PLUS LTD,27/02/2024,PE153481,4.45,0.00,"3201359831 - Unit 6 Dock Ave, Fleetwood, FY7 6PS 04/08/23 to 04/09/23",Sewerage,
Wyre Council,http://opendatacommunities.org/doc/district-council/wyre,28/02/2024,People and Places,Planning and Development Servs,132C,WATER PLUS LTD,27/02/2024,PE154433,4.45,0.00,"3201359831 Unit 6 Dock Ave, Fleetwood, FY7 6PS 04/10/23 to 04/11/23",Sewerage,
Wyre Council,http://opendatacommunities.org/doc/district-council/wyre,28/02/2024,People and Places,Planning and Development Servs,132C,WATER PLUS LTD,27/02/2024,PE154812,2.44,0.00,"3201359831 Unit 6 Dock Ave, Fleetwood, FY7 6PS 04/11/23 to 21/11/23",Sewerage,
Wyre Council,http://opendatacommunities.org/doc/district-council/wyre,28/02/2024,People and Places,Planning and Development Servs,132C,WATER PLUS LTD,27/02/2024,PE156952,1.87,0.00,"3201359831 Unit 6 Dock Ave, Fleetwood, FY7 6PS 21/11/23 to 04/12/23",Sewerage,
Wyre Council,http://opendatacommunities.org/doc/district-council/wyre,28/02/2024,People and Places,Planning and Development Servs,132C,WATER PLUS LTD,27/02/2024,PE157003,0.72,0.00,"3201359831 Unit 6 Dock Ave, Fleetwood, FY7 6PS  04/08/23 to 09/08/23",Sewerage,
Wyre Council,http://opendatacommunities.org/doc/district-council/wyre,28/02/2024,People and Places,Planning and Development Servs,132C,WATER PLUS LTD,22/02/2024,PE149616,225.75,0.00,"320135984X Unit 7a Dock Ave, Fleetwood, FY7 6PS 22/06/22 to 1/03/23 water and waste water",Sewerage,
Wyre Council,http://opendatacommunities.org/doc/district-council/wyre,28/02/2024,People and Places,Planning and Development Servs,132C,WATER PLUS LTD,22/02/2024,PE153480,27.54,0.00,"320135984X - Unit 7a Dock Ave, Fleetwood, FY7 6PS, 04/08/23 to 04/09/23",Sewerage,
Wyre Council,http://opendatacommunities.org/doc/district-council/wyre,28/02/2024,People and Places,Planning and Development Servs,132C,WATER PLUS LTD,22/02/2024,PE153521,27.40,0.00,"320135984X Unit 7a Dock Ave, Fleetwood, FY7 6PS 04/09/23 to 04/10/2",Sewerage,
Wyre Council,http://opendatacommunities.org/doc/district-council/wyre,28/02/2024,People and Places,Planning and Development Servs,132C,WATER PLUS LTD,22/02/2024,PE154432,27.54,0.00,"320135984X Unit 7a Dock Ave, Fleetwood, FY7 6PS 04/10/23 to 04/11/23",Sewerage,
Wyre Council,http://opendatacommunities.org/doc/district-council/wyre,28/02/2024,People and Places,Planning and Development Servs,132C,WATER PLUS LTD,22/02/2024,PE156686,27.54,0.00,"320135984X Unit 7a Dock Ave, Fleetwood, FY7 6PS 03/01/24 to 03/02/24",Sewerage,
Wyre Council,http://opendatacommunities.org/doc/district-council/wyre,28/02/2024,People and Places,Planning and Development Servs,132C,WATER PLUS LTD,22/02/2024,PE156336,27.40,0.00,"320135984X Unit 7a Dock Ave, Fleetwood, FY7 6PS 04/12/23 to 03/01/2",Sewerage,
Wyre Council,http://opendatacommunities.org/doc/district-council/wyre,28/02/2024,People and Places,Planning and Development Servs,132C,WATER PLUS LTD,22/02/2024,PE156953,3.28,0.00,"320135984X Unit 7a Dock Ave, Fleetwood, FY7 6PS 04/08/23 to 09/08/2",Sewerage,
Wyre Council,http://opendatacommunities.org/doc/district-council/wyre,28/02/2024,People and Places,Planning and Development Servs,132C,WATER PLUS LTD,22/02/2024,PE157004,27.40,0.00,"320135984X Unit 7a Dock Ave, Fleetwood, FY7 6PS 04/11/23 to 04/12/23",Sewerage,
Wyre Council,http://opendatacommunities.org/doc/district-council/wyre,28/02/2024,People and Places,Cultural and Related Services,132A,WATER PLUS LTD,13/02/2024,PE156403,15.41,0.00,"3001061367 - Mount Pavilion, The Esplanade, FLEETWOOD, FY7 6HF Sewerage  Charge",Sewerage,
Wyre Council,http://opendatacommunities.org/doc/district-council/wyre,28/02/2024,People and Places,Environmental Services,132B,WATER PLUS LTD,13/02/2024,PE156403,16.76,0.00,"3002252263 - Cemetery &amp; Offices, Beach Road, FLEETWOOD, FY7 8PN  Sewerage Charge",Sewerage,
Wyre Council,http://opendatacommunities.org/doc/district-council/wyre,28/02/2024,People and Places,Environmental Services,132B,WATER PLUS LTD,13/02/2024,PE156403,11.36,0.00,"3002252255 - Fleetwood Corporation Cemetery, Beach Road, FLEETWOOD, FY7  8PH Sewerage Charge",Sewerage,
Wyre Council,http://opendatacommunities.org/doc/district-council/wyre,28/02/2024,People and Places,Planning and Development Servs,132C,WATER PLUS LTD,13/02/2024,PE156403,4.62,0.00,"3002655988 - Fleetwood Traditional Market, Adelaide Street, FLEETWOOD,  FY7 6AB Sewerage Charge",Sewerage,
Wyre Council,http://opendatacommunities.org/doc/district-council/wyre,28/02/2024,People and Places,Central Services to the Public,131C,WATER PLUS LTD,13/02/2024,PE156403,62.65,0.00,"3002564850 - Day Centre, Queensway, POULTON LE FYLDE, FY6 7ST Sewerage  Charge",Sewerage,
Wyre Council,http://opendatacommunities.org/doc/district-council/wyre,28/02/2024,People and Places,Cultural and Related Services,132A,WATER PLUS LTD,13/02/2024,PE156403,4.62,0.00,"3002110760 - Changing Room King George V Pl, Fleetwood Road, FLEETWOOD,  FY7 8AS Sewerage Charge",Sewerage,
Wyre Council,http://opendatacommunities.org/doc/district-council/wyre,28/02/2024,People and Places,Cultural and Related Services,132A,WATER PLUS LTD,13/02/2024,PE156403,73.44,0.00,"3001212063 - Ashdell Nursery Bowling Green &amp; Pc`S, Victoria Road  East, THORNTON CLEVELEYS, FY5 3SZ Sewerage Charge",Sewerage,
Wyre Council,http://opendatacommunities.org/doc/district-council/wyre,28/02/2024,People and Places,Cultural and Related Services,132A,WATER PLUS LTD,13/02/2024,PE156403,602.39,0.00,"3002656356 - Marine Gardens, The Esplanade, FLEETWOOD, FY7 6HE Sewerage  Charge",Sewerage,
Wyre Council,http://opendatacommunities.org/doc/district-council/wyre,28/02/2024,People and Places,Cultural and Related Services,132A,WATER PLUS LTD,13/02/2024,PE156403,1232.55,0.00,"3002656348 - Paddling Pool, Marine Gardens, FLEETWOOD, FY7 6HE Sewerage  Charge",Sewerage,
Wyre Council,http://opendatacommunities.org/doc/district-council/wyre,28/02/2024,People and Places,Cultural and Related Services,132A,WATER PLUS LTD,13/02/2024,PE156403,-143.46,0.00,"3002656321 - Marine Gardens, The Esplanade, FLEETWOOD, FY7 6HE Sewerage  Charge",Sewerage,
Wyre Council,http://opendatacommunities.org/doc/district-council/wyre,28/02/2024,People and Places,Cultural and Related Services,132A,WATER PLUS LTD,13/02/2024,PE156403,307.19,0.00,"3002656038 - Toilets, Warrenhurst Park, FLEETWOOD, FY7 6SH Sewerage  Charge",Sewerage,
Wyre Council,http://opendatacommunities.org/doc/district-council/wyre,28/02/2024,People and Places,Cultural and Related Services,132A,WATER PLUS LTD,13/02/2024,PE156403,140.91,0.00,"3002656321 - Marine Hall, The Esplanade, FLEETWOOD, FY7 6HF Sewerage  Charge",Sewerage,
Wyre Council,http://opendatacommunities.org/doc/district-council/wyre,28/02/2024,People and Places,Cultural and Related Services,132A,WATER PLUS LTD,13/02/2024,PE156403,50.50,0.00,"3003028006 - Playing Fields, Cottam Hall, POULTON LE FYLDE, FY6 7RG  Sewerage Charge",Sewerage,
Wyre Council,http://opendatacommunities.org/doc/district-council/wyre,28/02/2024,People and Places,Cultural and Related Services,132A,WATER PLUS LTD,13/02/2024,PE156403,189.92,0.00,"300265633X - Marine Lake, Laidleys Walk, FLEETWOOD, FY7 7HS Sewerage  Charge",Sewerage,
Wyre Council,http://opendatacommunities.org/doc/district-council/wyre,28/02/2024,People and Places,Cultural and Related Services,132A,WATER PLUS LTD,13/02/2024,PE156403,14.06,0.00,"3000427023 - Park, North Drive, THORNTON CLEVELEYS, FY5 3AR Sewerage  Charge",Sewerage,
Wyre Council,http://opendatacommunities.org/doc/district-council/wyre,28/02/2024,People and Places,Cultural and Related Services,132A,WATER PLUS LTD,13/02/2024,PE156403,12.71,0.00,"300244278X - Wyreside Ecology Centre, River Road, THORNTON-CLEVELEYS, FY5  5LR Sewerage Charge",Sewerage,
Wyre Council,http://opendatacommunities.org/doc/district-council/wyre,28/02/2024,People and Places,Cultural and Related Services,132A,WATER PLUS LTD,13/02/2024,PE156403,8.67,0.00,"3002268488 - Club House, River Road, THORNTON-CLEVELEYS, FY5 5LR Sewerage  Charge",Sewerage,
Wyre Council,http://opendatacommunities.org/doc/district-council/wyre,28/02/2024,People and Places,Environmental Services,132B,WATER PLUS LTD,13/02/2024,PE156403,18.11,0.00,"3002415766 - Cemetery, Garstang Road East, POULTON LE FYLDE, FY6 8JH  Sewerage Charge",Sewerage,
Wyre Council,http://opendatacommunities.org/doc/district-council/wyre,28/02/2024,People and Places,Environmental Services,132B,WATER PLUS LTD,13/02/2024,PE156403,123.37,0.00,"300294677X - Public Toilet, Rough Lea Road, THORNTON CLEVELEYS, FY5 1BW  Sewerage Charge",Sewerage,
Wyre Council,http://opendatacommunities.org/doc/district-council/wyre,28/02/2024,People and Places,Environmental Services,132B,WATER PLUS LTD,13/02/2024,PE156403,73.44,0.00,"3002655775 - Public Conveniences, Rough Lea Road, THORNTON CLEVELEYS, FY5  1DA Sewerage Charge",Sewerage,
Wyre Council,http://opendatacommunities.org/doc/district-council/wyre,28/02/2024,People and Places,Environmental Services,132B,WATER PLUS LTD,13/02/2024,PE156403,37.01,0.00,"3002564869 - Toilets, Teanlowe Centre, POULTON-LE-FYLDE, FY6 7DF Sewerage  Charge",Sewerage,
Wyre Council,http://opendatacommunities.org/doc/district-council/wyre,28/02/2024,People and Places,Environmental Services,132B,WATER PLUS LTD,13/02/2024,PE156403,92.32,0.00,"3002496634 - Toilets, Higher Lane, Scorton, PRESTON, PR3 1BE Sewerage  Charge",Sewerage,
Wyre Council,http://opendatacommunities.org/doc/district-council/wyre,28/02/2024,People and Places,Environmental Services,132B,WATER PLUS LTD,13/02/2024,PE156403,70.63,0.00,"3002656135 - Toilets, Preston Street, FLEETWOOD, FY7 6JA Sewerage Charge",Sewerage,
Wyre Council,http://opendatacommunities.org/doc/district-council/wyre,28/02/2024,People and Places,Environmental Services,132B,WATER PLUS LTD,13/02/2024,PE156403,120.67,0.00,"3002445207 - Toilets, Car Park, High Street, Garstang, PRESTON, PR3 1FA  Sewerage Charge",Sewerage,
